Workbook

Sheet PESSOA FÍSICA
A1: CATEGORIA | B1: INSCRIÇÃO | C1: CIDADE | D1: UF | E1: REGIÃO | F1: AVALIADOR | G1: CRITÉRIOS DE AVALIAÇÃO E SELEÇÃO 1 | H1: CRITÉRIOS DE AVALIAÇÃO E SELEÇÃO 2 | I1: CRITÉRIOS DE AVALIAÇÃO E SELEÇÃO 3 | J1: CRITÉRIOS DE AVALIAÇÃO E SELEÇÃO 4 | K1: CRITÉRIOS DE AVALIAÇÃO E SELEÇÃO 5 | L1: CRITÉRIOS DE AVALIAÇÃO E SELEÇÃO 6 | M1: CRITÉRIOS DE AVALIAÇÃO E SELEÇÃO 7 | N1: CRITÉRIOS DE AVALIAÇÃO E SELEÇÃO 8 | O1: PONTUAÇÃO EXTRA - Pessoa com deficiência | P1: PONTUAÇÃO EXTRA - Mulher | Q1: PONTUAÇÃO EXTRA - Pessoa negra | R1: PONTUAÇÃO EXTRA -Indígena, matriz africana, de terreiro ou de povos ou de comunidades tradicionais | S1: PONTUAÇÃO EXTRA LGBTQIA+ | T1: PONTUAÇÃO EXTRA Idosa com 60 anos ou mais? | U1: NOTA POR AVALIADOR | V1: OBSERVAÇÃO | W1: NOTA PRELIMINAR | X1: STATUS
A2: PESSOA FÍSICA | B2: =HYPERLINK("https://mapas.cultura.gov.br/inscricao/2017112218","on-2017112218") -> on-2017112218 | C2: Sarandi | D2: PR | E2: SUL | F2: Avaliador 1 | G2: 20 | H2: 15 | I2: 15 | J2: 10 | K2: 8 | L2: 10 | M2: 10 | N2: 10 | O2: 0 | P2: 3 | Q2: 3 | R2: 3 | S2: 3 | T2: 0 | U2: =SUM(G2:T2) -> 110 | W2: =AVERAGE(U2,U3) -> 111 | X2: PRÉ-SELECIONADO
A3: PESSOA FÍSICA | B3: =HYPERLINK("https://mapas.cultura.gov.br/inscricao/2017112218","on-2017112218") -> on-2017112218 | C3: Sarandi | D3: PR | E3: SUL | F3: Avaliador 2 | G3: 20 | H3: 15 | I3: 15 | J3: 10 | K3: 10 | L3: 10 | M3: 10 | N3: 10 | O3: 0 | P3: 3 | Q3: 3 | R3: 3 | S3: 3 | T3: 0 | U3: 112 | W3: =W2 -> 111 | X3: =X2 -> PRÉ-SELECIONADO
A4: PESSOA FÍSICA | B4: =HYPERLINK("https://mapas.cultura.gov.br/inscricao/755168886","on-755168886") -> on-755168886 | C4: Porto Alegre | D4: RS | E4: SUL | F4: Avaliador 1 | G4: 20 | H4: 15 | I4: 15 | J4: 10 | K4: 10 | L4: 10 | M4: 10 | N4: 10 | O4: 0 | P4: 3 | Q4: 3 | R4: 0 | S4: 0 | T4: 0 | U4: 106 | W4: =AVERAGE(U4,U5) -> 100 | X4: PRÉ-SELECIONADO
A5: PESSOA FÍSICA | B5: =HYPERLINK("https://mapas.cultura.gov.br/inscricao/755168886","on-755168886") -> on-755168886 | C5: Porto Alegre | D5: RS | E5: SUL | F5: Avaliador 2 | G5: 20 | H5: 15 | I5: 15 | J5: 10 | K5: 8 | L5: 10 | M5: 10 | N5: 0 | O5: 0 | P5: 3 | Q5: 3 | R5: 0 | S5: 0 | T5: 0 | U5: 94 | W5: =W4 -> 100 | X5: =X4 -> PRÉ-SELECIONADO
A6: PESSOA FÍSICA | B6: =HYPERLINK("https://mapas.cultura.gov.br/inscricao/2025363912","on-2025363912") -> on-2025363912 | C6: Porto Alegre | D6: RS | E6: SUL | F6: Avaliador 1 | G6: 20 | H6: 15 | I6: 15 | J6: 10 | K6: 10 | L6: 10 | M6: 10 | N6: 8 | O6: 0 | P6: 3 | Q6: 3 | R6: 0 | S6: 0 | T6: 0 | U6: 104 | W6: =AVERAGE(U6,U7) -> 98 | X6: PRÉ-SELECIONADO
A7: PESSOA FÍSICA | B7: =HYPERLINK("https://mapas.cultura.gov.br/inscricao/2025363912","on-2025363912") -> on-2025363912 | C7: Porto Alegre | D7: RS | E7: SUL | F7: Avaliador 2 | G7: 20 | H7: 12 | I7: 15 | J7: 10 | K7: 8 | L7: 8 | M7: 8 | N7: 5 | O7: 0 | P7: 3 | Q7: 3 | R7: 0 | S7: 0 | T7: 0 | U7: 92 | W7: =W6 -> 98 | X7: =X6 -> PRÉ-SELECIONADO
A8: PESSOA FÍSICA | B8: =HYPERLINK("https://mapas.cultura.gov.br/inscricao/1378589867","on-1378589867") -> on-1378589867 | C8: Passo Fundo | D8: SC | E8: SUL | F8: Avaliador 1 | G8: 20 | H8: 12 | I8: 15 | J8: 8 | K8: 10 | L8: 10 | M8: 8 | N8: 8 | O8: 0 | P8: 3 | Q8: 3 | R8: 0 | S8: 3 | T8: 0 | U8: 100 | W8: =AVERAGE(U8,U9) -> 98 | X8: PRÉ-SELECIONADO
A9: PESSOA FÍSICA | B9: =HYPERLINK("https://mapas.cultura.gov.br/inscricao/1378589867","on-1378589867") -> on-1378589867 | C9: Passo Fundo | D9: SC | E9: SUL | F9: Avaliador 2 | G9: 20 | H9: 12 | I9: 15 | J9: 10 | K9: 10 | L9: 10 | M9: 10 | N9: 0 | O9: 0 | P9: 3 | Q9: 3 | R9: 0 | S9: 3 | T9: 0 | U9: 96 | W9: =W8 -> 98 | X9: =X8 -> PRÉ-SELECIONADO
A10: PESSOA FÍSICA | B10: =HYPERLINK("https://mapas.cultura.gov.br/inscricao/1853393625","on-1853393625") -> on-1853393625 | C10: Caxias do Sul | D10: RS | E10: SUL | F10: Avaliador 1 | G10: 20 | H10: 15 | I10: 15 | J10: 10 | K10: 10 | L10: 10 | M10: 10 | N10: 10 | O10: 0 | P10: 0 | Q10: 3 | R10: 0 | S10: 0 | T10: 0 | U10: 103 | W10: =AVERAGE(U10,U11) -> 97 | X10: PRÉ-SELECIONADO
A11: PESSOA FÍSICA | B11: =HYPERLINK("https://mapas.cultura.gov.br/inscricao/1853393625","on-1853393625") -> on-1853393625 | C11: Caxias do Sul | D11: RS | E11: SUL | F11: Avaliador 2 | G11: 10 | H11: 15 | I11: 15 | J11: 10 | K11: 10 | L11: 10 | M11: 10 | N11: 8 | O11: 0 | P11: 0 | Q11: 3 | R11: 0 | S11: 0 | T11: 0 | U11: 91 | W11: =W10 -> 97 | X11: =X10 -> PRÉ-SELECIONADO
A12: PESSOA FÍSICA | B12: =HYPERLINK("https://mapas.cultura.gov.br/inscricao/1716383580","on-1716383580") -> on-1716383580 | C12: Porto Alegre | D12: RS | E12: SUL | F12: Avaliador 1 | G12: 20 | H12: 15 | I12: 15 | J12: 10 | K12: 10 | L12: 10 | M12: 10 | N12: 10 | O12: 0 | P12: 0 | Q12: 0 | R12: 0 | S12: 0 | T12: 0 | U12: 100 | W12: =AVERAGE(U12,U13) -> 95.5 | X12: PRÉ-SELECIONADO
A13: PESSOA FÍSICA | B13: =HYPERLINK("https://mapas.cultura.gov.br/inscricao/1716383580","on-1716383580") -> on-1716383580 | C13: Porto Alegre | D13: RS | E13: SUL | F13: Avaliador 2 | G13: 20 | H13: 15 | I13: 15 | J13: 8 | K13: 5 | L13: 10 | M13: 10 | N13: 8 | O13: 0 | P13: 0 | Q13: 0 | R13: 0 | S13: 0 | T13: 0 | U13: 91 | W13: =W12 -> 95.5 | X13: =X12 -> PRÉ-SELECIONADO
A14: PESSOA FÍSICA | B14: =HYPERLINK("https://mapas.cultura.gov.br/inscricao/1879955830","on-1879955830") -> on-1879955830 | C14: Porto Alegre | D14: RS | E14: SUL | F14: Avaliador 1 | G14: 20 | H14: 15 | I14: 15 | J14: 10 | K14: 10 | L14: 10 | M14: 10 | N14: 5 | O14: 0 | P14: 3 | Q14: 0 | R14: 0 | S14: 0 | T14: 0 | U14: 98 | W14: =AVERAGE(U14,U15) -> 95 | X14: PRÉ-SELECIONADO
A15: PESSOA FÍSICA | B15: =HYPERLINK("https://mapas.cultura.gov.br/inscricao/1879955830","on-1879955830") -> on-1879955830 | C15: Porto Alegre | D15: RS | E15: SUL | F15: Avaliador 2 | G15: 20 | H15: 15 | I15: 15 | J15: 10 | K15: 8 | L15: 8 | M15: 8 | N15: 5 | O15: 0 | P15: 3 | Q15: 0 | R15: 0 | S15: 0 | T15: 0 | U15: 92 | W15: =W14 -> 95 | X15: =X14 -> PRÉ-SELECIONADO
A16: PESSOA FÍSICA | B16: =HYPERLINK("https://mapas.cultura.gov.br/inscricao/963031549","on-963031549") -> on-963031549 | C16: Rio Grande | D16: RS | E16: SUL | F16: Avaliador 1 | G16: 20 | H16: 15 | I16: 15 | J16: 8 | K16: 10 | L16: 10 | M16: 10 | N16: 10 | O16: 0 | P16: 0 | Q16: 3 | R16: 0 | S16: 0 | T16: 0 | U16: 101 | W16: =AVERAGE(U16,U17) -> 95 | X16: PRÉ-SELECIONADO
A17: PESSOA FÍSICA | B17: =HYPERLINK("https://mapas.cultura.gov.br/inscricao/963031549","on-963031549") -> on-963031549 | C17: Rio Grande | D17: RS | E17: SUL | F17: Avaliador 2 | G17: 20 | H17: 15 | I17: 15 | J17: 8 | K17: 8 | L17: 10 | M17: 10 | N17: 0 | O17: 0 | P17: 0 | Q17: 3 | R17: 0 | S17: 0 | T17: 0 | U17: 89 | W17: =W16 -> 95 | X17: =X16 -> PRÉ-SELECIONADO
A18: PESSOA FÍSICA | B18: =HYPERLINK("https://mapas.cultura.gov.br/inscricao/1354859499","on-1354859499") -> on-1354859499 | C18: Joinville | D18: SC | E18: SUL | F18: Avaliador 1 | G18: 20 | H18: 15 | I18: 12 | J18: 10 | K18: 10 | L18: 10 | M18: 8 | N18: 3 | O18: 0 | P18: 3 | Q18: 3 | R18: 0 | S18: 0 | T18: 0 | U18: 94 | W18: =AVERAGE(U18,U19) -> 95 | X18: PRÉ-SELECIONADO
A19: PESSOA FÍSICA | B19: =HYPERLINK("https://mapas.cultura.gov.br/inscricao/1354859499","on-1354859499") -> on-1354859499 | C19: Joinville | D19: SC | E19: SUL | F19: Avaliador 2 | G19: 20 | H19: 15 | I19: 15 | J19: 10 | K19: 10 | L19: 10 | M19: 10 | N19: 0 | O19: 0 | P19: 3 | Q19: 3 | R19: 0 | S19: 0 | T19: 0 | U19: 96 | W19: =W18 -> 95 | X19: =X18 -> PRÉ-SELECIONADO
A20: PESSOA FÍSICA | B20: =HYPERLINK("https://mapas.cultura.gov.br/inscricao/1570108855","on-1570108855") -> on-1570108855 | C20: Guarapuava | D20: PR | E20: SUL | F20: Avaliador 1 | G20: 15 | H20: 12 | I20: 12 | J20: 10 | K20: 8 | L20: 8 | M20: 8 | N20: 5 | O20: 0 | P20: 3 | Q20: 3 | R20: 3 | S20: 0 | T20: 0 | U20: 87 | W20: =AVERAGE(U20,U21) -> 95 | X20: PRÉ-SELECIONADO
A21: PESSOA FÍSICA | B21: =HYPERLINK("https://mapas.cultura.gov.br/inscricao/1570108855","on-1570108855") -> on-1570108855 | C21: Guarapuava | D21: PR | E21: SUL | F21: Avaliador 2 | G21: 20 | H21: 15 | I21: 15 | J21: 10 | K21: 8 | L21: 8 | M21: 10 | N21: 8 | O21: 0 | P21: 3 | Q21: 3 | R21: 3 | S21: 0 | T21: 0 | U21: 103 | W21: =W20 -> 95 | X21: =X20 -> PRÉ-SELECIONADO
A22: PESSOA FÍSICA | B22: =HYPERLINK("https://mapas.cultura.gov.br/inscricao/1217582893","on-1217582893") -> on-1217582893 | C22: Curitiba | D22: PR | E22: SUL | F22: Avaliador 1 | G22: 20 | H22: 12 | I22: 15 | J22: 8 | K22: 8 | L22: 10 | M22: 8 | N22: 5 | O22: 0 | P22: 0 | Q22: 3 | R22: 0 | S22: 3 | T22: 0 | U22: 92 | W22: =AVERAGE(U22,U23) -> 94.5 | X22: PRÉ-SELECIONADO
A23: PESSOA FÍSICA | B23: =HYPERLINK("https://mapas.cultura.gov.br/inscricao/1217582893","on-1217582893") -> on-1217582893 | C23: Curitiba | D23: PR | E23: SUL | F23: Avaliador 2 | G23: 20 | H23: 12 | I23: 15 | J23: 8 | K23: 10 | L23: 10 | M23: 8 | N23: 8 | O23: 0 | P23: 0 | Q23: 3 | R23: 0 | S23: 3 | T23: 0 | U23: 97 | W23: =W22 -> 94.5 | X23: =X22 -> PRÉ-SELECIONADO
A24: PESSOA FÍSICA | B24: =HYPERLINK("https://mapas.cultura.gov.br/inscricao/1447813119","on-1447813119") -> on-1447813119 | C24: Caxias do Sul | D24: RS | E24: SUL | F24: Avaliador 1 | G24: 20 | H24: 15 | I24: 15 | J24: 8 | K24: 10 | L24: 10 | M24: 10 | N24: 10 | O24: 0 | P24: 0 | Q24: 3 | R24: 0 | S24: 0 | T24: 0 | U24: 101 | W24: =AVERAGE(U24,U25) -> 94 | X24: PRÉ-SELECIONADO
A25: PESSOA FÍSICA | B25: =HYPERLINK("https://mapas.cultura.gov.br/inscricao/1447813119","on-1447813119") -> on-1447813119 | C25: Caxias do Sul | D25: RS | E25: SUL | F25: Avaliador 2 | G25: 20 | H25: 15 | I25: 15 | J25: 8 | K25: 10 | L25: 8 | M25: 8 | N25: 0 | O25: 0 | P25: 0 | Q25: 3 | R25: 0 | S25: 0 | T25: 0 | U25: 87 | W25: =W24 -> 94 | X25: =X24 -> PRÉ-SELECIONADO
A26: PESSOA FÍSICA | B26: =HYPERLINK("https://mapas.cultura.gov.br/inscricao/307278664","on-307278664") -> on-307278664 | C26: Bento Gonçalves | D26: RS | E26: SUL | F26: Avaliador 1 | G26: 20 | H26: 15 | I26: 15 | J26: 10 | K26: 10 | L26: 10 | M26: 10 | N26: 10 | O26: 0 | P26: 0 | Q26: 0 | R26: 0 | S26: 0 | T26: 0 | U26: 100 | W26: =AVERAGE(U26,U27) -> 94 | X26: PRÉ-SELECIONADO
A27: PESSOA FÍSICA | B27: =HYPERLINK("https://mapas.cultura.gov.br/inscricao/307278664","on-307278664") -> on-307278664 | C27: Bento Gonçalves | D27: RS | E27: SUL | F27: Avaliador 2 | G27: 20 | H27: 15 | I27: 15 | J27: 8 | K27: 10 | L27: 10 | M27: 10 | N27: 0 | O27: 0 | P27: 0 | Q27: 0 | R27: 0 | S27: 0 | T27: 0 | U27: 88 | W27: =W26 -> 94 | X27: =X26 -> PRÉ-SELECIONADO
A28: PESSOA FÍSICA | B28: =HYPERLINK("https://mapas.cultura.gov.br/inscricao/772705688","on-772705688") -> on-772705688 | C28: Criciúma | D28: SC | E28: SUL | F28: Avaliador 1 | G28: 20 | H28: 15 | I28: 15 | J28: 5 | K28: 10 | L28: 10 | M28: 10 | N28: 5 | O28: 0 | P28: 0 | Q28: 3 | R28: 0 | S28: 0 | T28: 0 | U28: 93 | W28: =AVERAGE(U28,U29) -> 93 | X28: PRÉ-SELECIONADO
A29: PESSOA FÍSICA | B29: =HYPERLINK("https://mapas.cultura.gov.br/inscricao/772705688","on-772705688") -> on-772705688 | C29: Criciúma | D29: SC | E29: SUL | F29: Avaliador 2 | G29: 20 | H29: 15 | I29: 15 | J29: 5 | K29: 10 | L29: 10 | M29: 10 | N29: 5 | O29: 0 | P29: 0 | Q29: 3 | R29: 0 | S29: 0 | T29: 0 | U29: 93 | W29: =W28 -> 93 | X29: =X28 -> PRÉ-SELECIONADO
A30: PESSOA FÍSICA | B30: =HYPERLINK("https://mapas.cultura.gov.br/inscricao/1557843055","on-1557843055") -> on-1557843055 | C30: Florianópolis | D30: SC | E30: SUL | F30: Avaliador 1 | G30: 20 | H30: 15 | I30: 12 | J30: 10 | K30: 8 | L30: 8 | M30: 10 | N30: 3 | O30: 0 | P30: 3 | Q30: 0 | R30: 0 | S30: 0 | T30: 0 | U30: 89 | W30: =AVERAGE(U30,U31) -> 92.5 | X30: PRÉ-SELECIONADO
A31: PESSOA FÍSICA | B31: =HYPERLINK("https://mapas.cultura.gov.br/inscricao/1557843055","on-1557843055") -> on-1557843055 | C31: Floriianópolis | D31: SC | E31: SUL | F31: Avaliador 2 | G31: 20 | H31: 15 | I31: 15 | J31: 10 | K31: 10 | L31: 10 | M31: 10 | N31: 3 | O31: 0 | P31: 3 | Q31: 0 | R31: 0 | S31: 0 | T31: 0 | U31: 96 | W31: =W30 -> 92.5 | X31: =X30 -> PRÉ-SELECIONADO
A32: PESSOA FÍSICA | B32: =HYPERLINK("https://mapas.cultura.gov.br/inscricao/1998637002","on-1998637002") -> on-1998637002 | C32: Pelotas | D32: RS | E32: SUL | F32: Avaliador 1 | G32: 20 | H32: 15 | I32: 12 | J32: 10 | K32: 10 | L32: 10 | M32: 10 | N32: 5 | O32: 0 | P32: 3 | Q32: 0 | R32: 0 | S32: 3 | T32: 0 | U32: 98 | W32: =AVERAGE(U32,U33) -> 92.5 | X32: PRÉ-SELECIONADO
A33: PESSOA FÍSICA | B33: =HYPERLINK("https://mapas.cultura.gov.br/inscricao/1998637002","on-1998637002") -> on-1998637002 | C33: Pelotas | D33: RS | E33: SUL | F33: Avaliador 2 | G33: 20 | H33: 8 | I33: 15 | J33: 10 | K33: 10 | L33: 10 | M33: 8 | N33: 0 | O33: 0 | P33: 3 | Q33: 0 | R33: 0 | S33: 3 | T33: 0 | U33: 87 | W33: =W32 -> 92.5 | X33: =X32 -> PRÉ-SELECIONADO
A34: PESSOA FÍSICA | B34: =HYPERLINK("https://mapas.cultura.gov.br/inscricao/1148047448","on-1148047448") -> on-1148047448 | C34: Porto Alegre | D34: RS | E34: SUL | F34: Avaliador 1 | G34: 15 | H34: 12 | I34: 15 | J34: 5 | K34: 8 | L34: 10 | M34: 10 | N34: 10 | O34: 0 | P34: 0 | Q34: 3 | R34: 3 | S34: 0 | T34: 0 | U34: 91 | W34: =AVERAGE(U34,U35) -> 92.5 | X34: PRÉ-SELECIONADO
A35: PESSOA FÍSICA | B35: =HYPERLINK("https://mapas.cultura.gov.br/inscricao/1148047448","on-1148047448") -> on-1148047448 | C35: Porto Alegre | D35: RS | E35: SUL | F35: Avaliador 2 | G35: 20 | H35: 15 | I35: 15 | J35: 8 | K35: 10 | L35: 10 | M35: 10 | N35: 0 | O35: 0 | P35: 0 | Q35: 3 | R35: 3 | S35: 0 | T35: 0 | U35: 94 | W35: =W34 -> 92.5 | X35: =X34 -> PRÉ-SELECIONADO
A36: PESSOA FÍSICA | B36: =HYPERLINK("https://mapas.cultura.gov.br/inscricao/1516944625","on-1516944625") -> on-1516944625 | C36: Curitiba | D36: PR | E36: SUL | F36: Avaliador 1 | G36: 20 | H36: 15 | I36: 15 | J36: 5 | K36: 10 | L36: 10 | M36: 3 | N36: 10 | O36: 0 | P36: 0 | Q36: 3 | R36: 0 | S36: 0 | T36: 0 | U36: 91 | W36: =AVERAGE(U36,U37) -> 91 | X36: PRÉ-SELECIONADO
A37: PESSOA FÍSICA | B37: =HYPERLINK("https://mapas.cultura.gov.br/inscricao/1516944625","on-1516944625") -> on-1516944625 | C37: Curitiba | D37: PR | E37: SUL | F37: Avaliador 2 | G37: 20 | H37: 15 | I37: 15 | J37: 5 | K37: 10 | L37: 10 | M37: 3 | N37: 10 | O37: 0 | P37: 0 | Q37: 3 | R37: 0 | S37: 0 | T37: 0 | U37: 91 | W37: =W36 -> 91 | X37: =X36 -> PRÉ-SELECIONADO
A38: PESSOA FÍSICA | B38: =HYPERLINK("https://mapas.cultura.gov.br/inscricao/306623704","on-306623704") -> on-306623704 | C38: Curitiba | D38: PR | E38: SUL | F38: Avaliador 1 | G38: 20 | H38: 15 | I38: 15 | J38: 3 | K38: 10 | L38: 10 | M38: 10 | N38: 5 | O38: 0 | P38: 0 | Q38: 3 | R38: 0 | S38: 0 | T38: 0 | U38: 91 | W38: =AVERAGE(U38,U39) -> 91 | X38: PRÉ-SELECIONADO
A39: PESSOA FÍSICA | B39: =HYPERLINK("https://mapas.cultura.gov.br/inscricao/306623704","on-306623704") -> on-306623704 | C39: Curitiba | D39: PR | E39: SUL | F39: Avaliador 2 | G39: 20 | H39: 15 | I39: 15 | J39: 3 | K39: 10 | L39: 10 | M39: 10 | N39: 5 | O39: 0 | P39: 0 | Q39: 3 | R39: 0 | S39: 0 | T39: 0 | U39: 91 | W39: =W38 -> 91 | X39: =X38 -> PRÉ-SELECIONADO
A40: PESSOA FÍSICA | B40: =HYPERLINK("https://mapas.cultura.gov.br/inscricao/Y39","on-942375111") -> on-942375111 | C40: Criciúma | D40: SC | E40: SUL | F40: Avaliador 1 | G40: 20 | H40: 15 | I40: 15 | J40: 5 | K40: 8 | L40: 10 | M40: 10 | N40: 5 | O40: 0 | P40: 0 | Q40: 3 | R40: 0 | S40: 0 | T40: 0 | U40: 91 | W40: =AVERAGE(U40,U41) -> 91 | X40: PRÉ-SELECIONADO
A41: PESSOA FÍSICA | B41: =HYPERLINK("https://mapas.cultura.gov.br/inscricao/1490996214","on-1490996214") -> on-1490996214 | C41: Florianópolis | D41: SC | E41: SUL | F41: Avaliador 2 | G41: 20 | H41: 15 | I41: 15 | J41: 5 | K41: 8 | L41: 10 | M41: 10 | N41: 5 | O41: 0 | P41: 0 | Q41: 3 | R41: 0 | S41: 0 | T41: 0 | U41: 91 | W41: =W40 -> 91 | X41: =X40 -> PRÉ-SELECIONADO
A42: PESSOA FÍSICA | B42: =HYPERLINK("https://mapas.cultura.gov.br/inscricao/280231301","on-280231301") -> on-280231301 | C42: Itajaí | D42: SC | E42: SUL | F42: Avaliador 1 | G42: 20 | H42: 15 | I42: 15 | J42: 5 | K42: 10 | L42: 10 | M42: 10 | N42: 5 | O42: 0 | P42: 0 | Q42: 0 | R42: 0 | S42: 0 | T42: 0 | U42: 90 | W42: =AVERAGE(U42,U43) -> 90.5 | X42: PRÉ-SELECIONADO
A43: PESSOA FÍSICA | B43: =HYPERLINK("https://mapas.cultura.gov.br/inscricao/604305343","on-604305343") -> on-604305343 | C43: Florianópolis | D43: SC | E43: SUL | F43: Avaliador 2 | G43: 20 | H43: 15 | I43: 15 | J43: 5 | K43: 8 | L43: 10 | M43: 10 | N43: 5 | O43: 0 | P43: 0 | Q43: 3 | R43: 0 | S43: 0 | T43: 0 | U43: 91 | W43: =W42 -> 90.5 | X43: =X42 -> PRÉ-SELECIONADO
A44: PESSOA FÍSICA | B44: =HYPERLINK("https://mapas.cultura.gov.br/inscricao/944094276","on-944094276") -> on-944094276 | C44: Londrina | D44: PR | E44: SUL | F44: Avaliador 1 | G44: 20 | H44: 15 | I44: 12 | J44: 10 | K44: 10 | L44: 10 | M44: 5 | N44: 0 | O44: 0 | P44: 3 | Q44: 3 | R44: 0 | S44: 3 | T44: 0 | U44: 91 | W44: =AVERAGE(U44,U45) -> 90.5 | X44: PRÉ-SELECIONADO
A45: PESSOA FÍSICA | B45: =HYPERLINK("https://mapas.cultura.gov.br/inscricao/944094276","on-944094276") -> on-944094276 | C45: Londrina | D45: PR | E45: SUL | F45: Avaliador 2 | G45: 15 | H45: 15 | I45: 12 | J45: 10 | K45: 8 | L45: 10 | M45: 8 | N45: 3 | O45: 0 | P45: 3 | Q45: 3 | R45: 0 | S45: 3 | T45: 0 | U45: 90 | W45: =W44 -> 90.5 | X45: =X44 -> PRÉ-SELECIONADO
A46: PESSOA FÍSICA | B46: =HYPERLINK("https://mapas.cultura.gov.br/inscricao/742314866","on-742314866") -> on-742314866 | C46: Cianorte | D46: PR | E46: SUL | F46: Avaliador 1 | G46: 20 | H46: 15 | I46: 15 | J46: 8 | K46: 10 | L46: 10 | M46: 8 | N46: 5 | O46: 0 | P46: 0 | Q46: 3 | R46: 0 | S46: 0 | T46: 0 | U46: 94 | W46: =AVERAGE(U46,U47) -> 90 | X46: PRÉ-SELECIONADO
A47: PESSOA FÍSICA | B47: =HYPERLINK("https://mapas.cultura.gov.br/inscricao/742314866","on-742314866") -> on-742314866 | C47: Cianorte | D47: PR | E47: SUL | F47: Avaliador 2 | G47: 20 | H47: 15 | I47: 15 | J47: 5 | K47: 5 | L47: 10 | M47: 10 | N47: 3 | O47: 0 | P47: 0 | Q47: 3 | R47: 0 | S47: 0 | T47: 0 | U47: 86 | W47: =W46 -> 90 | X47: =X46 -> PRÉ-SELECIONADO
A48: PESSOA FÍSICA | B48: =HYPERLINK("https://mapas.cultura.gov.br/inscricao/1521715860","on-1521715860") -> on-1521715860 | C48: Londrina | D48: PR | E48: SUL | F48: Avaliador 1 | G48: 20 | H48: 15 | I48: 15 | J48: 5 | K48: 10 | L48: 10 | M48: 8 | N48: 5 | O48: 0 | P48: 0 | Q48: 3 | R48: 0 | S48: 0 | T48: 0 | U48: 91 | W48: =AVERAGE(U48,U49) -> 90 | X48: PRÉ-SELECIONADO
A49: PESSOA FÍSICA | B49: =HYPERLINK("https://mapas.cultura.gov.br/inscricao/1521715860","on-1521715860") -> on-1521715860 | C49: Londrina | D49: PR | E49: SUL | F49: Avaliador 2 | G49: 20 | H49: 15 | I49: 15 | J49: 3 | K49: 10 | L49: 10 | M49: 8 | N49: 5 | O49: 0 | P49: 0 | Q49: 3 | R49: 0 | S49: 0 | T49: 0 | U49: 89 | W49: =W48 -> 90 | X49: =X48 -> PRÉ-SELECIONADO
A50: PESSOA FÍSICA | B50: =HYPERLINK("https://mapas.cultura.gov.br/inscricao/1539695549","on-1539695549") -> on-1539695549 | C50: Curitiba | D50: PR | E50: SUL | F50: Avaliador 1 | G50: 20 | H50: 15 | I50: 15 | J50: 5 | K50: 10 | L50: 8 | M50: 8 | N50: 0 | O50: 0 | P50: 0 | Q50: 3 | R50: 0 | S50: 0 | T50: 0 | U50: 84 | W50: =AVERAGE(U50,U51) -> 90 | X50: PRÉ-SELECIONADO
A51: PESSOA FÍSICA | B51: =HYPERLINK("https://mapas.cultura.gov.br/inscricao/1539695549","on-1539695549") -> on-1539695549 | C51: Curitiba | D51: PR | E51: SUL | F51: Avaliador 2 | G51: 20 | H51: 15 | I51: 15 | J51: 5 | K51: 10 | L51: 10 | M51: 8 | N51: 10 | O51: 0 | P51: 0 | Q51: 3 | R51: 0 | S51: 0 | T51: 0 | U51: 96 | W51: =W50 -> 90 | X51: =X50 -> PRÉ-SELECIONADO
A52: PESSOA FÍSICA | B52: =HYPERLINK("https://mapas.cultura.gov.br/inscricao/1372382243","on-1372382243") -> on-1372382243 | C52: Foz do Iguaçu | D52: PR | E52: SUL | F52: Avaliador 1 | G52: 20 | H52: 15 | I52: 15 | J52: 8 | K52: 10 | L52: 10 | M52: 8 | N52: 0 | O52: 0 | P52: 0 | Q52: 0 | R52: 0 | S52: 3 | T52: 0 | U52: 89 | W52: =AVERAGE(U52,U53) -> 90 | X52: PRÉ-SELECIONADO
A53: PESSOA FÍSICA | B53: =HYPERLINK("https://mapas.cultura.gov.br/inscricao/1372382243","on-1372382243") -> on-1372382243 | C53: Foz do Iguaçu | D53: PR | E53: SUL | F53: Avaliador 2 | G53: 20 | H53: 15 | I53: 15 | J53: 8 | K53: 10 | L53: 10 | M53: 10 | N53: 0 | O53: 0 | P53: 0 | Q53: 0 | R53: 0 | S53: 3 | T53: 0 | U53: 91 | W53: =W52 -> 90 | X53: =X52 -> PRÉ-SELECIONADO
A54: PESSOA FÍSICA | B54: =HYPERLINK("https://mapas.cultura.gov.br/inscricao/2100924353","on-2100924353") -> on-2100924353 | C54: Araucária | D54: PR | E54: SUL | F54: Avaliador 1 | G54: 20 | H54: 15 | I54: 12 | J54: 10 | K54: 8 | L54: 8 | M54: 8 | N54: 3 | O54: 0 | P54: 3 | Q54: 0 | R54: 0 | S54: 3 | T54: 0 | U54: 90 | W54: =AVERAGE(U54,U55) -> 90 | X54: PRÉ-SELECIONADO
A55: PESSOA FÍSICA | B55: =HYPERLINK("https://mapas.cultura.gov.br/inscricao/2100924353","on-2100924353") -> on-2100924353 | C55: Araucária | D55: PR | E55: SUL | F55: Avaliador 2 | G55: 20 | H55: 15 | I55: 15 | J55: 10 | K55: 3 | L55: 10 | M55: 8 | N55: 3 | O55: 0 | P55: 3 | Q55: 0 | R55: 0 | S55: 3 | T55: 0 | U55: 90 | W55: =W54 -> 90 | X55: =X54 -> PRÉ-SELECIONADO
A56: PESSOA FÍSICA | B56: =HYPERLINK("https://mapas.cultura.gov.br/inscricao/144368267","on-144368267") -> on-144368267 | C56: Novo Hamburgo | D56: RS | E56: SUL | F56: Avaliador 1 | G56: 20 | H56: 15 | I56: 12 | J56: 8 | K56: 8 | L56: 10 | M56: 10 | N56: 8 | O56: 0 | P56: 0 | Q56: 3 | R56: 3 | S56: 0 | T56: 0 | U56: 97 | W56: =AVERAGE(U56,U57) -> 90 | X56: PRÉ-SELECIONADO
A57: PESSOA FÍSICA | B57: =HYPERLINK("https://mapas.cultura.gov.br/inscricao/1410659592","on-1410659592") -> on-1410659592 | C57: Novo Hamburgo | D57: RS | E57: SUL | F57: Avaliador 2 | G57: 20 | H57: 15 | I57: 15 | J57: 3 | K57: 5 | L57: 8 | M57: 8 | N57: 3 | O57: 0 | P57: 0 | Q57: 3 | R57: 3 | S57: 0 | T57: 0 | U57: 83 | W57: =W56 -> 90 | X57: =X56 -> PRÉ-SELECIONADO
A58: PESSOA FÍSICA | B58: =HYPERLINK("https://mapas.cultura.gov.br/inscricao/908040550","on-908040550") -> on-908040550 | C58: Guaiba | D58: RS | E58: SUL | F58: Avaliador 1 | G58: 20 | H58: 15 | I58: 15 | J58: 10 | K58: 8 | L58: 10 | M58: 10 | N58: 10 | O58: 0 | P58: 0 | Q58: 3 | R58: 0 | S58: 0 | T58: 0 | U58: 101 | W58: =AVERAGE(U58,U59) -> 89.5 | X58: CLASSIFICADO
A59: PESSOA FÍSICA | B59: =HYPERLINK("https://mapas.cultura.gov.br/inscricao/908040550","on-908040550") -> on-908040550 | C59: Guaiba | D59: RS | E59: SUL | F59: Avaliador 2 | G59: 20 | H59: 12 | I59: 15 | J59: 0 | K59: 10 | L59: 10 | M59: 8 | N59: 0 | O59: 0 | P59: 0 | Q59: 3 | R59: 0 | S59: 0 | T59: 0 | U59: 78 | W59: =W58 -> 89.5 | X59: =X58 -> CLASSIFICADO
A60: PESSOA FÍSICA | B60: =HYPERLINK("https://mapas.cultura.gov.br/inscricao/1778288671","on-1778288671") -> on-1778288671 | C60: Porto Alegre | D60: RS | E60: SUL | F60: Avaliador 1 | G60: 20 | H60: 8 | I60: 15 | J60: 8 | K60: 10 | L60: 10 | M60: 10 | N60: 5 | O60: 0 | P60: 0 | Q60: 3 | R60: 0 | S60: 0 | T60: 3 | U60: 92 | W60: =AVERAGE(U60,U61) -> 89.5 | X60: CLASSIFICADO
A61: PESSOA FÍSICA | B61: =HYPERLINK("https://mapas.cultura.gov.br/inscricao/1778288671","on-1778288671") -> on-1778288671 | C61: Porto Alegre | D61: RS | E61: SUL | F61: Avaliador 2 | G61: 20 | H61: 15 | I61: 15 | J61: 3 | K61: 8 | L61: 10 | M61: 10 | N61: 0 | O61: 0 | P61: 0 | Q61: 3 | R61: 0 | S61: 0 | T61: 3 | U61: 87 | W61: =W60 -> 89.5 | X61: =X60 -> CLASSIFICADO
A62: PESSOA FÍSICA | B62: =HYPERLINK("https://mapas.cultura.gov.br/inscricao/1120659138","on-1120659138") -> on-1120659138 | C62: Porto Alegre | D62: RS | E62: SUL | F62: Avaliador 1 | G62: 20 | H62: 15 | I62: 15 | J62: 8 | K62: 8 | L62: 10 | M62: 10 | N62: 10 | O62: 0 | P62: 0 | Q62: 3 | R62: 3 | S62: 0 | T62: 0 | U62: 102 | W62: =AVERAGE(U62,U63) -> 89.5 | X62: CLASSIFICADO
A63: PESSOA FÍSICA | B63: =HYPERLINK("https://mapas.cultura.gov.br/inscricao/1120659138","on-1120659138") -> on-1120659138 | C63: Porto Alegre | D63: RS | E63: SUL | F63: Avaliador 2 | G63: 15 | H63: 15 | I63: 15 | J63: 0 | K63: 8 | L63: 10 | M63: 8 | N63: 0 | O63: 0 | P63: 0 | Q63: 3 | R63: 3 | S63: 0 | T63: 0 | U63: 77 | W63: =W62 -> 89.5 | X63: =X62 -> CLASSIFICADO
A64: PESSOA FÍSICA | B64: =HYPERLINK("https://mapas.cultura.gov.br/inscricao/1767364875","on-1767364875") -> on-1767364875 | C64: Pelotas | D64: RS | E64: SUL | F64: Avaliador 1 | G64: 15 | H64: 15 | I64: 15 | J64: 8 | K64: 10 | L64: 10 | M64: 10 | N64: 10 | O64: 0 | P64: 0 | Q64: 3 | R64: 3 | S64: 0 | T64: 0 | U64: 99 | W64: =AVERAGE(U64,U65) -> 89 | X64: CLASSIFICADO
A65: PESSOA FÍSICA | B65: =HYPERLINK("https://mapas.cultura.gov.br/inscricao/1767364875","on-1767364875") -> on-1767364875 | C65: Pelotas | D65: RS | E65: SUL | F65: Avaliador 2 | G65: 15 | H65: 12 | I65: 15 | J65: 3 | K65: 10 | L65: 10 | M65: 8 | N65: 0 | O65: 0 | P65: 0 | Q65: 3 | R65: 3 | S65: 0 | T65: 0 | U65: 79 | W65: =W64 -> 89 | X65: =X64 -> CLASSIFICADO
A66: PESSOA FÍSICA | B66: =HYPERLINK("https://mapas.cultura.gov.br/inscricao/1312155218","on-1312155218") -> on-1312155218 | C66: Porto Alegre | D66: RS | E66: SUL | F66: Avaliador 1 | G66: 20 | H66: 15 | I66: 15 | J66: 5 | K66: 10 | L66: 10 | M66: 10 | N66: 8 | O66: 0 | P66: 0 | Q66: 3 | R66: 0 | S66: 0 | T66: 0 | U66: =SUM(G66:T66) -> 96 | W66: =AVERAGE(U66,U67) -> 88.5 | X66: CLASSIFICADO
A67: PESSOA FÍSICA | B67: =HYPERLINK("https://mapas.cultura.gov.br/inscricao/1312155218","on-1312155218") -> on-1312155218 | C67: Porto Alegre | D67: RS | E67: SUL | F67: Avaliador 2 | G67: 20 | H67: 15 | I67: 15 | J67: 0 | K67: 8 | L67: 10 | M67: 10 | N67: 0 | O67: 0 | P67: 0 | Q67: 3 | R67: 0 | S67: 0 | T67: 0 | U67: 81 | W67: =W66 -> 88.5 | X67: =X66 -> CLASSIFICADO
A68: PESSOA FÍSICA | B68: =HYPERLINK("https://mapas.cultura.gov.br/inscricao/292671418","on-292671418") -> on-292671418 | C68: Porto Alegre | D68: RS | E68: SUL | F68: Avaliador 1 | G68: 20 | H68: 15 | I68: 15 | J68: 5 | K68: 8 | L68: 10 | M68: 8 | N68: 5 | O68: 0 | P68: 0 | Q68: 3 | R68: 0 | S68: 0 | T68: 0 | U68: 89 | W68: =AVERAGE(U68,U69) -> 88.5 | X68: CLASSIFICADO
A69: PESSOA FÍSICA | B69: =HYPERLINK("https://mapas.cultura.gov.br/inscricao/292671418","on-292671418") -> on-292671418 | C69: Porto Alegre | D69: RS | E69: SUL | F69: Avaliador 2 | G69: 20 | H69: 15 | I69: 15 | J69: 5 | K69: 10 | L69: 10 | M69: 10 | N69: 0 | O69: 0 | P69: 0 | Q69: 3 | R69: 0 | S69: 0 | T69: 0 | U69: 88 | W69: =W68 -> 88.5 | X69: =X68 -> CLASSIFICADO
A70: PESSOA FÍSICA | B70: =HYPERLINK("https://mapas.cultura.gov.br/inscricao/824019987","on-824019987") -> on-824019987 | C70: Rio Grande | D70: RS | E70: SUL | F70: Avaliador 1 | G70: 20 | H70: 12 | I70: 15 | J70: 5 | K70: 10 | L70: 10 | M70: 10 | N70: 8 | O70: 3 | P70: 0 | Q70: 3 | R70: 0 | S70: 0 | T70: 0 | U70: 96 | W70: =AVERAGE(U70,U71) -> 88.5 | X70: CLASSIFICADO
A71: PESSOA FÍSICA | B71: =HYPERLINK("https://mapas.cultura.gov.br/inscricao/824019987","on-824019987") -> on-824019987 | C71: Rio Grande | D71: RS | E71: SUL | F71: Avaliador 2 | G71: 15 | H71: 15 | I71: 15 | J71: 0 | K71: 10 | L71: 10 | M71: 10 | N71: 0 | O71: 3 | P71: 0 | Q71: 3 | R71: 0 | S71: 0 | T71: 0 | U71: 81 | W71: =W70 -> 88.5 | X71: =X70 -> CLASSIFICADO
A72: PESSOA FÍSICA | B72: =HYPERLINK("https://mapas.cultura.gov.br/inscricao/225805801","on-225805801") -> on-225805801 | C72: Montenegro | D72: RS | E72: SUL | F72: Avaliador 1 | G72: 15 | H72: 12 | I72: 15 | J72: 3 | K72: 8 | L72: 10 | M72: 8 | N72: 8 | O72: 0 | P72: 0 | Q72: 3 | R72: 3 | S72: 0 | T72: 0 | U72: 85 | W72: =AVERAGE(U72,U73) -> 88 | X72: CLASSIFICADO
A73: PESSOA FÍSICA | B73: =HYPERLINK("https://mapas.cultura.gov.br/inscricao/225805801","on-225805801") -> on-225805801 | C73: Montenegro | D73: RS | E73: SUL | F73: Avaliador 2 | G73: 20 | H73: 15 | I73: 15 | J73: 5 | K73: 10 | L73: 10 | M73: 10 | N73: 0 | O73: 0 | P73: 0 | Q73: 3 | R73: 3 | S73: 0 | T73: 0 | U73: 91 | W73: =W72 -> 88 | X73: =X72 -> CLASSIFICADO
A74: PESSOA FÍSICA | B74: =HYPERLINK("https://mapas.cultura.gov.br/inscricao/1943248782","on-1943248782") -> on-1943248782 | C74: Pelotas | D74: RS | E74: SUL | F74: Avaliador 1 | G74: 20 | H74: 15 | I74: 12 | J74: 10 | K74: 10 | L74: 10 | M74: 10 | N74: 10 | O74: 0 | P74: 0 | Q74: 3 | R74: 0 | S74: 0 | T74: 0 | U74: 100 | W74: =AVERAGE(U74,U75) -> 88 | X74: CLASSIFICADO
A75: PESSOA FÍSICA | B75: =HYPERLINK("https://mapas.cultura.gov.br/inscricao/1943248782","on-1943248782") -> on-1943248782 | C75: Pelotas | D75: RS | E75: SUL | F75: Avaliador 2 | G75: 15 | H75: 12 | I75: 12 | J75: 8 | K75: 8 | L75: 8 | M75: 10 | N75: 0 | O75: 0 | P75: 0 | Q75: 3 | R75: 0 | S75: 0 | T75: 0 | U75: 76 | W75: =W74 -> 88 | X75: =X74 -> CLASSIFICADO
A76: PESSOA FÍSICA | B76: =HYPERLINK("https://mapas.cultura.gov.br/inscricao/683193668","on-683193668") -> on-683193668 | C76: Esteio | D76: RS | E76: SUL | F76: Avaliador 1 | G76: 15 | H76: 15 | I76: 15 | J76: 5 | K76: 10 | L76: 10 | M76: 10 | N76: 10 | O76: 0 | P76: 0 | Q76: 0 | R76: 0 | S76: 0 | T76: 0 | U76: 90 | W76: =AVERAGE(U76,U77) -> 88 | X76: CLASSIFICADO
A77: PESSOA FÍSICA | B77: =HYPERLINK("https://mapas.cultura.gov.br/inscricao/683193668","on-683193668") -> on-683193668 | C77: Esteio | D77: RS | E77: SUL | F77: Avaliador 2 | G77: 15 | H77: 15 | I77: 15 | J77: 10 | K77: 8 | L77: 10 | M77: 10 | N77: 3 | O77: 0 | P77: 0 | Q77: 0 | R77: 0 | S77: 0 | T77: 0 | U77: 86 | W77: =W76 -> 88 | X77: =X76 -> CLASSIFICADO
A78: PESSOA FÍSICA | B78: =HYPERLINK("https://mapas.cultura.gov.br/inscricao/1349616999","on-1349616999") -> on-1349616999 | C78: Caxias do Sul | D78: RS | E78: SUL | F78: Avaliador 1 | G78: 15 | H78: 15 | I78: 15 | J78: 5 | K78: 10 | L78: 10 | M78: 10 | N78: 8 | O78: 0 | P78: 0 | Q78: 3 | R78: 0 | S78: 0 | T78: 0 | U78: 91 | W78: =AVERAGE(U78,U79) -> 87 | X78: CLASSIFICADO
A79: PESSOA FÍSICA | B79: =HYPERLINK("https://mapas.cultura.gov.br/inscricao/1349616999","on-1349616999") -> on-1349616999 | C79: Caxias do Sul | D79: RS | E79: SUL | F79: Avaliador 2 | G79: 15 | H79: 15 | I79: 15 | J79: 5 | K79: 10 | L79: 10 | M79: 10 | N79: 0 | O79: 0 | P79: 0 | Q79: 3 | R79: 0 | S79: 0 | T79: 0 | U79: 83 | W79: =W78 -> 87 | X79: =X78 -> CLASSIFICADO
A80: PESSOA FÍSICA | B80: =HYPERLINK("https://mapas.cultura.gov.br/inscricao/604305343","on-604305343") -> on-604305343 | C80: Florianópolis | D80: SC | E80: SUL | F80: Avaliador 1 | G80: 20 | H80: 15 | I80: 12 | J80: 5 | K80: 8 | L80: 10 | M80: 5 | N80: 5 | O80: 0 | P80: 0 | Q80: 3 | R80: 0 | S80: 0 | T80: 0 | U80: 83 | W80: =AVERAGE(U80,U81) -> 86 | X80: CLASSIFICADO
A81: PESSOA FÍSICA | B81: =HYPERLINK("https://mapas.cultura.gov.br/inscricao/673115039","on-673115039") -> on-673115039 | C81: Criciúma | D81: SC | E81: SUL | F81: Avaliador 2 | G81: 20 | H81: 15 | I81: 15 | J81: 8 | K81: 5 | L81: 10 | M81: 10 | N81: 0 | O81: 0 | P81: 3 | Q81: 3 | R81: 0 | S81: 0 | T81: 0 | U81: 89 | W81: =W80 -> 86 | X81: =X80 -> CLASSIFICADO
A82: PESSOA FÍSICA | B82: =HYPERLINK("https://mapas.cultura.gov.br/inscricao/126063013","on-126063013") -> on-126063013 | C82: Pelotas | D82: RS | E82: SUL | F82: Avaliador 1 | G82: 15 | H82: 12 | I82: 15 | J82: 10 | K82: 8 | L82: 10 | M82: 10 | N82: 10 | O82: 0 | P82: 3 | Q82: 3 | R82: 0 | S82: 0 | T82: 0 | U82: 96 | W82: =AVERAGE(U82,U83) -> 85.5 | X82: CLASSIFICADO
A83: PESSOA FÍSICA | B83: =HYPERLINK("https://mapas.cultura.gov.br/inscricao/126063013","on-126063013") -> on-126063013 | C83: Pelotas | D83: RS | E83: SUL | F83: Avaliador 2 | G83: 20 | H83: 0 | I83: 15 | J83: 10 | K83: 8 | L83: 8 | M83: 8 | N83: 0 | O83: 0 | P83: 3 | Q83: 3 | R83: 0 | S83: 0 | T83: 0 | U83: 75 | W83: =W82 -> 85.5 | X83: =X82 -> CLASSIFICADO
A84: PESSOA FÍSICA | B84: =HYPERLINK("https://mapas.cultura.gov.br/inscricao/681952340","on-681952340") -> on-681952340 | C84: Porto Alegre | D84: RS | E84: SUL | F84: Avaliador 1 | G84: 15 | H84: 12 | I84: 15 | J84: 8 | K84: 8 | L84: 10 | M84: 10 | N84: 10 | O84: 0 | P84: 0 | Q84: 3 | R84: 3 | S84: 0 | T84: 0 | U84: 94 | W84: =AVERAGE(U84,U85) -> 85 | X84: CLASSIFICADO
A85: PESSOA FÍSICA | B85: =HYPERLINK("https://mapas.cultura.gov.br/inscricao/681952340","on-681952340") -> on-681952340 | C85: Porto Alegre | D85: RS | E85: SUL | F85: Avaliador 2 | G85: 20 | H85: 12 | I85: 12 | J85: 0 | K85: 8 | L85: 10 | M85: 8 | N85: 0 | O85: 0 | P85: 0 | Q85: 3 | R85: 3 | S85: 0 | T85: 0 | U85: 76 | W85: =W84 -> 85 | X85: =X84 -> CLASSIFICADO
A86: PESSOA FÍSICA | B86: =HYPERLINK("https://mapas.cultura.gov.br/inscricao/933424449","on-933424449") -> on-933424449 | C86: Rio Grande | D86: RS | E86: SUL | F86: Avaliador 1 | G86: 20 | H86: 15 | I86: 12 | J86: 8 | K86: 8 | L86: 10 | M86: 10 | N86: 5 | O86: 0 | P86: 0 | Q86: 3 | R86: 0 | S86: 3 | T86: 0 | U86: 94 | W86: =AVERAGE(U86,U87) -> 83.5 | X86: CLASSIFICADO
A87: PESSOA FÍSICA | B87: =HYPERLINK("https://mapas.cultura.gov.br/inscricao/933424449","on-933424449") -> on-933424449 | C87: Rio Grande | D87: RS | E87: SUL | F87: Avaliador 2 | G87: 15 | H87: 12 | I87: 12 | J87: 5 | K87: 5 | L87: 10 | M87: 8 | N87: 0 | O87: 0 | P87: 0 | Q87: 3 | R87: 0 | S87: 3 | T87: 0 | U87: 73 | W87: =W86 -> 83.5 | X87: =X86 -> CLASSIFICADO
A88: PESSOA FÍSICA | B88: =HYPERLINK("https://mapas.cultura.gov.br/inscricao/1000262884","on-1000262884") -> on-1000262884 | C88: Pelotas | D88: RS | E88: SUL | F88: Avaliador 1 | G88: 10 | H88: 8 | I88: 12 | J88: 10 | K88: 10 | L88: 10 | M88: 5 | N88: 5 | O88: 0 | P88: 3 | Q88: 0 | R88: 0 | S88: 3 | T88: 0 | U88: 76 | W88: =AVERAGE(U88,U89) -> 83.5 | X88: CLASSIFICADO
A89: PESSOA FÍSICA | B89: =HYPERLINK("https://mapas.cultura.gov.br/inscricao/1000262884","on-1000262884") -> on-1000262884 | C89: Pelotas | D89: RS | E89: SUL | F89: Avaliador 2 | G89: 20 | H89: 12 | I89: 12 | J89: 10 | K89: 8 | L89: 10 | M89: 8 | N89: 5 | O89: 0 | P89: 3 | Q89: 0 | R89: 0 | S89: 3 | T89: 0 | U89: 91 | W89: =W88 -> 83.5 | X89: =X88 -> CLASSIFICADO
A90: PESSOA FÍSICA | B90: =HYPERLINK("https://mapas.cultura.gov.br/inscricao/1091428827","on-1091428827") -> on-1091428827 | C90: Porto Alegre | D90: RS | E90: SUL | F90: Avaliador 1 | G90: 20 | H90: 15 | I90: 12 | J90: 5 | K90: 8 | L90: 10 | M90: 8 | N90: 3 | O90: 0 | P90: 0 | Q90: 3 | R90: 0 | S90: 0 | T90: 0 | U90: 84 | W90: =AVERAGE(U90,U91) -> 83.5 | X90: CLASSIFICADO
A91: PESSOA FÍSICA | B91: =HYPERLINK("https://mapas.cultura.gov.br/inscricao/1091428827","on-1091428827") -> on-1091428827 | C91: Porto Alegre | D91: RS | E91: SUL | F91: Avaliador 2 | G91: 20 | H91: 15 | I91: 15 | J91: 0 | K91: 10 | L91: 10 | M91: 10 | N91: 0 | O91: 0 | P91: 0 | Q91: 3 | R91: 0 | S91: 0 | T91: 0 | U91: 83 | W91: =W90 -> 83.5 | X91: =X90 -> CLASSIFICADO
A92: PESSOA FÍSICA | B92: =HYPERLINK("https://mapas.cultura.gov.br/inscricao/673115039","on-673115039") -> on-673115039 | C92: Criciúma | D92: SC | E92: SUL | F92: Avaliador 1 | G92: 20 | H92: 12 | I92: 8 | J92: 8 | K92: 5 | L92: 8 | M92: 8 | N92: 0 | O92: 0 | P92: 3 | Q92: 3 | R92: 0 | S92: 3 | T92: 0 | U92: 78 | W92: =AVERAGE(U92,U93) -> 83.5 | X92: CLASSIFICADO
A93: PESSOA FÍSICA | B93: =HYPERLINK("https://mapas.cultura.gov.br/inscricao/1190119185","on-1190119185") -> on-1190119185 | C93: Florianópolis | D93: SC | E93: SUL | F93: Avaliador 2 | G93: 20 | H93: 12 | I93: 15 | J93: 10 | K93: 0 | L93: 10 | M93: 10 | N93: 0 | O93: 0 | P93: 3 | Q93: 3 | R93: 3 | S93: 3 | T93: 0 | U93: 89 | W93: =W92 -> 83.5 | X93: =X92 -> CLASSIFICADO
A94: PESSOA FÍSICA | B94: =HYPERLINK("https://mapas.cultura.gov.br/inscricao/1830474941","on-1830474941") -> on-1830474941 | C94: Forquilhinha-SC | D94: SC | E94: SUL | F94: Avaliador 1 | G94: 15 | H94: 8 | I94: 15 | J94: 5 | K94: 5 | L94: 10 | M94: 5 | N94: 10 | O94: 0 | P94: 0 | Q94: 3 | R94: 0 | S94: 0 | T94: 0 | U94: 76 | W94: =AVERAGE(U94,U95) -> 83.5 | X94: CLASSIFICADO
A95: PESSOA FÍSICA | B95: =HYPERLINK("https://mapas.cultura.gov.br/inscricao/446799548","on-446799548") -> on-446799548 | C95: Florianópolis | D95: SC | E95: SUL | F95: Avaliador 2 | G95: 20 | H95: 12 | I95: 15 | J95: 10 | K95: 5 | L95: 10 | M95: 10 | N95: 0 | O95: 0 | P95: 3 | Q95: 3 | R95: 0 | S95: 3 | T95: 0 | U95: 91 | W95: =W94 -> 83.5 | X95: =X94 -> CLASSIFICADO
A96: PESSOA FÍSICA | B96: =HYPERLINK("https://mapas.cultura.gov.br/inscricao/14975919","on-14975919") -> on-14975919 | C96: Porto Alegre | D96: RS | E96: SUL | F96: Avaliador 1 | G96: 20 | H96: 15 | I96: 15 | J96: 8 | K96: 10 | L96: 10 | M96: 10 | N96: 0 | O96: 0 | P96: 0 | Q96: 3 | R96: 0 | S96: 0 | T96: 0 | U96: 91 | W96: =AVERAGE(U96,U97) -> 83 | X96: CLASSIFICADO
A97: PESSOA FÍSICA | B97: =HYPERLINK("https://mapas.cultura.gov.br/inscricao/14975919","on-14975919") -> on-14975919 | C97: Porto Alegre | D97: RS | E97: SUL | F97: Avaliador 2 | G97: 15 | H97: 12 | I97: 12 | J97: 5 | K97: 8 | L97: 10 | M97: 10 | N97: 0 | O97: 0 | P97: 0 | Q97: 3 | R97: 0 | S97: 0 | T97: 0 | U97: 75 | W97: =W96 -> 83 | X97: =X96 -> CLASSIFICADO
A98: PESSOA FÍSICA | B98: =HYPERLINK("https://mapas.cultura.gov.br/inscricao/406559833","on-406559833") -> on-406559833 | C98: Porto Alegre | D98: RS | E98: SUL | F98: Avaliador 1 | G98: 20 | H98: 15 | I98: 12 | J98: 10 | K98: 5 | L98: 10 | M98: 10 | N98: 5 | O98: 0 | P98: 0 | Q98: 3 | R98: 3 | S98: 0 | T98: 0 | U98: 93 | W98: =AVERAGE(U98,U99) -> 83 | X98: CLASSIFICADO
A99: PESSOA FÍSICA | B99: =HYPERLINK("https://mapas.cultura.gov.br/inscricao/406559833","on-406559833") -> on-406559833 | C99: Porto Alegre | D99: RS | E99: SUL | F99: Avaliador 2 | G99: 15 | H99: 8 | I99: 12 | J99: 8 | K99: 5 | L99: 8 | M99: 8 | N99: 3 | O99: 0 | P99: 0 | Q99: 3 | R99: 3 | S99: 0 | T99: 0 | U99: 73 | W99: =W98 -> 83 | X99: =X98 -> CLASSIFICADO
A100: PESSOA FÍSICA | B100: =HYPERLINK("https://mapas.cultura.gov.br/inscricao/119661130","on-119661130") -> on-119661130 | C100: Brusque | D100: SC | E100: SUL | F100: Avaliador 1 | G100: 20 | H100: 12 | I100: 12 | J100: 0 | K100: 5 | L100: 10 | M100: 10 | N100: 3 | O100: 0 | P100: 0 | Q100: 3 | R100: 0 | S100: 0 | T100: 0 | U100: 75 | W100: =AVERAGE(U100,U101) -> 83 | X100: CLASSIFICADO
A101: PESSOA FÍSICA | B101: =HYPERLINK("https://mapas.cultura.gov.br/inscricao/1720316967","on-1720316967") -> on-1720316967 | C101: Florianópolis | D101: SC | E101: SUL | F101: Avaliador 2 | G101: 20 | H101: 12 | I101: 15 | J101: 10 | K101: 5 | L101: 10 | M101: 10 | N101: 0 | O101: 0 | P101: 3 | Q101: 3 | R101: 0 | S101: 3 | T101: 0 | U101: 91 | W101: =W100 -> 83 | X101: =X100 -> CLASSIFICADO
A102: PESSOA FÍSICA | B102: POSTAL 6 | C102: Pelotas | D102: RS | E102: SUL | F102: Avaliador 1 | G102: 15 | H102: 12 | I102: 15 | J102: 5 | K102: 8 | L102: 10 | M102: 8 | N102: 5 | O102: 0 | P102: 0 | Q102: 3 | R102: 0 | T102: 0 | U102: 81 | W102: =AVERAGE(U102,U103) -> 82.5 | X102: CLASSIFICADO
A103: PESSOA FÍSICA | B103: POSTAL 6 | C103: Pelotas | D103: RS | E103: SUL | F103: Avaliador 2 | G103: 15 | H103: 15 | I103: 15 | J103: 5 | K103: 8 | L103: 10 | M103: 8 | N103: 5 | O103: 0 | P103: 0 | Q103: 3 | R103: 0 | S103: 0 | T103: 0 | U103: 84 | W103: =W102 -> 82.5 | X103: =X102 -> CLASSIFICADO
A104: PESSOA FÍSICA | B104: =HYPERLINK("https://mapas.cultura.gov.br/inscricao/590272909","on-590272909") -> on-590272909 | C104: Joinville | D104: SC | E104: SUL | F104: Avaliador 1 | G104: 15 | H104: 12 | I104: 12 | J104: 10 | K104: 5 | L104: 8 | M104: 8 | N104: 8 | O104: 0 | P104: 3 | Q104: 0 | R104: 0 | S104: 0 | T104: 0 | U104: 81 | W104: =AVERAGE(U104,U105) -> 82.5 | X104: CLASSIFICADO
A105: PESSOA FÍSICA | B105: =HYPERLINK("https://mapas.cultura.gov.br/inscricao/1830474941","on-1830474941") -> on-1830474941 | C105: Forquilhinha-SC | D105: SC | E105: SUL | F105: Avaliador 2 | G105: 15 | H105: 15 | I105: 15 | J105: 3 | K105: 5 | L105: 10 | M105: 8 | N105: 10 | O105: 0 | P105: 0 | Q105: 3 | R105: 0 | S105: 0 | T105: 0 | U105: 84 | W105: =W104 -> 82.5 | X105: =X104 -> CLASSIFICADO
A106: PESSOA FÍSICA | B106: =HYPERLINK("https://mapas.cultura.gov.br/inscricao/1619695502","on-1619695502") -> on-1619695502 | C106: Içara | D106: SC | E106: SUL | F106: Avaliador 1 | G106: 20 | H106: 12 | I106: 12 | J106: 8 | K106: 5 | L106: 8 | M106: 5 | N106: 10 | O106: 0 | P106: 0 | Q106: 3 | R106: 0 | S106: 0 | T106: 0 | U106: 83 | W106: =AVERAGE(U106,U107) -> 82 | X106: CLASSIFICADO
A107: PESSOA FÍSICA | B107: =HYPERLINK("https://mapas.cultura.gov.br/inscricao/1619695502","on-1619695502") -> on-1619695502 | C107: Içara | D107: SC | E107: SUL | F107: Avaliador 2 | G107: 20 | H107: 15 | I107: 15 | J107: 3 | K107: 5 | L107: 10 | M107: 10 | N107: 0 | O107: 0 | P107: 0 | Q107: 3 | R107: 0 | S107: 0 | T107: 0 | U107: 81 | W107: =W106 -> 82 | X107: =X106 -> CLASSIFICADO
A108: PESSOA FÍSICA | B108: =HYPERLINK("https://mapas.cultura.gov.br/inscricao/2002961055","on-2002961055") -> on-2002961055 | C108: Porto Alegre | D108: RS | E108: SUL | F108: Avaliador 1 | G108: 20 | H108: 15 | I108: 12 | J108: 10 | K108: 8 | L108: 8 | M108: 10 | N108: 5 | O108: 3 | P108: 0 | Q108: 3 | R108: 0 | S108: 0 | T108: 0 | U108: 94 | W108: =AVERAGE(U108,U109) -> 82 | X108: CLASSIFICADO
A109: PESSOA FÍSICA | B109: =HYPERLINK("https://mapas.cultura.gov.br/inscricao/2002961055","on-2002961055") -> on-2002961055 | C109: Porto Alegre | D109: RS | E109: SUL | F109: Avaliador 2 | G109: 15 | H109: 12 | I109: 12 | J109: 5 | K109: 5 | L109: 5 | M109: 10 | N109: 0 | O109: 3 | P109: 0 | Q109: 3 | R109: 0 | S109: 0 | T109: 0 | U109: 70 | W109: =W108 -> 82 | X109: =X108 -> CLASSIFICADO
A110: PESSOA FÍSICA | B110: =HYPERLINK("https://mapas.cultura.gov.br/inscricao/638300671","on-638300671") -> on-638300671 | C110: Pelotas | D110: RS | E110: SUL | F110: Avaliador 1 | G110: 20 | H110: 15 | I110: 12 | J110: 8 | K110: 10 | L110: 10 | M110: 10 | N110: 8 | O110: 0 | P110: 0 | Q110: 3 | R110: 0 | S110: 0 | T110: 0 | U110: 96 | W110: =AVERAGE(U110,U111) -> 82 | X110: CLASSIFICADO
A111: PESSOA FÍSICA | B111: =HYPERLINK("https://mapas.cultura.gov.br/inscricao/638300671","on-638300671") -> on-638300671 | C111: Pelotas | D111: RS | E111: SUL | F111: Avaliador 2 | G111: 15 | H111: 12 | I111: 12 | J111: 5 | K111: 5 | L111: 8 | M111: 8 | N111: 0 | O111: 0 | P111: 0 | Q111: 3 | R111: 0 | S111: 0 | T111: 0 | U111: 68 | W111: =W110 -> 82 | X111: =X110 -> CLASSIFICADO
A112: PESSOA FÍSICA | B112: =HYPERLINK("https://mapas.cultura.gov.br/inscricao/406191515","on-406191515") -> on-406191515 | C112: São Leopoldo | D112: RS | E112: SUL | F112: Avaliador 1 | G112: 20 | H112: 12 | I112: 15 | J112: 5 | K112: 8 | L112: 10 | M112: 10 | N112: 8 | O112: 0 | P112: 0 | Q112: 0 | R112: 0 | S112: 0 | T112: 0 | U112: 88 | W112: =AVERAGE(U112,U113) -> 82 | X112: CLASSIFICADO
A113: PESSOA FÍSICA | B113: =HYPERLINK("https://mapas.cultura.gov.br/inscricao/406191515","on-406191515") -> on-406191515 | C113: São Leopoldo | D113: RS | E113: SUL | F113: Avaliador 2 | G113: 15 | H113: 15 | I113: 15 | J113: 3 | K113: 10 | L113: 10 | M113: 8 | N113: 0 | O113: 0 | P113: 0 | Q113: 0 | R113: 0 | S113: 0 | T113: 0 | U113: 76 | W113: =W112 -> 82 | X113: =X112 -> CLASSIFICADO
A114: PESSOA FÍSICA | B114: =HYPERLINK("https://mapas.cultura.gov.br/inscricao/516161208","on-516161208") -> on-516161208 | C114: Porto Alegre | D114: RS | E114: SUL | F114: Avaliador 1 | G114: 15 | H114: 12 | I114: 15 | J114: 8 | K114: 10 | L114: 8 | M114: 10 | N114: 10 | O114: 0 | P114: 3 | Q114: 3 | R114: 0 | S114: 0 | T114: 0 | U114: 94 | W114: =AVERAGE(U114,U115) -> 82 | X114: CLASSIFICADO
A115: PESSOA FÍSICA | B115: =HYPERLINK("https://mapas.cultura.gov.br/inscricao/516161208","on-516161208") -> on-516161208 | C115: Porto Alegre | D115: RS | E115: SUL | F115: Avaliador 2 | G115: 10 | H115: 8 | I115: 12 | J115: 8 | K115: 5 | L115: 8 | M115: 10 | N115: 3 | O115: 0 | P115: 3 | Q115: 3 | R115: 0 | S115: 0 | T115: 0 | U115: 70 | W115: =W114 -> 82 | X115: =X114 -> CLASSIFICADO
A116: PESSOA FÍSICA | B116: =HYPERLINK("https://mapas.cultura.gov.br/inscricao/426214721","on-426214721") -> on-426214721 | C116: Caxias do Sul | D116: RS | E116: SUL | F116: Avaliador 1 | G116: 20 | H116: 15 | I116: 12 | J116: 10 | K116: 5 | L116: 10 | M116: 8 | N116: 8 | O116: 0 | P116: 3 | Q116: 0 | R116: 0 | S116: 3 | T116: 0 | U116: 94 | W116: =AVERAGE(U116,U117) -> 81 | X116: CLASSIFICADO
A117: PESSOA FÍSICA | B117: =HYPERLINK("https://mapas.cultura.gov.br/inscricao/426214721","on-426214721") -> on-426214721 | C117: Caxias do Sul | D117: RS | E117: SUL | F117: Avaliador 2 | G117: 10 | H117: 12 | I117: 12 | J117: 8 | K117: 5 | L117: 10 | M117: 5 | N117: 0 | O117: 0 | P117: 3 | Q117: 0 | R117: 0 | S117: 3 | T117: 0 | U117: 68 | W117: =W116 -> 81 | X117: =X116 -> CLASSIFICADO
A118: PESSOA FÍSICA | B118: =HYPERLINK("https://mapas.cultura.gov.br/inscricao/1073598260","on-1073598260") -> on-1073598260 | C118: Sapucaia do Sul | D118: RS | E118: SUL | F118: Avaliador 1 | G118: 15 | H118: 15 | I118: 12 | J118: 10 | K118: 10 | L118: 8 | M118: 8 | N118: 8 | O118: 0 | P118: 0 | Q118: 3 | R118: 3 | S118: 0 | T118: 0 | U118: 92 | W118: =AVERAGE(U118,U119) -> 80.5 | X118: CLASSIFICADO
A119: PESSOA FÍSICA | B119: =HYPERLINK("https://mapas.cultura.gov.br/inscricao/1073598260","on-1073598260") -> on-1073598260 | C119: Sapucaia do Sul | D119: RS | E119: SUL | F119: Avaliador 2 | G119: 15 | H119: 12 | I119: 12 | J119: 0 | K119: 8 | L119: 8 | M119: 8 | N119: 0 | O119: 0 | P119: 0 | Q119: 3 | R119: 3 | S119: 0 | T119: 0 | U119: 69 | W119: =W118 -> 80.5 | X119: =X118 -> CLASSIFICADO
A120: PESSOA FÍSICA | B120: =HYPERLINK("https://mapas.cultura.gov.br/inscricao/396554530","on-396554530") -> on-396554530 | C120: Criciúma | D120: SC | E120: SUL | F120: Avaliador 1 | G120: 20 | H120: 15 | I120: 12 | J120: 3 | K120: 5 | L120: 8 | M120: 5 | N120: 0 | O120: 0 | P120: 0 | Q120: 3 | R120: 0 | S120: 0 | T120: 0 | U120: 71 | W120: =AVERAGE(U120,U121) -> 80.5 | X120: CLASSIFICADO
A121: PESSOA FÍSICA | B121: =HYPERLINK("https://mapas.cultura.gov.br/inscricao/2146297318","on-2146297318") -> on-2146297318 | C121: Caçador | D121: SC | E121: SUL | F121: Avaliador 2 | G121: 20 | H121: 15 | I121: 15 | J121: 8 | K121: 8 | L121: 10 | M121: 8 | N121: 0 | O121: 0 | P121: 0 | Q121: 3 | R121: 0 | S121: 3 | T121: 0 | U121: 90 | W121: =W120 -> 80.5 | X121: =X120 -> CLASSIFICADO
A122: PESSOA FÍSICA | B122: =HYPERLINK("https://mapas.cultura.gov.br/inscricao/1400875939","on-1400875939") -> on-1400875939 | C122: Esteio | D122: RS | E122: SUL | F122: Avaliador 1 | G122: 15 | H122: 15 | I122: 15 | J122: 3 | K122: 10 | L122: 10 | M122: 8 | N122: 10 | O122: 0 | P122: 0 | Q122: 3 | R122: 0 | S122: 0 | T122: 0 | U122: 89 | W122: =AVERAGE(U122,U123) -> 80 | X122: CLASSIFICADO
A123: PESSOA FÍSICA | B123: =HYPERLINK("https://mapas.cultura.gov.br/inscricao/1400875939","on-1400875939") -> on-1400875939 | C123: Esteio | D123: RS | E123: SUL | F123: Avaliador 2 | G123: 20 | H123: 15 | I123: 12 | J123: 0 | K123: 5 | L123: 8 | M123: 8 | N123: 0 | O123: 0 | P123: 0 | Q123: 3 | R123: 0 | S123: 0 | T123: 0 | U123: 71 | W123: =W122 -> 80 | X123: =X122 -> CLASSIFICADO
A124: PESSOA FÍSICA | B124: =HYPERLINK("https://mapas.cultura.gov.br/inscricao/494118222","on-494118222") -> on-494118222 | C124: Porto Alegre | D124: RS | E124: SUL | F124: Avaliador 1 | G124: 20 | H124: 12 | I124: 15 | J124: 10 | K124: 8 | L124: 10 | M124: 10 | N124: 5 | O124: 0 | P124: 3 | Q124: 0 | R124: 0 | S124: 0 | T124: 0 | U124: 93 | W124: =AVERAGE(U124,U125) -> 80 | X124: CLASSIFICADO
A125: PESSOA FÍSICA | B125: =HYPERLINK("https://mapas.cultura.gov.br/inscricao/494118222","on-494118222") -> on-494118222 | C125: Porto Alegre | D125: RS | E125: SUL | F125: Avaliador 2 | G125: 15 | H125: 8 | I125: 12 | J125: 8 | K125: 5 | L125: 8 | M125: 8 | N125: 0 | O125: 0 | P125: 3 | Q125: 0 | R125: 0 | S125: 0 | T125: 0 | U125: 67 | W125: =W124 -> 80 | X125: =X124 -> CLASSIFICADO
A126: PESSOA FÍSICA | B126: =HYPERLINK("https://mapas.cultura.gov.br/inscricao/189640411","on-189640411") -> on-189640411 | C126: Caxias do Sul | D126: RS | E126: SUL | F126: Avaliador 1 | G126: 20 | H126: 15 | I126: 15 | J126: 8 | K126: 8 | L126: 10 | M126: 10 | N126: 5 | O126: 0 | P126: 0 | Q126: 3 | R126: 0 | S126: 0 | T126: 0 | U126: 94 | W126: =AVERAGE(U126,U127) -> 80 | X126: CLASSIFICADO
A127: PESSOA FÍSICA | B127: =HYPERLINK("https://mapas.cultura.gov.br/inscricao/189640411","on-189640411") -> on-189640411 | C127: Caxias do Sul | D127: RS | E127: SUL | F127: Avaliador 2 | G127: 15 | H127: 12 | I127: 12 | J127: 3 | K127: 5 | L127: 8 | M127: 8 | N127: 0 | O127: 0 | P127: 0 | Q127: 3 | R127: 0 | S127: 0 | T127: 0 | U127: 66 | W127: =W126 -> 80 | X127: =X126 -> CLASSIFICADO
A128: PESSOA FÍSICA | B128: =HYPERLINK("https://mapas.cultura.gov.br/inscricao/1546226475","on-1546226475") -> on-1546226475 | C128: Porto Alegre | D128: RS | E128: SUL | F128: Avaliador 1 | G128: 20 | H128: 12 | I128: 8 | J128: 10 | K128: 8 | L128: 10 | M128: 8 | N128: 8 | O128: 0 | P128: 3 | Q128: 0 | R128: 0 | S128: 3 | T128: 0 | U128: 90 | W128: =AVERAGE(U128,U129) -> 79.5 | X128: CLASSIFICADO
A129: PESSOA FÍSICA | B129: =HYPERLINK("https://mapas.cultura.gov.br/inscricao/1546226475","on-1546226475") -> on-1546226475 | C129: Porto Alegre | D129: RS | E129: SUL | F129: Avaliador 2 | G129: 10 | H129: 8 | I129: 8 | J129: 8 | K129: 8 | L129: 8 | M129: 8 | N129: 5 | O129: 0 | P129: 3 | Q129: 0 | R129: 0 | S129: 3 | T129: 0 | U129: 69 | W129: =W128 -> 79.5 | X129: =X128 -> CLASSIFICADO
A130: PESSOA FÍSICA | B130: =HYPERLINK("https://mapas.cultura.gov.br/inscricao/2016063354","on-2016063354") -> on-2016063354 | C130: Pelotas | D130: RS | E130: SUL | F130: Avaliador 1 | G130: 15 | H130: 12 | I130: 15 | J130: 5 | K130: 8 | L130: 10 | M130: 10 | N130: 10 | O130: 0 | P130: 0 | Q130: 3 | R130: 0 | S130: 0 | T130: 0 | U130: =SUM(G130:T130) -> 88 | W130: =AVERAGE(U130,U131) -> 79.5 | X130: CLASSIFICADO
A131: PESSOA FÍSICA | B131: =HYPERLINK("https://mapas.cultura.gov.br/inscricao/2016063354","on-2016063354") -> on-2016063354 | C131: Pelotas | D131: RS | E131: SUL | F131: Avaliador 2 | G131: 20 | H131: 8 | I131: 15 | J131: 0 | K131: 5 | L131: 10 | M131: 10 | N131: 0 | O131: 0 | P131: 0 | Q131: 3 | R131: 0 | S131: 0 | T131: 0 | U131: 71 | W131: =W130 -> 79.5 | X131: =X130 -> CLASSIFICADO
A132: PESSOA FÍSICA | B132: =HYPERLINK("https://mapas.cultura.gov.br/inscricao/1370720166","on-1370720166") -> on-1370720166 | C132: Pelotas | D132: RS | E132: SUL | F132: Avaliador 1 | G132: 15 | H132: 15 | I132: 15 | J132: 10 | K132: 10 | L132: 10 | M132: 10 | N132: 5 | P132: 3 | S132: 0 | U132: 93 | W132: =AVERAGE(U132,U133) -> 79.5 | X132: CLASSIFICADO
A133: PESSOA FÍSICA | B133: =HYPERLINK("https://mapas.cultura.gov.br/inscricao/1370720166","on-1370720166") -> on-1370720166 | C133: Pelotas | D133: RS | E133: SUL | F133: Avaliador 2 | G133: 5 | H133: 12 | I133: 12 | J133: 8 | K133: 8 | L133: 10 | M133: 8 | N133: 0 | O133: 0 | P133: 3 | Q133: 0 | R133: 0 | S133: 0 | T133: 0 | U133: 66 | W133: =W132 -> 79.5 | X133: =X132 -> CLASSIFICADO
A134: PESSOA FÍSICA | B134: =HYPERLINK("https://mapas.cultura.gov.br/inscricao/347126145","on-347126145") -> on-347126145 | C134: Porto Alegre | D134: RS | E134: SUL | F134: Avaliador 1 | G134: 20 | H134: 12 | I134: 15 | J134: 8 | K134: 8 | L134: 10 | M134: 10 | N134: 8 | O134: 3 | P134: 0 | Q134: 0 | R134: 0 | S134: 0 | T134: 0 | U134: 94 | W134: =AVERAGE(U134,U135) -> 79.5 | X134: CLASSIFICADO
A135: PESSOA FÍSICA | B135: =HYPERLINK("https://mapas.cultura.gov.br/inscricao/347126145","on-347126145") -> on-347126145 | C135: Porto Alegre | D135: RS | E135: SUL | F135: Avaliador 2 | G135: 20 | H135: 8 | I135: 8 | J135: 5 | K135: 5 | L135: 8 | M135: 8 | N135: 0 | O135: 3 | P135: 0 | Q135: 0 | R135: 0 | S135: 0 | T135: 0 | U135: 65 | W135: =W134 -> 79.5 | X135: =X134 -> CLASSIFICADO
A136: PESSOA FÍSICA | B136: =HYPERLINK("https://mapas.cultura.gov.br/inscricao/1655487378","on-1655487378") -> on-1655487378 | C136: Curitiba | D136: PR | E136: SUL | F136: Avaliador 1 | G136: 15 | H136: 12 | I136: 12 | J136: 8 | K136: 8 | L136: 8 | M136: 8 | N136: 0 | O136: 0 | P136: 0 | Q136: 3 | R136: 0 | S136: 0 | T136: 0 | U136: 74 | W136: =AVERAGE(U136,U137) -> 79 | X136: CLASSIFICADO
A137: PESSOA FÍSICA | B137: =HYPERLINK("https://mapas.cultura.gov.br/inscricao/1655487378","on-1655487378") -> on-1655487378 | C137: Curitiba | D137: PR | E137: SUL | F137: Avaliador 2 | G137: 20 | H137: 15 | I137: 15 | J137: 5 | K137: 5 | L137: 8 | M137: 8 | N137: 5 | O137: 0 | P137: 0 | Q137: 3 | R137: 0 | S137: 0 | T137: 0 | U137: 84 | W137: =W136 -> 79 | X137: =X136 -> CLASSIFICADO
A138: PESSOA FÍSICA | B138: =HYPERLINK("https://mapas.cultura.gov.br/inscricao/1495186537","on-1495186537") -> on-1495186537 | C138: Blumenau | D138: SC | E138: SUL | F138: Avaliador 1 | G138: 20 | H138: 12 | I138: 12 | J138: 3 | K138: 5 | L138: 10 | M138: 8 | N138: 0 | O138: 0 | P138: 0 | Q138: 0 | R138: 0 | S138: 0 | T138: 0 | U138: 70 | W138: =AVERAGE(U138,U139) -> 78.5 | X138: CLASSIFICADO
A139: PESSOA FÍSICA | B139: =HYPERLINK("https://mapas.cultura.gov.br/inscricao/886084044","on-886084044") -> on-886084044 | C139: Itá | D139: SC | E139: SUL | F139: Avaliador 2 | G139: 20 | H139: 15 | I139: 15 | J139: 10 | K139: 3 | L139: 10 | M139: 8 | N139: 0 | O139: 0 | P139: 3 | Q139: 0 | R139: 0 | S139: 3 | T139: 0 | U139: 87 | W139: =W138 -> 78.5 | X139: =X138 -> CLASSIFICADO
A140: PESSOA FÍSICA | B140: =HYPERLINK("https://mapas.cultura.gov.br/inscricao/1549983825","on-1549983825") -> on-1549983825 | C140: Porto Alegre | D140: RS | E140: SUL | F140: Avaliador 1 | G140: 15 | H140: 12 | I140: 15 | J140: 5 | K140: 10 | L140: 10 | M140: 10 | N140: 5 | O140: 0 | P140: 0 | Q140: 3 | R140: 3 | S140: 0 | T140: 0 | U140: 88 | W140: =AVERAGE(U140,U141) -> 78 | X140: CLASSIFICADO
A141: PESSOA FÍSICA | B141: =HYPERLINK("https://mapas.cultura.gov.br/inscricao/1549983825","on-1549983825") -> on-1549983825 | C141: Porto Alegre | D141: RS | E141: SUL | F141: Avaliador 2 | G141: 10 | H141: 12 | I141: 12 | J141: 5 | K141: 5 | L141: 10 | M141: 8 | N141: 0 | O141: 0 | P141: 0 | Q141: 3 | R141: 3 | S141: 0 | T141: 0 | U141: 68 | W141: =W140 -> 78 | X141: =X140 -> CLASSIFICADO
A142: PESSOA FÍSICA | B142: =HYPERLINK("https://mapas.cultura.gov.br/inscricao/1891478358","on-1891478358") -> on-1891478358 | C142: Cascavel | D142: PR | E142: SUL | F142: Avaliador 1 | G142: 15 | H142: 15 | I142: 12 | J142: 5 | K142: 8 | L142: 8 | M142: 8 | N142: 0 | O142: 0 | P142: 0 | Q142: 0 | R142: 0 | S142: 0 | T142: 0 | U142: 71 | W142: =AVERAGE(U142,U143) -> 78 | X142: CLASSIFICADO
A143: PESSOA FÍSICA | B143: =HYPERLINK("https://mapas.cultura.gov.br/inscricao/1891478358","on-1891478358") -> on-1891478358 | C143: Cascavel | D143: PR | E143: SUL | F143: Avaliador 2 | G143: 20 | H143: 15 | I143: 12 | J143: 10 | K143: 10 | L143: 10 | M143: 8 | N143: 0 | O143: 0 | P143: 0 | Q143: 0 | R143: 0 | S143: 0 | T143: 0 | U143: 85 | W143: =W142 -> 78 | X143: =X142 -> CLASSIFICADO
A144: PESSOA FÍSICA | B144: =HYPERLINK("https://mapas.cultura.gov.br/inscricao/154513945","on-154513945") -> on-154513945 | C144: Florianópolis | D144: SC | E144: SUL | F144: Avaliador 1 | G144: 20 | H144: 12 | I144: 15 | J144: 3 | K144: 8 | L144: 8 | M144: 5 | N144: 5 | O144: 0 | P144: 0 | Q144: 0 | R144: 0 | S144: 0 | T144: 0 | U144: 76 | W144: =AVERAGE(U144,U145) -> 78 | X144: CLASSIFICADO
A145: PESSOA FÍSICA | B145: =HYPERLINK("https://mapas.cultura.gov.br/inscricao/1672130377","on-1672130377") -> on-1672130377 | C145: Florianópolis | D145: SC | E145: SUL | F145: Avaliador 2 | G145: 20 | H145: 12 | I145: 15 | J145: 5 | K145: 5 | L145: 10 | M145: 10 | N145: 0 | O145: 0 | P145: 0 | Q145: 3 | R145: 0 | S145: 0 | T145: 0 | U145: 80 | W145: =W144 -> 78 | X145: =X144 -> CLASSIFICADO
A146: PESSOA FÍSICA | B146: =HYPERLINK("https://mapas.cultura.gov.br/inscricao/1634255962","on-1634255962") -> on-1634255962 | C146: Forquillinha ,SC | D146: SC | E146: SUL | F146: Avaliador 1 | G146: 15 | H146: 15 | I146: 12 | J146: 5 | K146: 5 | L146: 10 | M146: 5 | N146: 10 | O146: 0 | P146: 0 | Q146: 3 | R146: 0 | S146: 0 | T146: 0 | U146: 80 | W146: =AVERAGE(U146,U147) -> 77.5 | X146: CLASSIFICADO
A147: PESSOA FÍSICA | B147: =HYPERLINK("https://mapas.cultura.gov.br/inscricao/942375111","on-942375111") -> on-942375111 | C147: Criciúma | D147: SC | E147: SUL | F147: Avaliador 2 | G147: 20 | H147: 12 | I147: 15 | J147: 0 | K147: 5 | L147: 10 | M147: 10 | N147: 0 | O147: 0 | P147: 0 | Q147: 3 | R147: 0 | S147: 0 | T147: 0 | U147: 75 | W147: =W146 -> 77.5 | X147: =X146 -> CLASSIFICADO
A148: PESSOA FÍSICA | B148: =HYPERLINK("https://mapas.cultura.gov.br/inscricao/1490996214","on-1490996214") -> on-1490996214 | C148: Florianópolis | D148: SC | E148: SUL | F148: Avaliador 1 | G148: 20 | H148: 12 | I148: 8 | J148: 3 | K148: 8 | L148: 10 | M148: 8 | N148: 3 | O148: 0 | P148: 0 | Q148: 3 | R148: 0 | S148: 0 | T148: 0 | U148: 75 | W148: =AVERAGE(U148,U149) -> 77.5 | X148: CLASSIFICADO
A149: PESSOA FÍSICA | B149: =HYPERLINK("https://mapas.cultura.gov.br/inscricao/766764209","on-766764209") -> on-766764209 | C149: Joinville | D149: SC | E149: SUL | F149: Avaliador 2 | G149: 20 | H149: 15 | I149: 15 | J149: 5 | K149: 5 | L149: 10 | M149: 10 | N149: 0 | O149: 0 | P149: 0 | Q149: 0 | R149: 0 | S149: 0 | T149: 0 | U149: 80 | W149: =W148 -> 77.5 | X149: =X148 -> CLASSIFICADO
A150: PESSOA FÍSICA | B150: =HYPERLINK("https://mapas.cultura.gov.br/inscricao/200135267","on-200135267") -> on-200135267 | C150: Viamão | D150: RS | E150: SUL | F150: Avaliador 1 | G150: 15 | H150: 15 | I150: 15 | J150: 8 | K150: 8 | L150: 10 | M150: 10 | N150: 8 | O150: 0 | P150: 0 | Q150: 3 | R150: 0 | S150: 0 | T150: 0 | U150: 92 | W150: =AVERAGE(U150,U151) -> 77.5 | X150: CLASSIFICADO
A151: PESSOA FÍSICA | B151: =HYPERLINK("https://mapas.cultura.gov.br/inscricao/200135267","on-200135267") -> on-200135267 | C151: Viamão | D151: RS | E151: SUL | F151: Avaliador 2 | G151: 10 | H151: 12 | I151: 12 | J151: 5 | K151: 5 | L151: 8 | M151: 8 | N151: 0 | O151: 0 | P151: 0 | Q151: 3 | R151: 0 | S151: 0 | T151: 0 | U151: 63 | W151: =W150 -> 77.5 | X151: =X150 -> CLASSIFICADO
A152: PESSOA FÍSICA | B152: =HYPERLINK("https://mapas.cultura.gov.br/inscricao/2128666734","on-2128666734") -> on-2128666734 | C152: Pelotas | D152: RS | E152: SUL | F152: Avaliador 1 | G152: 20 | H152: 15 | I152: 15 | J152: 5 | K152: 5 | L152: 10 | M152: 10 | N152: 5 | O152: 0 | P152: 0 | Q152: 3 | R152: 0 | S152: 0 | T152: 0 | U152: 88 | W152: =AVERAGE(U152,U153) -> 77.5 | X152: CLASSIFICADO
A153: PESSOA FÍSICA | B153: =HYPERLINK("https://mapas.cultura.gov.br/inscricao/2128666734","on-2128666734") -> on-2128666734 | C153: Pelotas | D153: RS | E153: SUL | F153: Avaliador 2 | G153: 15 | H153: 12 | I153: 12 | J153: 0 | K153: 5 | L153: 10 | M153: 10 | N153: 0 | O153: 0 | P153: 0 | Q153: 3 | R153: 0 | S153: 0 | T153: 0 | U153: 67 | W153: =W152 -> 77.5 | X153: =X152 -> CLASSIFICADO
A154: PESSOA FÍSICA | B154: =HYPERLINK("https://mapas.cultura.gov.br/inscricao/766764209","on-766764209") -> on-766764209 | C154: Joinville | D154: SC | E154: SUL | F154: Avaliador 1 | G154: 20 | H154: 15 | I154: 15 | J154: 0 | K154: 5 | L154: 10 | M154: 10 | N154: 0 | O154: 0 | P154: 0 | Q154: 0 | R154: 0 | S154: 0 | T154: 0 | U154: 75 | W154: =AVERAGE(U154,U155) -> 77 | X154: CLASSIFICADO
A155: PESSOA FÍSICA | B155: =HYPERLINK("https://mapas.cultura.gov.br/inscricao/119661130","on-119661130") -> on-119661130 | C155: Brusque | D155: SC | E155: SUL | F155: Avaliador 2 | G155: 20 | H155: 15 | I155: 15 | J155: 3 | K155: 5 | L155: 10 | M155: 8 | N155: 0 | O155: 0 | P155: 0 | Q155: 3 | R155: 0 | S155: 0 | T155: 0 | U155: 79 | W155: =W154 -> 77 | X155: =X154 -> CLASSIFICADO
A156: PESSOA FÍSICA | B156: =HYPERLINK("https://mapas.cultura.gov.br/inscricao/124697379","on-124697379") -> on-124697379 | C156: Toledo | D156: PR | E156: SUL | F156: Avaliador 1 | G156: 20 | H156: 12 | I156: 12 | J156: 5 | K156: 8 | L156: 8 | M156: 5 | N156: 3 | O156: 0 | P156: 0 | Q156: 3 | R156: 0 | S156: 0 | T156: 0 | U156: 76 | W156: =AVERAGE(U156,U157) -> 77 | X156: CLASSIFICADO
A157: PESSOA FÍSICA | B157: =HYPERLINK("https://mapas.cultura.gov.br/inscricao/124697379","on-124697379") -> on-124697379 | C157: Toledo | D157: PR | E157: SUL | F157: Avaliador 2 | G157: 10 | H157: 15 | I157: 12 | J157: 5 | K157: 5 | L157: 10 | M157: 10 | N157: 8 | O157: 0 | P157: 0 | Q157: 3 | R157: 0 | S157: 0 | T157: 0 | U157: 78 | W157: =W156 -> 77 | X157: =X156 -> CLASSIFICADO
A158: PESSOA FÍSICA | B158: =HYPERLINK("https://mapas.cultura.gov.br/inscricao/1190119185","on-1190119185") -> on-1190119185 | C158: Florianópolis | D158: SC | E158: SUL | F158: Avaliador 1 | G158: 10 | H158: 12 | I158: 8 | J158: 10 | K158: 3 | L158: 5 | M158: 5 | N158: 8 | O158: 0 | P158: 3 | Q158: 3 | R158: 3 | S158: 3 | T158: 0 | U158: 73 | W158: =AVERAGE(U158,U159) -> 76.5 | X158: CLASSIFICADO
A159: PESSOA FÍSICA | B159: =HYPERLINK("https://mapas.cultura.gov.br/inscricao/590272909","on-590272909") -> on-590272909 | C159: Joinville | D159: SC | E159: SUL | F159: Avaliador 2 | G159: 20 | H159: 12 | I159: 12 | J159: 8 | K159: 5 | L159: 10 | M159: 10 | N159: 0 | O159: 0 | P159: 3 | Q159: 0 | R159: 0 | S159: 0 | T159: 0 | U159: 80 | W159: =W158 -> 76.5 | X159: =X158 -> CLASSIFICADO
A160: PESSOA FÍSICA | B160: =HYPERLINK("https://mapas.cultura.gov.br/inscricao/2067912381","on-2067912381") -> on-2067912381 | C160: Florianópolis | D160: SC | E160: SUL | F160: Avaliador 1 | G160: 10 | H160: 12 | I160: 12 | J160: 10 | K160: 3 | L160: 10 | M160: 5 | N160: 0 | O160: 0 | P160: 3 | Q160: 0 | R160: 0 | S160: 3 | T160: 0 | U160: 68 | W160: =AVERAGE(U160,U161) -> 76 | X160: CLASSIFICADO
A161: PESSOA FÍSICA | B161: =HYPERLINK("https://mapas.cultura.gov.br/inscricao/150598360","on-150598360") -> on-150598360 | C161: Florianópolis | D161: SC | E161: SUL | F161: Avaliador 2 | G161: 20 | H161: 12 | I161: 15 | J161: 5 | K161: 5 | L161: 10 | M161: 8 | N161: 0 | O161: 0 | P161: 0 | Q161: 3 | R161: 3 | S161: 3 | T161: 0 | U161: 84 | W161: =W160 -> 76 | X161: =X160 -> CLASSIFICADO
A162: PESSOA FÍSICA | B162: =HYPERLINK("https://mapas.cultura.gov.br/inscricao/235463337","on-235463337") -> on-235463337 | C162: Balneário Rincão | D162: SC | E162: SUL | F162: Avaliador 1 | G162: 15 | H162: 12 | I162: 12 | J162: 3 | K162: 5 | L162: 10 | M162: 5 | N162: 3 | O162: 0 | P162: 0 | Q162: 3 | R162: 0 | S162: 3 | T162: 0 | U162: 71 | W162: =AVERAGE(U162,U163) -> 75.5 | X162: CLASSIFICADO
A163: PESSOA FÍSICA | B163: =HYPERLINK("https://mapas.cultura.gov.br/inscricao/1495186537","on-1495186537") -> on-1495186537 | C163: Blumenau | D163: SC | E163: SUL | F163: Avaliador 2 | G163: 20 | H163: 15 | I163: 15 | J163: 5 | K163: 5 | L163: 10 | M163: 10 | N163: 0 | O163: 0 | P163: 0 | Q163: 0 | R163: 0 | S163: 0 | T163: 0 | U163: 80 | W163: =W162 -> 75.5 | X163: =X162 -> CLASSIFICADO
A164: PESSOA FÍSICA | B164: =HYPERLINK("https://mapas.cultura.gov.br/inscricao/1761671018","on-1761671018") -> on-1761671018 | C164: Curitiba | D164: PR | E164: SUL | F164: Avaliador 1 | G164: 15 | H164: 12 | I164: 12 | J164: 8 | K164: 8 | L164: 8 | M164: 8 | N164: 0 | O164: 0 | P164: 0 | Q164: 0 | R164: 0 | S164: 0 | T164: 0 | U164: 71 | W164: =AVERAGE(U164,U165) -> 75 | X164: CLASSIFICADO
A165: PESSOA FÍSICA | B165: =HYPERLINK("https://mapas.cultura.gov.br/inscricao/1761671018","on-1761671018") -> on-1761671018 | C165: Curitiba | D165: PR | E165: SUL | F165: Avaliador 2 | G165: 10 | H165: 15 | I165: 15 | J165: 5 | K165: 8 | L165: 10 | M165: 8 | N165: 8 | O165: 0 | P165: 0 | Q165: 0 | R165: 0 | S165: 0 | T165: 0 | U165: 79 | W165: =W164 -> 75 | X165: =X164 -> CLASSIFICADO
A166: PESSOA FÍSICA | B166: =HYPERLINK("https://mapas.cultura.gov.br/inscricao/150598360","on-150598360") -> on-150598360 | C166: Florianópolis | D166: SC | E166: SUL | F166: Avaliador 1 | G166: 20 | H166: 8 | I166: 8 | J166: 3 | K166: 5 | L166: 10 | M166: 5 | N166: 0 | O166: 0 | P166: 0 | Q166: 3 | R166: 3 | S166: 3 | T166: 0 | U166: 68 | W166: =AVERAGE(U166,U167) -> 74.5 | X166: CLASSIFICADO
A167: PESSOA FÍSICA | B167: =HYPERLINK("https://mapas.cultura.gov.br/inscricao/396554530","on-396554530") -> on-396554530 | C167: Criciúma | D167: SC | E167: SUL | F167: Avaliador 2 | G167: 20 | H167: 15 | I167: 15 | J167: 3 | K167: 5 | L167: 10 | M167: 10 | N167: 0 | O167: 0 | P167: 0 | Q167: 3 | R167: 0 | S167: 0 | T167: 0 | U167: 81 | W167: =W166 -> 74.5 | X167: =X166 -> CLASSIFICADO
A168: PESSOA FÍSICA | B168: =HYPERLINK("https://mapas.cultura.gov.br/inscricao/1707275307","1707275307") -> 1707275307 | C168: Santa Maria | D168: RS | E168: SUL | F168: Avaliador 1 | G168: 20 | H168: 8 | I168: 15 | J168: 3 | K168: 10 | L168: 10 | M168: 10 | N168: 3 | O168: 0 | P168: 0 | Q168: 0 | R168: 0 | S168: 0 | T168: 0 | U168: 79 | W168: =AVERAGE(U168,U169) -> 74.5 | X168: CLASSIFICADO
A169: PESSOA FÍSICA | B169: =HYPERLINK("https://mapas.cultura.gov.br/inscricao/1707275307","on-1707275307") -> on-1707275307 | C169: Santa Maria | D169: RS | E169: SUL | F169: Avaliador 2 | G169: 15 | H169: 12 | I169: 12 | J169: 0 | K169: 8 | L169: 10 | M169: 10 | N169: 3 | O169: 0 | P169: 0 | Q169: 0 | R169: 0 | S169: 0 | T169: 0 | U169: 70 | W169: =W168 -> 74.5 | X169: =X168 -> CLASSIFICADO
A170: PESSOA FÍSICA | B170: =HYPERLINK("https://mapas.cultura.gov.br/inscricao/956806118","on-956806118") -> on-956806118 | C170: Piraquara | D170: PR | E170: SUL | F170: Avaliador 1 | G170: 15 | H170: 12 | I170: 12 | J170: 5 | K170: 8 | L170: 8 | M170: 5 | N170: 0 | O170: 0 | P170: 0 | Q170: 3 | R170: 0 | S170: 0 | T170: 0 | U170: 68 | W170: =AVERAGE(U170,U171) -> 74.5 | X170: CLASSIFICADO
A171: PESSOA FÍSICA | B171: =HYPERLINK("https://mapas.cultura.gov.br/inscricao/956806118","on-956806118") -> on-956806118 | C171: Piraquara | D171: PR | E171: SUL | F171: Avaliador 2 | G171: 20 | H171: 15 | I171: 15 | J171: 3 | K171: 5 | L171: 10 | M171: 5 | N171: 5 | O171: 0 | P171: 0 | Q171: 3 | R171: 0 | S171: 0 | T171: 0 | U171: 81 | W171: =W170 -> 74.5 | X171: =X170 -> CLASSIFICADO
A172: PESSOA FÍSICA | B172: =HYPERLINK("https://mapas.cultura.gov.br/inscricao/84276563","on-84276563") -> on-84276563 | C172: Cambé | D172: PR | E172: SUL | F172: Avaliador 1 | G172: 15 | H172: 12 | I172: 12 | J172: 3 | K172: 5 | L172: 8 | M172: 8 | N172: 3 | O172: 0 | P172: 0 | Q172: 0 | R172: 3 | S172: 0 | T172: 0 | U172: 69 | W172: =AVERAGE(U172,U173) -> 74 | X172: CLASSIFICADO
A173: PESSOA FÍSICA | B173: =HYPERLINK("https://mapas.cultura.gov.br/inscricao/84276563","on-84276563") -> on-84276563 | C173: Cambé | D173: PR | E173: SUL | F173: Avaliador 2 | G173: 20 | H173: 8 | I173: 12 | J173: 5 | K173: 10 | L173: 8 | M173: 8 | N173: 5 | O173: 0 | P173: 0 | Q173: 0 | R173: 3 | S173: 0 | T173: 0 | U173: 79 | W173: =W172 -> 74 | X173: =X172 -> CLASSIFICADO
A174: PESSOA FÍSICA | B174: =HYPERLINK("https://mapas.cultura.gov.br/inscricao/1720316967","on-1720316967") -> on-1720316967 | C174: Florianópolis | D174: SC | E174: SUL | F174: Avaliador 1 | G174: 10 | H174: 8 | I174: 8 | J174: 10 | K174: 3 | L174: 5 | M174: 5 | N174: 5 | O174: 0 | P174: 3 | Q174: 3 | R174: 0 | S174: 3 | T174: 0 | U174: 63 | W174: =AVERAGE(U174,U175) -> 73.5 | X174: CLASSIFICADO
A175: PESSOA FÍSICA | B175: =HYPERLINK("https://mapas.cultura.gov.br/inscricao/2067912381","on-2067912381") -> on-2067912381 | C175: Florianópolis | D175: SC | E175: SUL | F175: Avaliador 2 | G175: 15 | H175: 15 | I175: 15 | J175: 10 | K175: 5 | L175: 10 | M175: 8 | N175: 0 | O175: 0 | P175: 3 | Q175: 0 | R175: 0 | S175: 3 | T175: 0 | U175: 84 | W175: =W174 -> 73.5 | X175: =X174 -> CLASSIFICADO
A176: PESSOA FÍSICA | B176: =HYPERLINK("https://mapas.cultura.gov.br/inscricao/886084044","on-886084044") -> on-886084044 | C176: Itá | D176: SC | E176: SUL | F176: Avaliador 1 | G176: 10 | H176: 8 | I176: 12 | J176: 8 | K176: 5 | L176: 8 | M176: 3 | N176: 3 | O176: 0 | P176: 3 | Q176: 0 | R176: 0 | S176: 3 | T176: 0 | U176: 63 | W176: =AVERAGE(U176,U177) -> 73 | X176: CLASSIFICADO
A177: PESSOA FÍSICA | B177: =HYPERLINK("https://mapas.cultura.gov.br/inscricao/1335987924","on-1335987924") -> on-1335987924 | C177: São José | D177: SC | E177: SUL | F177: Avaliador 2 | G177: 20 | H177: 12 | I177: 15 | J177: 8 | K177: 5 | L177: 10 | M177: 10 | N177: 0 | O177: 0 | P177: 0 | Q177: 3 | R177: 0 | S177: 0 | T177: 0 | U177: 83 | W177: =W176 -> 73 | X177: =X176 -> CLASSIFICADO
A178: PESSOA FÍSICA | B178: =HYPERLINK("https://mapas.cultura.gov.br/inscricao/1958734241","on-1958734241") -> on-1958734241 | C178: Curitiba | D178: PR | E178: SUL | F178: Avaliador 1 | G178: 20 | H178: 12 | I178: 12 | J178: 3 | K178: 5 | L178: 8 | M178: 8 | N178: 0 | O178: 0 | P178: 0 | Q178: 0 | R178: 0 | S178: 0 | T178: 0 | U178: 68 | W178: =AVERAGE(U178,U179) -> 73 | X178: CLASSIFICADO
A179: PESSOA FÍSICA | B179: =HYPERLINK("https://mapas.cultura.gov.br/inscricao/1958734241","on-1958734241") -> on-1958734241 | C179: Curitiba | D179: PR | E179: SUL | F179: Avaliador 2 | G179: 20 | H179: 15 | I179: 15 | J179: 0 | K179: 8 | L179: 10 | M179: 10 | N179: 0 | O179: 0 | P179: 0 | Q179: 0 | R179: 0 | S179: 0 | T179: 0 | U179: 78 | W179: =W178 -> 73 | X179: =X178 -> CLASSIFICADO
A180: PESSOA FÍSICA | B180: =HYPERLINK("https://mapas.cultura.gov.br/inscricao/446799548","on-446799548") -> on-446799548 | C180: Florianópolis | D180: SC | E180: SUL | F180: Avaliador 1 | G180: 15 | H180: 8 | I180: 8 | J180: 10 | K180: 3 | L180: 8 | M180: 5 | N180: 3 | O180: 0 | P180: 3 | Q180: 3 | R180: 0 | S180: 3 | T180: 0 | U180: 69 | W180: =AVERAGE(U180,U181) -> 72.5 | X180: CLASSIFICADO
A181: PESSOA FÍSICA | B181: =HYPERLINK("https://mapas.cultura.gov.br/inscricao/1634255962","on-1634255962") -> on-1634255962 | C181: Forquillinha ,SC | D181: SC | E181: SUL | F181: Avaliador 2 | G181: 15 | H181: 15 | I181: 15 | J181: 3 | K181: 5 | L181: 10 | M181: 10 | N181: 0 | O181: 0 | P181: 0 | Q181: 3 | R181: 0 | S181: 0 | T181: 0 | U181: 76 | W181: =W180 -> 72.5 | X181: =X180 -> CLASSIFICADO
A182: PESSOA FÍSICA | B182: =HYPERLINK("https://mapas.cultura.gov.br/inscricao/298636560","on-298636560") -> on-298636560 | C182: Porto Alegre | D182: RS | E182: SUL | F182: Avaliador 1 | G182: 20 | H182: 8 | I182: 12 | J182: 10 | K182: 5 | L182: 8 | M182: 8 | N182: 5 | O182: 0 | P182: 3 | Q182: 3 | R182: 0 | S182: 3 | T182: 0 | U182: 85 | W182: =AVERAGE(U182,U183) -> 72.5 | X182: CLASSIFICADO
A183: PESSOA FÍSICA | B183: =HYPERLINK("https://mapas.cultura.gov.br/inscricao/298636560","on-298636560") -> on-298636560 | C183: Porto Alegre | D183: RS | E183: SUL | F183: Avaliador 2 | G183: 10 | H183: 8 | I183: 12 | J183: 0 | K183: 8 | L183: 8 | M183: 8 | N183: 0 | O183: 0 | P183: 3 | Q183: 3 | R183: 0 | S183: 0 | T183: 0 | U183: 60 | W183: =W182 -> 72.5 | X183: =X182 -> CLASSIFICADO
A184: PESSOA FÍSICA | B184: =HYPERLINK("https://mapas.cultura.gov.br/inscricao/1631899412","on-1631899412") -> on-1631899412 | C184: Londrina | D184: PR | E184: SUL | F184: Avaliador 1 | G184: 15 | H184: 12 | I184: 8 | J184: 10 | K184: 5 | L184: 5 | M184: 8 | N184: 0 | O184: 0 | P184: 3 | Q184: 0 | R184: 0 | S184: 0 | T184: 0 | U184: 66 | W184: =AVERAGE(U184,U185) -> 72.5 | X184: CLASSIFICADO
A185: PESSOA FÍSICA | B185: =HYPERLINK("https://mapas.cultura.gov.br/inscricao/1631899412","on-1631899412") -> on-1631899412 | C185: Londrina | D185: PR | E185: SUL | F185: Avaliador 2 | G185: 15 | H185: 15 | I185: 12 | J185: 10 | K185: 3 | L185: 10 | M185: 8 | N185: 3 | O185: 0 | P185: 3 | Q185: 0 | R185: 0 | S185: 0 | T185: 0 | U185: 79 | W185: =W184 -> 72.5 | X185: =X184 -> CLASSIFICADO
A186: PESSOA FÍSICA | B186: =HYPERLINK("https://mapas.cultura.gov.br/inscricao/473558870","on-473558870") -> on-473558870 | C186: Cascavel | D186: PR | E186: SUL | F186: Avaliador 1 | G186: 15 | H186: 12 | I186: 12 | J186: 10 | K186: 5 | L186: 5 | M186: 5 | N186: 0 | O186: 0 | P186: 0 | Q186: 3 | R186: 0 | S186: 3 | T186: 0 | U186: 70 | W186: =AVERAGE(U186,U187) -> 72.5 | X186: CLASSIFICADO
A187: PESSOA FÍSICA | B187: =HYPERLINK("https://mapas.cultura.gov.br/inscricao/473558870","on-473558870") -> on-473558870 | C187: Cascavel | D187: PR | E187: SUL | F187: Avaliador 2 | G187: 15 | H187: 4 | I187: 12 | J187: 10 | K187: 10 | L187: 10 | M187: 5 | N187: 3 | O187: 0 | P187: 0 | Q187: 3 | R187: 0 | S187: 3 | T187: 0 | U187: 75 | W187: =W186 -> 72.5 | X187: =X186 -> CLASSIFICADO
A188: PESSOA FÍSICA | B188: =HYPERLINK("https://mapas.cultura.gov.br/inscricao/851303638","on-851303638") -> on-851303638 | C188: Londrina | D188: PR | E188: SUL | F188: Avaliador 1 | G188: 15 | H188: 12 | I188: 12 | J188: 8 | K188: 8 | L188: 5 | M188: 5 | N188: 0 | O188: 0 | P188: 0 | Q188: 0 | R188: 0 | S188: 0 | T188: 0 | U188: 65 | W188: =AVERAGE(U188,U189) -> 72.5 | X188: CLASSIFICADO
A189: PESSOA FÍSICA | B189: =HYPERLINK("https://mapas.cultura.gov.br/inscricao/851303638","on-851303638") -> on-851303638 | C189: Londrina | D189: PR | E189: SUL | F189: Avaliador 2 | G189: 20 | H189: 15 | I189: 15 | J189: 5 | K189: 5 | L189: 10 | M189: 5 | N189: 5 | O189: 0 | P189: 0 | Q189: 0 | R189: 0 | S189: 0 | T189: 0 | U189: 80 | W189: =W188 -> 72.5 | X189: =X188 -> CLASSIFICADO
A190: PESSOA FÍSICA | B190: =HYPERLINK("https://mapas.cultura.gov.br/inscricao/745857951","on-745857951") -> on-745857951 | C190: Curitiba | D190: PR | E190: SUL | F190: Avaliador 1 | G190: 15 | H190: 12 | I190: 8 | J190: 5 | K190: 5 | L190: 5 | M190: 5 | N190: 5 | O190: 0 | P190: 0 | Q190: 3 | R190: 0 | S190: 0 | T190: 0 | U190: 63 | W190: =AVERAGE(U190,U191) -> 72.5 | X190: CLASSIFICADO
A191: PESSOA FÍSICA | B191: =HYPERLINK("https://mapas.cultura.gov.br/inscricao/745857951","on-745857951") -> on-745857951 | C191: Curitiba | D191: PR | E191: SUL | F191: Avaliador 2 | G191: 20 | H191: 12 | I191: 15 | J191: 3 | K191: 8 | L191: 8 | M191: 8 | N191: 5 | O191: 0 | P191: 0 | Q191: 3 | R191: 0 | S191: 0 | T191: 0 | U191: 82 | W191: =W190 -> 72.5 | X191: =X190 -> CLASSIFICADO
A192: PESSOA FÍSICA | B192: =HYPERLINK("https://mapas.cultura.gov.br/inscricao/1335987924","on-1335987924") -> on-1335987924 | C192: São José | D192: SC | E192: SUL | F192: Avaliador 1 | G192: 15 | H192: 4 | I192: 12 | J192: 3 | K192: 5 | L192: 8 | M192: 8 | N192: 8 | O192: 0 | P192: 0 | Q192: 3 | R192: 0 | S192: 0 | T192: 0 | U192: 66 | W192: =AVERAGE(U192,U193) -> 72 | X192: CLASSIFICADO
A193: PESSOA FÍSICA | B193: =HYPERLINK("https://mapas.cultura.gov.br/inscricao/337244078","on-337244078") -> on-337244078 | C193: São José | D193: SC | E193: SUL | F193: Avaliador 2 | G193: 20 | H193: 15 | I193: 15 | J193: 5 | K193: 5 | L193: 10 | M193: 8 | N193: 0 | O193: 0 | P193: 0 | Q193: 0 | R193: 0 | S193: 0 | T193: 0 | U193: 78 | W193: =W192 -> 72 | X193: =X192 -> CLASSIFICADO
A194: PESSOA FÍSICA | B194: =HYPERLINK("https://mapas.cultura.gov.br/inscricao/2059909172","on-2059909172") -> on-2059909172 | C194: Porto Alegre | D194: RS | E194: SUL | F194: Avaliador 1 | G194: 15 | H194: 12 | I194: 12 | J194: 5 | K194: 8 | L194: 8 | M194: 8 | N194: 10 | O194: 0 | P194: 0 | Q194: 3 | R194: 3 | S194: 0 | T194: 0 | U194: =SUM(G194:T194) -> 84 | W194: =AVERAGE(U194,U195) -> 72 | X194: CLASSIFICADO
A195: PESSOA FÍSICA | B195: =HYPERLINK("https://mapas.cultura.gov.br/inscricao/2059909172","on-2059909172") -> on-2059909172 | C195: Porto Alegre | D195: RS | E195: SUL | F195: Avaliador 2 | G195: 15 | H195: 12 | I195: 8 | J195: 3 | K195: 3 | L195: 8 | M195: 5 | N195: 0 | O195: 0 | P195: 0 | Q195: 3 | R195: 3 | S195: 0 | T195: 0 | U195: 60 | W195: =W194 -> 72 | X195: =X194 -> CLASSIFICADO
A196: PESSOA FÍSICA | B196: =HYPERLINK("https://mapas.cultura.gov.br/inscricao/2066021238","on-2066021238") -> on-2066021238 | C196: Londrina | D196: PR | E196: SUL | F196: Avaliador 1 | G196: 10 | H196: 12 | I196: 12 | J196: 10 | K196: 8 | L196: 8 | M196: 5 | N196: 0 | O196: 0 | P196: 3 | Q196: 0 | R196: 0 | S196: 0 | T196: 0 | U196: 68 | W196: =AVERAGE(U196,U197) -> 72 | X196: CLASSIFICADO
A197: PESSOA FÍSICA | B197: =HYPERLINK("https://mapas.cultura.gov.br/inscricao/2066021238","on-2066021238") -> on-2066021238 | C197: Londrina | D197: PR | E197: SUL | F197: Avaliador 2 | G197: 15 | H197: 12 | I197: 15 | J197: 8 | K197: 5 | L197: 8 | M197: 5 | N197: 5 | O197: 0 | P197: 3 | Q197: 0 | R197: 0 | S197: 0 | T197: 0 | U197: 76 | W197: =W196 -> 72 | X197: =X196 -> CLASSIFICADO
A198: PESSOA FÍSICA | B198: =HYPERLINK("https://mapas.cultura.gov.br/inscricao/341479294","on-341479294") -> on-341479294 | C198: Colombo | D198: PR | E198: SUL | F198: Avaliador 1 | G198: 15 | H198: 15 | I198: 12 | J198: 8 | K198: 8 | L198: 8 | M198: 8 | N198: 0 | O198: 0 | P198: 0 | Q198: 3 | R198: 0 | S198: 0 | T198: 0 | U198: 77 | W198: =AVERAGE(U198,U199) -> 72 | X198: CLASSIFICADO
A199: PESSOA FÍSICA | B199: =HYPERLINK("https://mapas.cultura.gov.br/inscricao/341479294","on-341479294") -> on-341479294 | C199: Colombo | D199: PR | E199: SUL | F199: Avaliador 2 | G199: 20 | H199: 8 | I199: 15 | J199: 3 | K199: 5 | L199: 10 | M199: 3 | N199: 0 | O199: 0 | P199: 0 | Q199: 3 | R199: 0 | S199: 0 | T199: 0 | U199: 67 | W199: =W198 -> 72 | X199: =X198 -> CLASSIFICADO
A200: PESSOA FÍSICA | B200: =HYPERLINK("https://mapas.cultura.gov.br/inscricao/1133891808","on-1133891808") -> on-1133891808 | C200: Campo Largo | D200: PR | E200: SUL | F200: Avaliador 1 | G200: 15 | H200: 12 | I200: 12 | J200: 3 | K200: 8 | L200: 5 | M200: 5 | N200: 0 | O200: 0 | P200: 0 | Q200: 3 | R200: 0 | S200: 3 | T200: 0 | U200: 66 | W200: =AVERAGE(U200,U201) -> 71.5 | X200: CLASSIFICADO
... 443 more rows

Sheet GRUPOS, COLETIVOS, CREW (2)
A1: CATEGORIA | B1: INSCRIÇÃO | C1: CIDADE | D1: UF | E1: REGIÃO | F1: AVALIADOR | G1: CRITÉRIOS DE AVALIAÇÃO E SELEÇÃO 1 | H1: CRITÉRIOS DE AVALIAÇÃO E SELEÇÃO 2 | I1: CRITÉRIOS DE AVALIAÇÃO E SELEÇÃO 3 | J1: CRITÉRIOS DE AVALIAÇÃO E SELEÇÃO 4 | K1: CRITÉRIOS DE AVALIAÇÃO E SELEÇÃO 5 | L1: CRITÉRIOS DE AVALIAÇÃO E SELEÇÃO 6 | M1: CRITÉRIOS DE AVALIAÇÃO E SELEÇÃO 7 | N1: CRITÉRIOS DE AVALIAÇÃO E SELEÇÃO 8 | O1: PONTUAÇÃO EXTRA - Pessoa com deficiência | P1: PONTUAÇÃO EXTRA - Mulher | Q1: PONTUAÇÃO EXTRA - Pessoa negra | R1: PONTUAÇÃO EXTRA -Indígena, matriz africana, de terreiro ou de povos ou de comunidades tradicionais | S1: PONTUAÇÃO EXTRA LGBTQIA+ | T1: PONTUAÇÃO EXTRA Idosa com 60 anos ou mais? | U1: NOTA POR AVALIADOR | V1: OBSERVAÇÃO | W1: OBSERVAÇÃO | X1: NOTA PRELIMINAR | Y1: STATUS
A2: GRUPOS, COLETIVOS, CREW | B2: =HYPERLINK("https://mapas.cultura.gov.br/inscricao/2039460773","on-2039460773") -> on-2039460773 | C2: Fazenda Rio Grande | D2: PR | E2: SUL | F2: Avaliador 1 | G2: 20 | H2: 15 | I2: 15 | J2: 10 | K2: 10 | L2: 10 | M2: 10 | N2: 10 | O2: 0 | P2: 3 | Q2: 3 | R2: 0 | S2: 0 | T2: 0 | U2: =SUM(G2:T2) -> 106 | V2: A proposta atende aos critérios estabelecidos em edital. | X2: =AVERAGE(U2,U3) -> 107.5 | Y2: PRÉ-SELECIONADO
A3: GRUPOS, COLETIVOS, CREW | B3: =HYPERLINK("https://mapas.cultura.gov.br/inscricao/2039460773","on-2039460773") -> on-2039460773 | C3: Fazenda Rio Grande | D3: PR | E3: SUL | F3: Avaliador 2 | G3: 20 | H3: 15 | I3: 15 | J3: 10 | K3: 10 | L3: 10 | M3: 10 | N3: 10 | O3: 0 | P3: 3 | Q3: 3 | R3: 0 | T3: 3 | U3: 109 | X3: =X2 -> 107.5 | Y3: =Y2 -> PRÉ-SELECIONADO
A4: GRUPOS, COLETIVOS, CREW | B4: =HYPERLINK("https://mapas.cultura.gov.br/inscricao/1189782291","on-1189782291") -> on-1189782291 | C4: Maringá | D4: PR | E4: SUL | F4: Avaliador 1 | G4: 20 | H4: 15 | I4: 15 | J4: 10 | K4: 10 | L4: 10 | M4: 10 | N4: 10 | O4: 0 | P4: 3 | Q4: 0 | R4: 0 | S4: 0 | T4: 0 | U4: 103 | V4: A proposta atende aos critérios estabelecidos em edital. | X4: =AVERAGE(U4,U5) -> 103 | Y4: PRÉ-SELECIONADO
A5: GRUPOS, COLETIVOS, CREW | B5: =HYPERLINK("https://mapas.cultura.gov.br/inscricao/1189782291","on-1189782291") -> on-1189782291 | C5: Maringá | D5: PR | E5: SUL | F5: Avaliador 2 | G5: 20 | H5: 15 | I5: 15 | J5: 10 | K5: 10 | L5: 10 | M5: 10 | N5: 10 | O5: 0 | P5: 3 | Q5: 0 | R5: 0 | T5: 0 | U5: 103 | X5: =X4 -> 103 | Y5: =Y4 -> PRÉ-SELECIONADO
A6: GRUPOS, COLETIVOS, CREW | B6: =HYPERLINK("https://mapas.cultura.gov.br/inscricao/1429536472","on-1429536472") -> on-1429536472 | C6: Araucária | D6: PR | E6: SUL | F6: Avaliador 1 | G6: 20 | H6: 15 | I6: 15 | J6: 10 | K6: 10 | L6: 10 | M6: 10 | N6: 10 | O6: 0 | P6: 0 | Q6: 0 | R6: 0 | S6: 0 | T6: 0 | U6: 100 | V6: A proposta atende aos critérios estabelecidos em edital | X6: =AVERAGE(U6,U7) -> 100 | Y6: PRÉ-SELECIONADO
A7: GRUPOS, COLETIVOS, CREW | B7: =HYPERLINK("https://mapas.cultura.gov.br/inscricao/1429536472","on-1429536472") -> on-1429536472 | C7: Araucária | D7: PR | E7: SUL | F7: Avaliador 2 | G7: 20 | H7: 15 | I7: 15 | J7: 10 | K7: 10 | L7: 10 | M7: 10 | N7: 10 | O7: 0 | P7: 0 | Q7: 0 | R7: 0 | T7: 0 | U7: 100 | X7: =X6 -> 100 | Y7: =Y6 -> PRÉ-SELECIONADO
A8: GRUPOS, COLETIVOS, CREW | B8: =HYPERLINK("https://mapas.cultura.gov.br/inscricao/671937759","on-671937759") -> on-671937759 | C8: Foz do Iguaçu | D8: PR | E8: SUL | F8: Avaliador 1 | G8: 20 | H8: 15 | I8: 15 | J8: 10 | K8: 10 | L8: 10 | M8: 10 | N8: 10 | O8: 0 | P8: 0 | Q8: 3 | R8: 0 | S8: 0 | T8: 0 | U8: 103 | V8: A proposta atende aos critérios estabelecidos em edital | X8: =AVERAGE(U8,U9) -> 98 | Y8: PRÉ-SELECIONADO
A9: GRUPOS, COLETIVOS, CREW | B9: =HYPERLINK("https://mapas.cultura.gov.br/inscricao/671937759","on-671937759") -> on-671937759 | C9: Foz do Iguaçu | D9: PR | E9: SUL | F9: Avaliador 2 | G9: 20 | H9: 15 | I9: 12 | J9: 8 | K9: 8 | L9: 8 | M9: 8 | N9: 8 | O9: 0 | P9: 0 | Q9: 3 | R9: 3 | T9: 0 | U9: 93 | X9: =X8 -> 98 | Y9: =Y8 -> PRÉ-SELECIONADO
A10: GRUPOS, COLETIVOS, CREW | B10: =HYPERLINK("https://mapas.cultura.gov.br/inscricao/1352064641","on-1352064641") -> on-1352064641 | C10: Guarapuava | D10: PR | E10: SUL | F10: Avaliador 1 | G10: 20 | H10: 12 | I10: 12 | J10: 10 | K10: 10 | L10: 10 | M10: 8 | N10: 10 | O10: 0 | P10: 3 | Q10: 3 | R10: 0 | S10: 0 | T10: 0 | U10: 98 | V10: A proposta atende aos critérios estabelecidos em edital, porém as ações voltadas a preservação da memória do segmento e as formações não foram bem evidenciadas no material anexado a análise | X10: =AVERAGE(U10,U11) -> 98 | Y10: PRÉ-SELECIONADO
A11: GRUPOS, COLETIVOS, CREW | B11: =HYPERLINK("https://mapas.cultura.gov.br/inscricao/1352064641","on-1352064641") -> on-1352064641 | C11: Guarapuava | D11: PR | E11: SUL | F11: Avaliador 2 | G11: 20 | H11: 15 | I11: 15 | J11: 10 | K11: 8 | L11: 8 | M11: 10 | N11: 3 | O11: 0 | P11: 3 | Q11: 3 | R11: 3 | T11: 0 | U11: 98 | X11: =X10 -> 98 | Y11: =Y10 -> PRÉ-SELECIONADO
A12: GRUPOS, COLETIVOS, CREW | B12: =HYPERLINK("https://mapas.cultura.gov.br/inscricao/1037160642","on-1037160642") -> on-1037160642 | C12: Joinville | D12: SC | E12: SUL | F12: Avaliador 1 | G12: 20 | H12: 15 | I12: 15 | J12: 10 | K12: 10 | L12: 10 | M12: 8 | N12: 3 | O12: 0 | P12: 3 | Q12: 0 | R12: 0 | S12: 3 | T12: 0 | U12: 97 | X12: =AVERAGE(U12,U13) -> 96.5 | Y12: PRÉ-SELECIONADO
A13: GRUPOS, COLETIVOS, CREW | B13: =HYPERLINK("https://mapas.cultura.gov.br/inscricao/1037160642","on-1037160642") -> on-1037160642 | C13: Joinville | D13: SC | E13: SUL | F13: Avaliador 2 | G13: 20 | H13: 15 | I13: 15 | J13: 10 | K13: 10 | L13: 10 | M13: 10 | N13: 0 | O13: 0 | P13: 3 | Q13: 0 | R13: 0 | S13: 3 | T13: 0 | U13: 96 | V13: Critério 8: A iniciativa não apresenta elementos para além dos 5 elementos do HIP HOP - Pontuação extra: Pessoa LGBTQIA+ | X13: =X12 -> 96.5 | Y13: =Y12 -> PRÉ-SELECIONADO
A14: GRUPOS, COLETIVOS, CREW | B14: =HYPERLINK("https://mapas.cultura.gov.br/inscricao/26410451","on-26410451") -> on-26410451 | C14: Porto Alegre | D14: RS | E14: SUL | F14: Avaliador 1 | G14: 20 | H14: 15 | I14: 15 | J14: 10 | K14: 10 | L14: 10 | M14: 10 | N14: 8 | O14: 0 | P14: 0 | Q14: 0 | R14: 0 | S14: 0 | T14: 0 | U14: 98 | V14: A ação tem como expressão cultural (Disc Jockey (DJ), Graffiti, Mestre de Cerimônia (MC), Rap). A proposta atende aos critérios estabelecidos em edital. | X14: =AVERAGE(U14,U15) -> 96.5 | Y14: PRÉ-SELECIONADO
A15: GRUPOS, COLETIVOS, CREW | B15: on-26410451 | C15: Porto Alegre | D15: RS | E15: SUL | F15: Avaliador 2 | G15: 20 | H15: 15 | I15: 15 | J15: 10 | K15: 5 | L15: 10 | M15: 10 | N15: 10 | S15: 0 | U15: 95 | V15: pARTICIPANTGE ATUANTE DA CONSTRUÇÃO NACIONAL | X15: =X14 -> 96.5 | Y15: =Y14 -> PRÉ-SELECIONADO
A16: GRUPOS, COLETIVOS, CREW | B16: =HYPERLINK("https://mapas.cultura.gov.br/inscricao/130676135","on-130676135") -> on-130676135 | C16: Caxias do Sul | D16: RS | E16: SUL | F16: Avaliador 1 | G16: 20 | H16: 15 | I16: 15 | J16: 10 | K16: 10 | L16: 10 | M16: 10 | N16: 10 | O16: 0 | P16: 3 | Q16: 0 | R16: 0 | S16: 0 | T16: 0 | U16: 103 | V16: A ação tem como expressão cultural (Cypher, Disc Jockey (DJ), Graffiti, Mestre de Cerimônia (MC), Slam, Breaking, Danças, Freestyle, Jam, Rap). A proposta atende aos critérios estabelecidos em edital. Pontua-se que faltou a pontuação por ser pessoa da comunidade LGBT. | X16: =AVERAGE(U16,U17) -> 96.5 | Y16: PRÉ-SELECIONADO
A17: GRUPOS, COLETIVOS, CREW | B17: on-130676135 | C17: Caxias do Sul | D17: RS | E17: SUL | F17: Avaliador 2 | G17: 15 | H17: 12 | I17: 15 | J17: 8 | K17: 10 | L17: 8 | M17: 8 | N17: 8 | P17: 3 | S17: 3 | U17: 90 | V17: PROPONENTE TRAVESTI | X17: =X16 -> 96.5 | Y17: =Y16 -> PRÉ-SELECIONADO
A18: GRUPOS, COLETIVOS, CREW | B18: =HYPERLINK("https://mapas.cultura.gov.br/inscricao/1841796282","on-1841796282") -> on-1841796282 | C18: Biguaçu | D18: SC | E18: SUL | F18: Avaliador 1 | G18: 20 | H18: 15 | I18: 15 | J18: 8 | K18: 5 | L18: 8 | M18: 10 | N18: 5 | O18: 0 | P18: 3 | Q18: 3 | R18: 0 | S18: 0 | T18: 0 | U18: 92 | X18: =AVERAGE(U18,U19) -> 94 | Y18: PRÉ-SELECIONADO
A19: GRUPOS, COLETIVOS, CREW | B19: =HYPERLINK("https://mapas.cultura.gov.br/inscricao/1841796282","on-1841796282") -> on-1841796282 | C19: Biguaçu | D19: SC | E19: SUL | F19: Avaliador 2 | G19: 20 | H19: 15 | I19: 15 | J19: 10 | K19: 10 | L19: 10 | M19: 10 | N19: 0 | O19: 0 | P19: 3 | Q19: 3 | R19: 0 | S19: 0 | T19: 0 | U19: 96 | V19: Critério 8: A iniciativa não apresenta elementos para além dos 5 elementos do HIP HOP | X19: =X18 -> 94 | Y19: =Y18 -> PRÉ-SELECIONADO
A20: GRUPOS, COLETIVOS, CREW | B20: =HYPERLINK("https://mapas.cultura.gov.br/inscricao/1058334778","on-1058334778") -> on-1058334778 | C20: Curitiba | D20: PR | E20: SUL | F20: Avaliador 1 | G20: 20 | H20: 0 | I20: 15 | J20: 10 | K20: 10 | L20: 10 | M20: 10 | N20: 10 | O20: 0 | P20: 0 | Q20: 0 | R20: 0 | S20: 3 | T20: 0 | U20: 88 | V20: A proposta atende aos critérios estabelecidos em edital, porém mediante documentação apresentada não se visualizou atendimento ao item 2 do edital. Pontua-se que faltou a pontuação por ser pessoa da comunidade LGBT. | X20: =AVERAGE(U20,U21) -> 92.5 | Y20: PRÉ-SELECIONADO
A21: GRUPOS, COLETIVOS, CREW | B21: =HYPERLINK("https://mapas.cultura.gov.br/inscricao/1058334778","on-1058334778") -> on-1058334778 | C21: Curitiba | D21: PR | E21: SUL | F21: Avaliador 2 | G21: 20 | H21: 8 | I21: 15 | J21: 8 | K21: 10 | L21: 10 | M21: 10 | N21: 10 | O21: 0 | P21: 3 | Q21: 3 | R21: 0 | T21: 0 | U21: 97 | X21: =X20 -> 92.5 | Y21: =Y20 -> PRÉ-SELECIONADO
A22: GRUPOS, COLETIVOS, CREW | B22: =HYPERLINK("https://mapas.cultura.gov.br/inscricao/27959871","on-27959871") -> on-27959871 | C22: Santa Maria | D22: RS | E22: SUL | F22: Avaliador 1 | G22: 15 | H22: 15 | I22: 15 | J22: 10 | K22: 10 | L22: 10 | M22: 10 | N22: 10 | O22: 0 | P22: 3 | Q22: 0 | R22: 0 | S22: 0 | T22: 0 | U22: 98 | V22: A ação tem como expressão cultural (Cypher, Disc Jockey (DJ), Graffiti, Breaking, Danças, Freestyle, Mestre de Cerimônia (MC), Slam, Rap). A proposta atende aos critérios estabelecidos em edital. | X22: =AVERAGE(U22,U23) -> 92.5 | Y22: PRÉ-SELECIONADO
A23: GRUPOS, COLETIVOS, CREW | B23: on-27959871 | C23: Santa Maria | D23: RS | E23: SUL | F23: Avaliador 2 | G23: 20 | H23: 12 | I23: 12 | J23: 8 | K23: 8 | L23: 8 | M23: 8 | N23: 8 | S23: 3 | U23: 87 | V23: PROPONENTE TRAVESTI | X23: =X22 -> 92.5 | Y23: =Y22 -> PRÉ-SELECIONADO
A24: GRUPOS, COLETIVOS, CREW | B24: =HYPERLINK("https://mapas.cultura.gov.br/inscricao/1358358448","on-1358358448") -> on-1358358448 | C24: Porto Alegre | D24: RS | E24: SUL | F24: Avaliador 1 | G24: 20 | H24: 15 | I24: 15 | J24: 10 | K24: 10 | L24: 10 | M24: 10 | N24: 10 | O24: 0 | P24: 0 | Q24: 0 | R24: 0 | S24: 0 | T24: 0 | U24: 100 | V24: A ação tem como expressão cultural (Breaking, Graffiti, Cypher, Danças, Freestyle, Jam, Rap, Mestre de Cerimônia (MC)). A proposta atende aos critérios estabelecidos em edital. | X24: =AVERAGE(U24,U25) -> 92 | Y24: CLASSIFICADO
A25: GRUPOS, COLETIVOS, CREW | B25: on-1358358448 | C25: Porto Alegre | D25: RS | E25: SUL | F25: Avaliador 2 | G25: 15 | H25: 12 | I25: 15 | J25: 8 | K25: 8 | L25: 8 | M25: 8 | N25: 10 | S25: 0 | U25: 84 | X25: =X24 -> 92 | Y25: =Y24 -> CLASSIFICADO
A26: GRUPOS, COLETIVOS, CREW | B26: =HYPERLINK("https://mapas.cultura.gov.br/inscricao/1717093011","on-1717093011") -> on-1717093011 | C26: Londrina | D26: PR | E26: SUL | F26: Avaliador 1 | G26: 15 | H26: 15 | I26: 12 | J26: 10 | K26: 10 | L26: 10 | M26: 10 | N26: 0 | O26: 0 | P26: 3 | Q26: 3 | R26: 0 | S26: 0 | T26: 0 | U26: 88 | V26: A proposta atende aos critérios estabelecidos em edital, porémnão se visualizou na documentação apresentada ações de intercâmbio com outras formas artísticas afins à cultura Hip Hop, em particular as expressões culturais afro-brasileiras de matriz africana e de terreiros. | X26: =AVERAGE(U26,U27) -> 89 | Y26: CLASSIFICADO
A27: GRUPOS, COLETIVOS, CREW | B27: =HYPERLINK("https://mapas.cultura.gov.br/inscricao/1717093011","on-1717093011") -> on-1717093011 | C27: Londrina | D27: PR | E27: SUL | F27: Avaliador 2 | G27: 20 | H27: 15 | I27: 12 | J27: 10 | K27: 10 | L27: 10 | M27: 10 | N27: 0 | O27: 0 | P27: 0 | Q27: 3 | R27: 0 | T27: 0 | U27: 90 | X27: =X26 -> 89 | Y27: =Y26 -> CLASSIFICADO
A28: GRUPOS, COLETIVOS, CREW | B28: =HYPERLINK("https://mapas.cultura.gov.br/inscricao/1463677094","on-1463677094") -> on-1463677094 | C28: Curitiba | D28: PR | E28: SUL | F28: Avaliador 1 | G28: 20 | H28: 15 | I28: 15 | J28: 10 | K28: 10 | L28: 10 | M28: 10 | N28: 10 | O28: 0 | P28: 3 | Q28: 0 | R28: 0 | S28: 0 | T28: 0 | U28: 103 | V28: A proposta atende aos critérios estabelecidos em edital | X28: =AVERAGE(U28,U29) -> 89 | Y28: CLASSIFICADO
A29: GRUPOS, COLETIVOS, CREW | B29: =HYPERLINK("https://mapas.cultura.gov.br/inscricao/1463677094","on-1463677094") -> on-1463677094 | C29: Curitiba | D29: PR | E29: SUL | F29: Avaliador 2 | G29: 10 | H29: 15 | I29: 12 | J29: 8 | K29: 8 | L29: 8 | M29: 8 | N29: 3 | O29: 0 | P29: 3 | Q29: 0 | R29: 0 | T29: 0 | U29: 75 | X29: =X28 -> 89 | Y29: =Y28 -> CLASSIFICADO
A30: GRUPOS, COLETIVOS, CREW | B30: =HYPERLINK("https://mapas.cultura.gov.br/inscricao/2098314421","on-2098314421") -> on-2098314421 | C30: Engenheiro Beltrão | D30: PR | E30: SUL | F30: Avaliador 1 | G30: 20 | H30: 15 | I30: 8 | J30: 10 | K30: 8 | L30: 10 | M30: 10 | N30: 5 | O30: 0 | P30: 3 | Q30: 3 | R30: 0 | S30: 3 | T30: 0 | U30: 95 | V30: A proposta atende aos critérios estabelecidos em edital. Pontua-se que faltou a pontuação por ser pessoa da comunidade LGBT. | X30: =AVERAGE(U30,U31) -> 86 | Y30: CLASSIFICADO
A31: GRUPOS, COLETIVOS, CREW | B31: =HYPERLINK("https://mapas.cultura.gov.br/inscricao/2098314421","on-2098314421") -> on-2098314421 | C31: Engenheiro Beltrão | D31: PR | E31: SUL | F31: Avaliador 2 | G31: 15 | H31: 12 | I31: 8 | J31: 8 | K31: 8 | L31: 8 | M31: 10 | N31: 8 | U31: 77 | X31: =X30 -> 86 | Y31: =Y30 -> CLASSIFICADO
A32: GRUPOS, COLETIVOS, CREW | B32: =HYPERLINK("https://mapas.cultura.gov.br/inscricao/58628150","on-58628150") -> on-58628150 | C32: Balneário Camboriú | D32: SC | E32: SUL | F32: Avaliador 1 | G32: 20 | H32: 8 | I32: 12 | J32: 5 | K32: 5 | L32: 10 | M32: 5 | N32: 3 | O32: 0 | P32: 0 | Q32: 0 | R32: 0 | S32: 0 | T32: 0 | U32: 68 | V32: Notas baixas em alguns critérios pois proponente acreditou tratar-se de edital de foemnto, portanto avaliação realizada conforme materiais disponíveis. | X32: =AVERAGE(U32,U33) -> 78 | Y32: CLASSIFICADO
A33: GRUPOS, COLETIVOS, CREW | B33: =HYPERLINK("https://mapas.cultura.gov.br/inscricao/58628150","on-58628150") -> on-58628150 | C33: Balneário Camboriú | D33: SC | E33: SUL | F33: Avaliador 2 | G33: 20 | H33: 12 | I33: 15 | J33: 3 | K33: 8 | L33: 10 | M33: 10 | N33: 10 | O33: 0 | P33: 0 | Q33: 0 | R33: 0 | S33: 0 | T33: 0 | U33: 88 | V33: Critério 4: Pouca presença de protagonismo feminino e/ou LGBTQIA+ / Critério 8: A iniciativa não apresenta elementos para além dos 5 elementos do HIP HOP | X33: =X32 -> 78 | Y33: =Y32 -> CLASSIFICADO
A34: GRUPOS, COLETIVOS, CREW | B34: =HYPERLINK("https://mapas.cultura.gov.br/inscricao/1508686514","on-1508686514") -> on-1508686514 | C34: Pelotas | D34: RS | E34: SUL | F34: Avaliador 1 | G34: 0 | H34: 4 | I34: 15 | J34: 10 | K34: 8 | L34: 10 | M34: 10 | N34: 0 | O34: 0 | P34: 3 | Q34: 3 | R34: 0 | S34: 3 | T34: 0 | U34: =SUM(G34:T34) -> 66 | V34: A proposta atende a alguns critérios estabelecidos em edital, porém mediante documentação apresentada não e visualizou atendimento aos critérios 1 e 8. Pontua-se que faltou a pontuação por ser pessoa da comunidade LGBT. Porém, A ação de Número da Inscrição on-1508686514 é de uma pessoa com CNPJ: 45.728.645/0001-83 e de acordo com o edital no 6.3, diz que: A candidatura que possua CNPJ não poderá se inscrever como grupo/coletivo cultural, sob pena de desclassificação em qualquer etapa deste Edital. Já no item 8. DAS VEDAÇÕES do edital apresenta-se que: item 8.1. Não podem participar deste Edital, sob pena de imediata desclassificação, candidaturas que: sejam pessoas jurídicas com fins lucrativos, inclusive Microempreendedor Individual –MEI. Assim sendo a candidatura recai na desclassificação. | X34: =AVERAGE(U34,U35) -> 77.5 | Y34: CLASSIFICADO
A35: GRUPOS, COLETIVOS, CREW | B35: on-1508686514 | C35: Pelotas | D35: RS | E35: SUL | F35: Avaliador 2 | G35: 15 | H35: 12 | I35: 15 | J35: 8 | K35: 10 | L35: 8 | M35: 10 | N35: 5 | P35: 3 | Q35: 3 | S35: 0 | U35: 89 | X35: =X34 -> 77.5 | Y35: =Y34 -> CLASSIFICADO
A36: GRUPOS, COLETIVOS, CREW | B36: =HYPERLINK("https://mapas.cultura.gov.br/inscricao/576365631","on-576365631") -> on-576365631 | C36: Curitiba | D36: PR | E36: SUL | F36: Avaliador 1 | G36: 20 | H36: 8 | I36: 8 | J36: 8 | K36: 5 | L36: 5 | M36: 8 | N36: 5 | O36: 0 | P36: 0 | Q36: 3 | R36: 0 | S36: 0 | T36: 0 | U36: 70 | V36: Diante das informações apresentadas não e visualizou o atendimento aos itens 2 e 4 do edital. | X36: =AVERAGE(U36,U37) -> 73.5 | Y36: CLASSIFICADO
A37: GRUPOS, COLETIVOS, CREW | B37: =HYPERLINK("https://mapas.cultura.gov.br/inscricao/576365631","on-576365631") -> on-576365631 | C37: Curitiba | D37: PR | E37: SUL | F37: Avaliador 2 | G37: 20 | H37: 8 | I37: 8 | J37: 10 | K37: 8 | L37: 5 | M37: 10 | N37: 5 | Q37: 3 | U37: 77 | X37: =X36 -> 73.5 | Y37: =Y36 -> CLASSIFICADO
A38: GRUPOS, COLETIVOS, CREW | B38: =HYPERLINK("https://mapas.cultura.gov.br/inscricao/806678324","on-806678324") -> on-806678324 | C38: Curitiba | D38: PR | E38: SUL | F38: Avaliador 1 | G38: 20 | H38: 8 | I38: 8 | J38: 10 | K38: 0 | L38: 10 | M38: 0 | N38: 0 | O38: 0 | P38: 3 | Q38: 0 | R38: 0 | S38: 3 | T38: 0 | U38: 62 | V38: A atendeu a alguns critérios estabelecidos em edital, porém não se visualizou diante da documentação apresentada as suas contribuições para crianças, o contexto educativo da ação e sua relação na formação de rede e ou parcerias com outras linguagens. A proposta atende aos critérios estabelecidos em edital. Pontua-se que faltou a pontuação por ser pessoa da comunidade LGBT. | X38: =AVERAGE(U38,U39) -> 72.5 | Y38: CLASSIFICADO
A39: GRUPOS, COLETIVOS, CREW | B39: =HYPERLINK("https://mapas.cultura.gov.br/inscricao/806678324","on-806678324") -> on-806678324 | C39: Curitiba | D39: PR | E39: SUL | F39: Avaliador 2 | G39: 20 | H39: 8 | I39: 12 | J39: 8 | K39: 8 | L39: 8 | M39: 8 | N39: 8 | O39: 0 | P39: 3 | Q39: 0 | R39: 0 | T39: 0 | U39: 83 | V39: Preponente travesti | X39: =X38 -> 72.5 | Y39: =Y38 -> CLASSIFICADO
A40: GRUPOS, COLETIVOS, CREW | B40: =HYPERLINK("https://mapas.cultura.gov.br/inscricao/1557068775","on-1557068775") -> on-1557068775 | C40: Pelotas | D40: RS | E40: SUL | F40: Avaliador 1 | G40: 20 | H40: 15 | I40: 15 | J40: 0 | K40: 10 | L40: 10 | M40: 10 | N40: 0 | O40: 0 | P40: 0 | Q40: 0 | R40: 0 | S40: 0 | T40: 0 | U40: 80 | V40: A ação tem como expressão cultural (Rap, Freestyle, Danças, Breaking, Mestre de Cerimônia (MC)). A proposta atende aos critérios estabelecidos em edital. Porém diante da documentação apresentada não se visualizou ações voltadas aos critérios 4 e 8. | X40: =AVERAGE(U40,U41) -> 72 | Y40: CLASSIFICADO
A41: GRUPOS, COLETIVOS, CREW | B41: on-1557068775 | C41: Pelotas | D41: RS | E41: SUL | F41: Avaliador 2 | G41: 20 | H41: 8 | I41: 8 | J41: 3 | K41: 5 | L41: 5 | M41: 5 | N41: 10 | S41: 0 | U41: 64 | X41: =X40 -> 72 | Y41: =Y40 -> CLASSIFICADO
A42: GRUPOS, COLETIVOS, CREW | B42: =HYPERLINK("https://mapas.cultura.gov.br/inscricao/368613950","on-368613950") -> on-368613950 | C42: Ijuí | D42: RS | E42: SUL | F42: Avaliador 1 | G42: 15 | H42: 15 | I42: 12 | J42: 0 | K42: 5 | L42: 10 | M42: 5 | N42: 0 | O42: 0 | P42: 0 | Q42: 0 | R42: 0 | S42: 0 | T42: 0 | U42: 62 | V42: A ação tem como expressão cultural (Cypher, Beatboxing, Mestre de Cerimônia (MC), Slam, Graffiti, Breaking, Freestyle, Rap). A proposta atende aos critérios estabelecidos em edital. Porém diante da documentação apresentada não se visualizou ações voltadas aos critérios 4 e 8. | X42: =AVERAGE(U42,U43) -> 70.5 | Y42: CLASSIFICADO
A43: GRUPOS, COLETIVOS, CREW | B43: on-368613950 | C43: Ijuí | D43: RS | E43: SUL | F43: Avaliador 2 | G43: 20 | H43: 12 | I43: 12 | J43: 8 | K43: 3 | L43: 8 | M43: 8 | N43: 5 | Q43: 3 | S43: 0 | U43: 79 | X43: =X42 -> 70.5 | Y43: =Y42 -> CLASSIFICADO
A44: GRUPOS, COLETIVOS, CREW | B44: =HYPERLINK("https://mapas.cultura.gov.br/inscricao/55294395","on-55294395") -> on-55294395 | C44: Campo Largo | D44: PR | E44: SUL | F44: Avaliador 1 | G44: 20 | H44: 4 | I44: 8 | J44: 10 | K44: 10 | L44: 10 | M44: 5 | N44: 5 | O44: 0 | P44: 0 | Q44: 0 | R44: 0 | S44: 0 | T44: 0 | U44: 72 | V44: A ação atende aos critérios estabelecidos em edital, porém, não se visualizou na documentação apresentada ações voltadas ao público jovem com idades entre 6 e 18, sobretudo com a participação estudantes em suas escolas, também pouco se visualizou atividades de formação, apenas uma ação neste sentido foi apresentada no material disponibilizado pelo proponente. | X44: =AVERAGE(U44,U45) -> 69.5 | Y44: CLASSIFICADO
A45: GRUPOS, COLETIVOS, CREW | B45: =HYPERLINK("https://mapas.cultura.gov.br/inscricao/55294395","on-55294395") -> on-55294395 | C45: Campo Largo | D45: PR | E45: SUL | F45: Avaliador 2 | G45: 15 | H45: 12 | I45: 8 | J45: 3 | K45: 8 | L45: 8 | M45: 8 | N45: 5 | O45: 0 | P45: 0 | Q45: 0 | R45: 0 | T45: 0 | U45: 67 | X45: =X44 -> 69.5 | Y45: =Y44 -> CLASSIFICADO
A46: GRUPOS, COLETIVOS, CREW | B46: =HYPERLINK("https://mapas.cultura.gov.br/inscricao/536341352","on-536341352") -> on-536341352 | C46: Chapecó | D46: SC | E46: SUL | F46: Avaliador 1 | G46: 10 | H46: 12 | I46: 8 | J46: 3 | K46: 5 | L46: 8 | M46: 8 | N46: 3 | O46: 0 | P46: 0 | Q46: 3 | R46: 0 | S46: 0 | T46: 0 | U46: 60 | X46: =AVERAGE(U46,U47) -> 65 | Y46: CLASSIFICADO
A47: GRUPOS, COLETIVOS, CREW | B47: =HYPERLINK("https://mapas.cultura.gov.br/inscricao/536341352","on-536341352") -> on-536341352 | C47: Chapecó | D47: SC | E47: SUL | F47: Avaliador 2 | G47: 15 | H47: 12 | I47: 15 | J47: 0 | K47: 5 | L47: 10 | M47: 10 | N47: 0 | O47: 0 | P47: 0 | Q47: 3 | R47: 0 | S47: 0 | T47: 0 | U47: 70 | V47: Critério 4: Ausência de protagonismo feminino e/ou LGBTQIA+ / Critério 8: A iniciativa não apresenta elementos para além dos 5 elementos do HIP HOP | X47: =X46 -> 65 | Y47: =Y46 -> CLASSIFICADO
A48: GRUPOS, COLETIVOS, CREW | B48: =HYPERLINK("https://mapas.cultura.gov.br/inscricao/261337491","on-261337491") -> on-261337491 | C48: Balneário Camboriú | D48: SC | E48: SUL | F48: Avaliador 1 | G48: 10 | H48: 12 | I48: 8 | J48: 5 | K48: 3 | L48: 8 | M48: 5 | N48: 5 | O48: 0 | P48: 0 | Q48: 0 | R48: 0 | S48: 0 | T48: 0 | U48: 56 | X48: =AVERAGE(U48,U49) -> 64 | Y48: CLASSIFICADO
A49: GRUPOS, COLETIVOS, CREW | B49: =HYPERLINK("https://mapas.cultura.gov.br/inscricao/261337491","on-261337491") -> on-261337491 | C49: Balneário Camboriú | D49: SC | E49: SUL | F49: Avaliador 2 | G49: 20 | H49: 12 | I49: 15 | J49: 0 | K49: 5 | L49: 10 | M49: 10 | N49: 0 | O49: 0 | P49: 0 | Q49: 0 | R49: 0 | S49: 0 | T49: 0 | U49: 72 | V49: Expressão cultural: Graffiti/RAP/Freestyle - Critério 8: A iniciativa não apresenta elementos para além dos 5 elementos do HIP HOP | X49: =X48 -> 64 | Y49: =Y48 -> CLASSIFICADO
A50: GRUPOS, COLETIVOS, CREW | B50: =HYPERLINK("https://mapas.cultura.gov.br/inscricao/579264779","on-579264779") -> on-579264779 | C50: Rolandia | D50: PR | E50: SUL | F50: Avaliador 1 | G50: 15 | H50: 0 | I50: 12 | J50: 5 | K50: 8 | L50: 10 | M50: 0 | N50: 8 | O50: 0 | P50: 0 | Q50: 0 | R50: 0 | S50: 0 | T50: 0 | U50: 58 | V50: A proposta atende aos critérios estabelecidos em edital, porém não e visualizou na documentação apresentada ações voltadas aos critérios 2 e 7 do edital. | X50: =AVERAGE(U50,U51) -> 62.5 | Y50: CLASSIFICADO
A51: GRUPOS, COLETIVOS, CREW | B51: =HYPERLINK("https://mapas.cultura.gov.br/inscricao/579264779","on-579264779") -> on-579264779 | C51: Rolandia | D51: PR | E51: SUL | F51: Avaliador 2 | G51: 15 | H51: 12 | I51: 12 | J51: 8 | K51: 5 | L51: 5 | M51: 5 | N51: 5 | U51: 67 | X51: =X50 -> 62.5 | Y51: =Y50 -> CLASSIFICADO
A52: GRUPOS, COLETIVOS, CREW | B52: =HYPERLINK("https://mapas.cultura.gov.br/inscricao/1711976837","on-1711976837") -> on-1711976837 | C52: Joinville | D52: SC | E52: SUL | F52: Avaliador 1 | G52: 10 | H52: 4 | I52: 8 | J52: 3 | K52: 3 | L52: 5 | M52: 5 | N52: 8 | O52: 0 | P52: 0 | Q52: 3 | R52: 0 | S52: 0 | T52: 0 | U52: 49 | X52: =AVERAGE(U52,U53) -> 61.5 | Y52: CLASSIFICADO
A53: GRUPOS, COLETIVOS, CREW | B53: =HYPERLINK("https://mapas.cultura.gov.br/inscricao/1711976837","on-1711976837") -> on-1711976837 | C53: Joinville | D53: SC | E53: SUL | F53: Avaliador 2 | G53: 15 | H53: 8 | I53: 12 | J53: 3 | K53: 10 | L53: 10 | M53: 10 | N53: 3 | O53: 0 | P53: 0 | Q53: 3 | R53: 0 | S53: 0 | T53: 0 | U53: 74 | V53: Expressão cultural: RAP - Critério 4: Ausência de protagonismo feminino e/ou LGBTQIA+ / Critério 8: Rap Haitiano | X53: =X52 -> 61.5 | Y53: =Y52 -> CLASSIFICADO
A54: GRUPOS, COLETIVOS, CREW | B54: =HYPERLINK("https://mapas.cultura.gov.br/inscricao/164232682","on-164232682") -> on-164232682 | C54: Florianópolis | D54: SC | E54: SUL | F54: Avaliador 1 | G54: 5 | H54: 8 | I54: 8 | J54: 5 | K54: 5 | L54: 5 | M54: 5 | N54: 3 | O54: 0 | P54: 0 | Q54: 3 | R54: 0 | S54: 0 | T54: 0 | U54: 47 | X54: =AVERAGE(U54,U55) -> 61.5 | Y54: CLASSIFICADO
A55: GRUPOS, COLETIVOS, CREW | B55: =HYPERLINK("https://mapas.cultura.gov.br/inscricao/164232682","on-164232682") -> on-164232682 | C55: Florianópolis | D55: SC | E55: SUL | F55: Avaliador 2 | G55: 10 | H55: 15 | I55: 12 | J55: 8 | K55: 5 | L55: 10 | M55: 10 | N55: 3 | O55: 0 | P55: 0 | Q55: 3 | R55: 0 | S55: 0 | T55: 0 | U55: 76 | X55: =X54 -> 61.5 | Y55: =Y54 -> CLASSIFICADO
A56: GRUPOS, COLETIVOS, CREW | B56: =HYPERLINK("https://mapas.cultura.gov.br/inscricao/395752492","on-395752492") -> on-395752492 | C56: Cambé | D56: PR | E56: SUL | F56: Avaliador 1 | G56: 20 | H56: 0 | I56: 12 | J56: 3 | K56: 0 | L56: 10 | M56: 8 | N56: 0 | O56: 0 | P56: 0 | Q56: 3 | R56: 0 | S56: 0 | T56: 0 | U56: 56 | V56: A proposta atende a alguns critérios estabelecidos em edital, porém mediante informações apontadas e a documentação apresentada não visualizou atendimento aos critérios itens 2, 3, 8 do edital. | X56: =AVERAGE(U56,U57) -> 60.5 | Y56: CLASSIFICADO
A57: GRUPOS, COLETIVOS, CREW | B57: =HYPERLINK("https://mapas.cultura.gov.br/inscricao/395752492","on-395752492") -> on-395752492 | C57: Cambé | D57: PR | E57: SUL | F57: Avaliador 2 | G57: 20 | H57: 4 | I57: 12 | J57: 5 | K57: 0 | L57: 10 | M57: 8 | N57: 3 | O57: 0 | P57: 0 | Q57: 3 | R57: 0 | T57: 0 | U57: 65 | X57: =X56 -> 60.5 | Y57: =Y56 -> CLASSIFICADO
A58: GRUPOS, COLETIVOS, CREW | B58: =HYPERLINK("https://mapas.cultura.gov.br/inscricao/197197307","on-197197307") -> on-197197307 | C58: Porto Alegre | D58: RS | E58: SUL | F58: Avaliador 1 | G58: 20 | H58: 15 | I58: 15 | J58: 10 | K58: 10 | L58: 10 | M58: 10 | N58: 10 | O58: 0 | P58: 3 | Q58: 3 | R58: 0 | S58: 3 | T58: 0 | U58: 109 | V58: A proposta atende aos critérios estabelecidos em edital, porém não atendeu ao item 7.7 (c) do edital, não anexou cópia do RG e CPF dos membros do grupo/coletivo cultural que indicarem a pessoa física representante. Aponta-se o item 7.13. Documentos ausentes, incompletos ou ilegíveis serão desconsiderados e a candidatura será desclassificada na Etapa de Seleção. Por fim, pontua-se que faltou a pontuação por ser pessoa da comunidade LGBT. | W58: DESCLASSIFICADO COM BASE NO ITEM 7.10 | X58: =AVERAGE(U58,U59) -> 109 | Y58: DESCLASSIFICADO
A59: GRUPOS, COLETIVOS, CREW | B59: on-197197307 | C59: Porto Alegre | D59: RS | E59: SUL | F59: Avaliador 2 | G59: 20 | H59: 15 | I59: 15 | J59: 10 | K59: 10 | L59: 10 | M59: 10 | N59: 10 | O59: 0 | P59: 3 | Q59: 3 | R59: 0 | S59: 3 | T59: 0 | U59: 109 | V59: Proponente LGBT | X59: =X58 -> 109
A60: GRUPOS, COLETIVOS, CREW | B60: =HYPERLINK("https://mapas.cultura.gov.br/inscricao/628727185","on-628727185") -> on-628727185 | C60: Rio Grande | D60: RS | E60: SUL | F60: Avaliador 1 | G60: 20 | H60: 15 | I60: 15 | J60: 8 | K60: 8 | L60: 10 | M60: 10 | N60: 10 | O60: 0 | P60: 0 | Q60: 3 | R60: 0 | S60: 3 | T60: 0 | U60: 102 | V60: A ação tem como expressão cultural (Beatboxing, Freestyle, Danças, Breaking, Rap, Disc Jockey (DJ)). Pontua-se que faltou a pontuação por ser pessoa da comunidade LGBT. Não atendeu aos itens 7.7 c) e por fim o item 7.13. Documentos ausentes, incompletos ou ilegíveis serão desconsiderados e a candidatura será desclassificada na Etapa de Seleção. Faltou a documentação CPF e identidade dos integrantes coletivo. Assim a ação está desclassificada. | W60: DESCLASSIFICADO COM BASE NO ITEM 7.10 | X60: =AVERAGE(U60,U61) -> 93.5 | Y60: DESCLASSIFICADO
A61: GRUPOS, COLETIVOS, CREW | B61: on-628727185 | C61: Rio Grande | D61: RS | E61: SUL | F61: Avaliador 2 | G61: 15 | H61: 12 | I61: 12 | J61: 8 | K61: 8 | L61: 8 | M61: 8 | N61: 8 | O61: 0 | P61: 0 | Q61: 3 | R61: 0 | S61: 3 | T61: 0 | U61: 85 | V61: falta documentos de rg / Trata-se de pessoa LGBTQIA+ | X61: =X60 -> 93.5
A62: GRUPOS, COLETIVOS, CREW | B62: =HYPERLINK("https://mapas.cultura.gov.br/inscricao/2117464365","on-2117464365") -> on-2117464365 | C62: Porto Alegre | D62: RS | E62: SUL | F62: Avaliador 1 | G62: 20 | H62: 12 | I62: 15 | J62: 10 | K62: 10 | L62: 10 | M62: 10 | N62: 8 | O62: 0 | P62: 3 | Q62: 0 | R62: 0 | S62: 3 | T62: 0 | U62: 101 | V62: A ação tem como expressão cultural (Cypher, Mestre de Cerimônia (MC), Freestyle, Rap, Jam, Outros, Slam). Pontua-se que faltou a pontuação por ser pessoa da comunidade LGBT. Não atendeu aos itens 7.7 c) e por fim o item 7.13. Documentos ausentes, incompletos ou ilegíveis serão desconsiderados e a candidatura será desclassificada na Etapa de Seleção. Faltou a documentação CPF e identidade dos integrantes coletivo. Assim a ação está desclassificada. | W62: DESCLASSIFICADO COM BASE NO ITEM 7.10 | X62: =AVERAGE(U62,U63) -> 92.5 | Y62: DESCLASSIFICADO
A63: GRUPOS, COLETIVOS, CREW | B63: on-2117464365 | C63: Porto Alegre | D63: RS | E63: SUL | F63: Avaliador 2 | G63: 15 | H63: 12 | I63: 12 | J63: 10 | K63: 5 | L63: 8 | M63: 8 | N63: 8 | O63: 0 | P63: 3 | Q63: 0 | R63: 0 | S63: 3 | T63: 0 | U63: 84 | V63: Trata-se de pessoa LGBTQIA+ / Falta documentos de rg | X63: =X62 -> 92.5
A64: GRUPOS, COLETIVOS, CREW | B64: =HYPERLINK("https://mapas.cultura.gov.br/inscricao/1155267689","on-1155267689") -> on-1155267689 | C64: Curitiba | D64: PR | E64: SUL | F64: Avaliador 1 | G64: 20 | H64: 15 | I64: 15 | J64: 10 | K64: 10 | L64: 10 | M64: 10 | N64: 10 | O64: 0 | P64: 0 | Q64: 3 | R64: 0 | S64: 0 | T64: 0 | U64: 103 | V64: A proposta atende aos critérios estabelecidos em edital. Aponta-se que não atendeu ao item 7.7 (c) do edital, não anexou cópia do RG e CPF dos membros do grupo/coletivo cultural que indicarem a pessoa física representante. Aponta-se o item 7.13. Documentos ausentes, incompletos ou ilegíveis serão desconsiderados e a candidatura será desclassificada na Etapa de Seleção. | W64: DESCLASSIFICADA COM BASE NO ITEM 7.10 | X64: =AVERAGE(U64,U65) -> 92 | Y64: DESCLASSIFICADO
A65: GRUPOS, COLETIVOS, CREW | B65: =HYPERLINK("https://mapas.cultura.gov.br/inscricao/1155267689","on-1155267689") -> on-1155267689 | C65: Curitiba | D65: PR | E65: SUL | F65: Avaliador 2 | G65: 20 | H65: 12 | I65: 12 | J65: 3 | K65: 8 | L65: 10 | M65: 5 | N65: 8 | Q65: 3 | U65: 81 | V65: Inscrição desclassificada de acordo com os artigos 6.1.2 e 7.13 - O preponete não anexou documento de identificação no anexo 3 | X65: =X64 -> 92
A66: GRUPOS, COLETIVOS, CREW | B66: =HYPERLINK("https://mapas.cultura.gov.br/inscricao/794608026","on-794608026") -> on-794608026 | C66: Pinhais | D66: PR | E66: SUL | F66: Avaliador 1 | G66: 20 | H66: 15 | I66: 15 | J66: 10 | K66: 10 | L66: 10 | M66: 10 | N66: 10 | O66: 3 | P66: 0 | Q66: 0 | R66: 0 | S66: 0 | T66: 0 | U66: =SUM(G66:T66) -> 103 | V66: A proposta atende aos critérios estabelecidos em edital, porém não atendeu ao item 7.7 (c) do edital, não anexou cópia do RG e CPF dos membros do grupo/coletivo cultural que indicarem a pessoa física representante. Aponta-se o item 7.13. Documentos ausentes, incompletos ou ilegíveis serão desconsiderados e a candidatura será desclassificada na Etapa de Seleção. | W66: DESCLASSIFICADA COM BASE NO ITEM 7.10 | X66: =AVERAGE(U66,U67) -> 89 | Y66: DESCLASSIFICADO
A67: GRUPOS, COLETIVOS, CREW | B67: =HYPERLINK("https://mapas.cultura.gov.br/inscricao/794608026","on-794608026") -> on-794608026 | C67: Pinhais | D67: PR | E67: SUL | F67: Avaliador 2 | G67: 15 | H67: 8 | I67: 12 | J67: 5 | K67: 8 | L67: 8 | M67: 8 | N67: 8 | O67: 3 | P67: 0 | Q67: 0 | R67: 0 | T67: 0 | U67: 75 | V67: Inscrição desclassificada de acordo com os artigos 6.1.2 e 7.13 - O preponete não anexou documento de identificação no anexo 3 | X67: =X66 -> 89
A68: GRUPOS, COLETIVOS, CREW | B68: =HYPERLINK("https://mapas.cultura.gov.br/inscricao/1137678207","on-1137678207") -> on-1137678207 | C68: Viamão | D68: RS | E68: SUL | F68: Avaliador 1 | G68: 20 | H68: 8 | I68: 15 | J68: 8 | K68: 3 | L68: 8 | M68: 8 | N68: 10 | O68: 0 | P68: 0 | Q68: 3 | R68: 0 | S68: 0 | T68: 0 | U68: 83 | V68: A ação tem como expressão cultural (Danças, Slam, Mestre de Cerimônia (MC), Rap). Não atendeu aos itens 6.1.2; Item 7.7 c) e por fim o item 7.13. Documentos ausentes, incompletos ou ilegíveis serão desconsiderados e a candidatura será desclassificada na Etapa de Seleção. Faltou a documentação CPF e identidade dos integrantes coletivo. Assim a ação está desclassificada. | W68: DESCLASSIFICADO COM BASE NO ITEM 7.10 | X68: =AVERAGE(U68,U69) -> 83 | Y68: DESCLASSIFICADO
A69: GRUPOS, COLETIVOS, CREW | B69: on-1137678207 | C69: Viamão | D69: RS | E69: SUL | F69: Avaliador 2 | G69: 20 | H69: 12 | I69: 12 | J69: 5 | K69: 8 | L69: 5 | M69: 10 | N69: 8 | Q69: 3 | S69: 0 | U69: 83 | X69: =X68 -> 83
A70: GRUPOS, COLETIVOS, CREW | B70: =HYPERLINK("https://mapas.cultura.gov.br/inscricao/1138804107","on-1138804107") -> on-1138804107 | C70: Pinhais | D70: PR | E70: SUL | F70: Avaliador 1 | G70: 15 | H70: 8 | I70: 15 | J70: 10 | K70: 5 | L70: 10 | M70: 10 | N70: 0 | O70: 0 | P70: 0 | Q70: 3 | R70: 0 | S70: 0 | T70: 0 | U70: 76 | V70: A ação atende aos critérios previstos em edital, porém se aponta ações que contribui para a promoção de intercâmbio com outras formas artísticas afins à cultura Hip Hop, em particular as expressões culturais afro-brasileiras de matriz africana e de terreiros, criando novas associações, inovações para além dos cinco elementos consagrados, mas não se visualizou tal ação mediante a documentação apresentada. Por fim, não atendeu ao item 7.7 (c) do edital, não anexou cópia do RG e CPF dos membros do grupo/coletivo cultural que indicarem a pessoa física representante. Aponta-se o item 7.13. Documentos ausentes, incompletos ou ilegíveis serão desconsiderados e a candidatura será desclassificada na Etapa de Seleção. | W70: DESCLASSIFICADA COM BASE NO ITEM 7.10 | X70: =AVERAGE(U70,U71) -> 81 | Y70: DESCLASSIFICADO
A71: GRUPOS, COLETIVOS, CREW | B71: =HYPERLINK("https://mapas.cultura.gov.br/inscricao/1138804107","on-1138804107") -> on-1138804107 | C71: Pinhais | D71: PR | E71: SUL | F71: Avaliador 2 | G71: 20 | H71: 12 | I71: 12 | J71: 8 | K71: 8 | L71: 10 | M71: 8 | N71: 5 | O71: 0 | P71: 0 | Q71: 3 | R71: 0 | T71: 0 | U71: 86 | V71: Inscrição desclassificada de acordo com os artigos 6.1.2 e 7.13 - O preponete não anexou documento de identificação no anexo 3 | X71: =X70 -> 81
A72: GRUPOS, COLETIVOS, CREW | B72: =HYPERLINK("https://mapas.cultura.gov.br/inscricao/1501361022","on-1501361022") -> on-1501361022 | C72: Sarandi | D72: PR | E72: SUL | F72: Avaliador 1 | G72: 15 | H72: 8 | I72: 12 | J72: 10 | K72: 8 | L72: 8 | M72: 0 | N72: 0 | O72: 0 | P72: 3 | Q72: 3 | R72: 0 | S72: 0 | T72: 0 | U72: 67 | V72: A ação atende a alguns critérios do edital, porém não se visualizou na documentação apresentada suas contribuições voltadas aos critérios 7 e 8 do edital. Por fim, não atendeu ao item 7.7 (c) do edital, não anexou cópia do RG e CPF dos membros do grupo/coletivo cultural que indicarem a pessoa física representante. Aponta-se o item 7.13. Documentos ausentes, incompletos ou ilegíveis serão desconsiderados e a candidatura será desclassificada na Etapa de Seleção. | W72: DESCLASSIFICADA COM BASE NO ITEM 7.10 | X72: =AVERAGE(U72,U73) -> 80 | Y72: DESCLASSIFICADO
A73: GRUPOS, COLETIVOS, CREW | B73: =HYPERLINK("https://mapas.cultura.gov.br/inscricao/1501361022","on-1501361022") -> on-1501361022 | C73: Sarandi | D73: PR | E73: SUL | F73: Avaliador 2 | G73: 20 | H73: 12 | I73: 15 | J73: 8 | K73: 8 | L73: 8 | M73: 8 | N73: 8 | O73: 0 | P73: 3 | Q73: 3 | R73: 0 | T73: 0 | U73: 93 | V73: Inscrição desclassificada de acordo com os artigos 6.1.2 e 7.13 - O preponete não anexou documento de identificação no anexo 3 | X73: =X72 -> 80
A74: GRUPOS, COLETIVOS, CREW | B74: =HYPERLINK("https://mapas.cultura.gov.br/inscricao/1973342967","on-1973342967") -> on-1973342967 | C74: Curitiba | D74: PR | E74: SUL | F74: Avaliador 1 | G74: 20 | H74: 15 | I74: 15 | J74: 0 | K74: 10 | L74: 10 | M74: 10 | N74: 8 | P74: 0 | Q74: 3 | R74: 0 | S74: 0 | T74: 0 | U74: 91 | V74: A proposta atende aos critérios estabelecidos em edital, porém não se visualizou ação voltada ao item 8 do edital. Aponta-se que não atendeu ao item 7.7 (c) do edital, não anexou cópia do RG e CPF dos membros do grupo/coletivo cultural que indicarem a pessoa física representante. Aponta-se o item 7.13. Documentos ausentes, incompletos ou ilegíveis serão desconsiderados e a candidatura será desclassificada na Etapa de Seleção. | W74: DESCLASSIFICADA COM BASE NO ITEM 7.10 | X74: =AVERAGE(U74,U75) -> 80 | Y74: DESCLASSIFICADO
A75: GRUPOS, COLETIVOS, CREW | B75: =HYPERLINK("https://mapas.cultura.gov.br/inscricao/1973342967","on-1973342967") -> on-1973342967 | C75: Curitiba | D75: PR | E75: SUL | F75: Avaliador 2 | G75: 10 | H75: 12 | I75: 8 | J75: 5 | K75: 5 | L75: 8 | M75: 5 | N75: 10 | P75: 3 | Q75: 3 | U75: 69 | X75: =X74 -> 80
A76: GRUPOS, COLETIVOS, CREW | B76: =HYPERLINK("https://mapas.cultura.gov.br/inscricao/144768205","on-144768205") -> on-144768205 | C76: Cascavel | D76: PR | E76: SUL | F76: Avaliador 1 | G76: 15 | H76: 15 | I76: 15 | J76: 8 | K76: 5 | L76: 10 | M76: 8 | N76: 0 | O76: 0 | P76: 0 | Q76: 0 | R76: 0 | S76: 0 | T76: 0 | U76: 76 | V76: A proposta atende aos critérios estabelecidos em edital, porém não se visualizou no material apresentado as relações da ação com outras expressões e suas contribuições voltadas a aplicação geração de oportunidades de trabalho e renda para os praticantes da cultura Hip Hop. Por fim, não atendeu ao item 7.7 (c) do edital, não anexou cópia do RG e CPF dos membros do grupo/coletivo cultural que indicarem a pessoa física representante. Aponta-se o item 7.13. Documentos ausentes, incompletos ou ilegíveis serão desconsiderados e a candidatura será desclassificada na Etapa de Seleção. | W76: DESCLASSIFICADA COM BASE NO ITEM 7.10 | X76: =AVERAGE(U76,U77) -> 78.5 | Y76: DESCLASSIFICADO
A77: GRUPOS, COLETIVOS, CREW | B77: =HYPERLINK("https://mapas.cultura.gov.br/inscricao/144768205","on-144768205") -> on-144768205 | C77: Cascavel | D77: PR | E77: SUL | F77: Avaliador 2 | G77: 15 | H77: 15 | I77: 15 | J77: 10 | K77: 5 | L77: 8 | M77: 10 | N77: 0 | O77: 0 | P77: 0 | Q77: 3 | R77: 0 | T77: 0 | U77: 81 | V77: Inscrição desclassificada de acordo com os artigos 6.1.2 e 7.13 - O preponete não anexou documento de identificação no anexo 3 e não anexou portfolio comprobatório, apenas link de instagram e youtube | X77: =X76 -> 78.5
A78: GRUPOS, COLETIVOS, CREW | B78: =HYPERLINK("https://mapas.cultura.gov.br/inscricao/766502528","on-766502528") -> on-766502528 | C78: Cidreira | D78: RS | E78: SUL | F78: Avaliador 1 | G78: 20 | H78: 12 | I78: 12 | J78: 8 | K78: 10 | L78: 10 | M78: 5 | N78: 3 | O78: 0 | P78: 0 | Q78: 3 | R78: 0 | S78: 0 | T78: 0 | U78: 83 | V78: A ação tem como expressão cultural (Mestre de Cerimônia (MC), Rap, Outros. Observa-se que a ação não atendeu aos itens abaixo. 6.1.2. Grupos/Coletivos/Crews (sem CNPJ): coletivos organizados segundo suas tradições, mas sem registro como pessoa jurídica de qualquer natureza, envolvidos em ações de fomento e difusão das expressões culturais do Hip-Hop, representados por uma liderança escolhida dentre os membros do Grupo e apresentada pela Carta de Autorização do Grupo/Coletivo/Crew (Anexo 3), documento exigido na etapa de inscrição; Item 7.7 c) Em caso de candidatura como “grupo/coletivo/crew”, juntar a Carta de Autorização do Grupo/Coletivo/Crew (Anexo 3), preenchida, assinada (de forma eletrônica, de próprio punho ou com a impressão digital), digitalizada e anexada com cópia do RG e CPF dos membros do grupo/coletivo cultural que indicarem a pessoa física representante e assinarem a Carta; E por fim o item 7.13. Documentos ausentes, incompletos ou ilegíveis serão desconsiderados e a candidatura será desclassificada na Etapa de Seleção. Diante do exposto a candidatura está desclassificada. | W78: DESCLASSIFICADO COM BASE NO ITEM 7.10 | X78: =AVERAGE(U78,U79) -> 74 | Y78: DESCLASSIFICADO
A79: GRUPOS, COLETIVOS, CREW | B79: on-766502528 | C79: Cidreira | D79: RS | E79: SUL | F79: Avaliador 2 | G79: 0 | H79: 8 | I79: 12 | J79: 10 | K79: 5 | L79: 8 | M79: 8 | N79: 8 | O79: 0 | P79: 3 | Q79: 3 | R79: 0 | S79: 0 | T79: 0 | U79: 65 | V79: LINGUAGEM : OUTROS Preponente LGBT. | X79: =X78 -> 74
A80: GRUPOS, COLETIVOS, CREW | B80: =HYPERLINK("https://mapas.cultura.gov.br/inscricao/2106447030","on-2106447030") -> on-2106447030 | C80: Sarandi | D80: PR | E80: SUL | F80: Avaliador 1 | G80: 15 | H80: 8 | I80: 8 | J80: 10 | K80: 8 | L80: 10 | M80: 8 | N80: 0 | O80: 0 | P80: 0 | Q80: 3 | R80: 0 | S80: 0 | T80: 0 | U80: 70 | V80: A trajetória do coletivo é marcada por um elenco de conquistas, o material apresentado está centrado no contexto das competições que o coletivo participa, pouco se evidenciou as ações voltadas a transmissão de saberes e ações educativas em espaços de formação formal ou informal. Por fim, não atendeu ao item 7.7 (c) do edital, não anexou cópia do RG e CPF dos membros do grupo/coletivo cultural que indicarem a pessoa física representante. Aponta-se o item 7.13. Documentos ausentes, incompletos ou ilegíveis serão desconsiderados e a candidatura será desclassificada na Etapa de Seleção. | W80: DESCLASSIFICADA COM BASE NO ITEM 7.10 | X80: =AVERAGE(U80,U81) -> 58 | Y80: DESCLASSIFICADO
A81: GRUPOS, COLETIVOS, CREW | B81: =HYPERLINK("https://mapas.cultura.gov.br/inscricao/2106447030","on-2106447030") -> on-2106447030 | C81: Sarandi | D81: PR | E81: SUL | F81: Avaliador 2 | H81: 0 | I81: 12 | J81: 8 | K81: 8 | L81: 8 | M81: 5 | N81: 5 | U81: 46 | V81: Inscrição desclassificada de acordo com os artigos 6.1.2 e 7.13 - O preponete não anexou documento de identificação no anexo 3 | X81: =X80 -> 58
A82: GRUPOS, COLETIVOS, CREW | B82: =HYPERLINK("https://mapas.cultura.gov.br/inscricao/1963249955","on-1963249955") -> on-1963249955 | C82: Passo Fundo | D82: RS | E82: SUL | F82: Avaliador 1 | G82: 15 | H82: 4 | I82: 12 | J82: 0 | K82: 5 | L82: 8 | M82: 5 | N82: 0 | O82: 0 | P82: 0 | Q82: 0 | R82: 0 | S82: 0 | T82: 0 | U82: 49 | V82: A proposta atende a alguns critérios estabelecidos em edital, porém mediante documentação apresentada não e visualizou atendimento aos critérios 4 e 8. | W82: DESCLASSIFICADO COM BASE NO ITEM 7.7 | X82: =AVERAGE(U82,U83) -> 56 | Y82: DESCLASSIFICADO
A83: GRUPOS, COLETIVOS, CREW | B83: on-1963249955 | C83: Passo Fundo | D83: RS | E83: SUL | F83: Avaliador 2 | G83: 15 | H83: 8 | I83: 12 | J83: 3 | K83: 3 | L83: 8 | M83: 5 | N83: 3 | O83: 0 | P83: 0 | Q83: 3 | R83: 0 | S83: 3 | T83: 0 | U83: 63 | V83: Proponente LGBT | X83: =X82 -> 56
A84: GRUPOS, COLETIVOS, CREW | B84: =HYPERLINK("https://mapas.cultura.gov.br/inscricao/1623909876","on-1623909876") -> on-1623909876 | C84: Foz do Iguaçu | D84: PR | E84: SUL | F84: Avaliador 1 | G84: 15 | H84: 0 | I84: 8 | J84: 0 | K84: 0 | L84: 10 | M84: 0 | N84: 5 | O84: 0 | P84: 0 | Q84: 3 | R84: 0 | S84: 0 | T84: 0 | U84: 41 | V84: Mediante documentação apresentada não se visualizou atendimento aos critérios 2, 4,5 e 7 do edital. Aponta-se que não atendeu ao item 7.7 (c) do edital, não anexou cópia do RG e CPF dos membros do grupo/coletivo cultural que indicarem a pessoa física representante. Proposta desclassificada conforme item 9.15. Aponta-se o item 7.13. Documentos ausentes, incompletos ou ilegíveis serão desconsiderados e a candidatura será desclassificada na Etapa de Seleção. | W84: DESCLASSIFICADA COM BASE NO ITEM 7.10 | X84: =AVERAGE(U84,U85) -> 44.5 | Y84: DESCLASSIFICADO
A85: GRUPOS, COLETIVOS, CREW | B85: =HYPERLINK("https://mapas.cultura.gov.br/inscricao/1623909876","on-1623909876") -> on-1623909876 | C85: Foz do Iguaçu | D85: PR | E85: SUL | F85: Avaliador 2 | G85: 15 | H85: 4 | I85: 8 | J85: 0 | K85: 0 | L85: 10 | M85: 3 | N85: 5 | O85: 0 | P85: 0 | Q85: 3 | R85: 0 | T85: 0 | U85: 48 | V85: Inscrição desclassificada de acordo com os artigos 6.1.2 e 7.13 - O preponete não anexou documento de identificação no anexo 3 | X85: =X84 -> 44.5
A86: GRUPOS, COLETIVOS, CREW | B86: =HYPERLINK("https://mapas.cultura.gov.br/inscricao/136031010","on-136031010") -> on-136031010 | C86: Caxias do Sul | D86: RS | E86: SUL | F86: Avaliador 1 | G86: 10 | H86: 0 | I86: 8 | J86: 0 | K86: 0 | L86: 5 | M86: 5 | N86: 0 | O86: 0 | P86: 0 | Q86: 3 | R86: 0 | S86: 0 | T86: 0 | U86: 31 | V86: A ação tem como expressão cultural (Beatboxing, Mestre de Cerimônia (MC), Disc Jockey (DJ), Freestyle, Rap). Diante da documentação apresentada não se visualizou ações voltadas aos critérios 2, 4, 5 e 8 do edital. Ação desclassificada mediante item 9.5 do edital. | W86: DESCLASSIFICADO COM BASE NO ITEM 7.7 | X86: =AVERAGE(U86,U87) -> 42.5 | Y86: DESCLASSIFICADO
A87: GRUPOS, COLETIVOS, CREW | B87: on-136031010 | C87: Caxias do Sul | D87: RS | E87: SUL | F87: Avaliador 2 | G87: 10 | H87: 8 | I87: 8 | J87: 5 | K87: 5 | L87: 5 | M87: 5 | N87: 5 | O87: 0 | P87: 0 | Q87: 3 | R87: 0 | S87: 0 | T87: 0 | U87: 54 | V87: material de comprovação cultural inconsistente | X87: =X86 -> 42.5
A88: GRUPOS, COLETIVOS, CREW | B88: =HYPERLINK("https://mapas.cultura.gov.br/inscricao/641129999","on-641129999") -> on-641129999 | C88: Rolandia | D88: PR | E88: SUL | F88: Avaliador 1 | G88: 10 | H88: 0 | I88: 8 | J88: 5 | K88: 0 | L88: 10 | M88: 0 | N88: 0 | O88: 0 | P88: 0 | Q88: 3 | R88: 0 | S88: 0 | T88: 0 | U88: 36 | V88: Embora o trabalho musical da ação apresente relevância para a cena cultural. A ação se volta a dupla e mediante o material apresentado não se visualizou ações que atendam aos critérios. 2, 5, 7 e 8. Proposta desclassificada conforme item 9.15. Aponta-se o item 7.13. Documentos ausentes, incompletos ou ilegíveis serão desconsiderados e a candidatura será desclassificada na Etapa de Seleção. | W88: DESCLASSIFICADO COM BASE NO ITEM 7.7 | X88: =AVERAGE(U88,U89) -> 41 | Y88: DESCLASSIFICADO
A89: GRUPOS, COLETIVOS, CREW | B89: =HYPERLINK("https://mapas.cultura.gov.br/inscricao/641129999","on-641129999") -> on-641129999 | C89: Rolandia | D89: PR | E89: SUL | F89: Avaliador 2 | G89: 10 | H89: 4 | I89: 8 | J89: 5 | K89: 0 | L89: 8 | M89: 3 | N89: 5 | O89: 0 | P89: 0 | Q89: 3 | R89: 0 | T89: 0 | U89: 46 | X89: =X88 -> 41
A90: GRUPOS, COLETIVOS, CREW | B90: =HYPERLINK("https://mapas.cultura.gov.br/inscricao/237024211","on-237024211") -> on-237024211 | C90: Apucarana | D90: PR | E90: SUL | F90: Avaliador 1 | G90: 20 | H90: 0 | I90: 8 | J90: 0 | K90: 3 | L90: 5 | M90: 3 | N90: 0 | O90: 0 | P90: 0 | Q90: 0 | R90: 0 | S90: 0 | T90: 0 | U90: 39 | V90: A ação afirma realizar atividades como Palestras, Workshops, eventos e debates, porém nos documentos apresentados não se visualizou tais ações. Aponta-se ainda que não apresentou nos documentos submetidos atendimento aos critérios 2,4 e 8 do edital. Por fim, não atendeu ao item 7.7 (c) do edital, não anexou cópia do RG e CPF dos membros do grupo/coletivo cultural que indicarem a pessoa física representante. Proposta desclassificada conforme item 9.15. Aponta-se o item 7.13. Documentos ausentes, incompletos ou ilegíveis serão desconsiderados e a candidatura será desclassificada na Etapa de Seleção. | W90: DESCLASSIFICADA COM BASE NO ITEM 7.10 | X90: =AVERAGE(U90,U91) -> 40.5 | Y90: DESCLASSIFICADO
A91: GRUPOS, COLETIVOS, CREW | B91: =HYPERLINK("https://mapas.cultura.gov.br/inscricao/237024211","on-237024211") -> on-237024211 | C91: Apucarana | D91: PR | E91: SUL | F91: Avaliador 2 | G91: 15 | H91: 4 | I91: 8 | J91: 0 | K91: 5 | L91: 5 | M91: 5 | N91: 0 | O91: 0 | P91: 0 | Q91: 0 | R91: 0 | T91: 0 | U91: 42 | V91: Inscrição desclassificada de acordo com os artigos 6.1.2 e 7.13 - O preponete não anexou documento de identificação no anexo 3 | X91: =X90 -> 40.5
A92: GRUPOS, COLETIVOS, CREW | B92: =HYPERLINK("https://mapas.cultura.gov.br/inscricao/2016735039","on-2016735039") -> on-2016735039 | C92: Pelotas | D92: RS | E92: SUL | F92: Avaliador 1 | G92: 10 | H92: 0 | I92: 8 | J92: 10 | K92: 0 | L92: 5 | M92: 0 | N92: 0 | O92: 0 | P92: 0 | Q92: 0 | R92: 0 | S92: 0 | T92: 0 | U92: 33 | V92: A ação tem como expressão cultural (Rap, Freestyle). A candidatura não atendeu aos itens 6.1.2; Item 7.7 c) e por fim o item 7.13. Documentos ausentes, incompletos ou ilegíveis serão desconsiderados e a candidatura será desclassificada na Etapa de Seleção. Diante do exposto a candidatura está desclassificada. Além disso a ação está desclassificada conforme item 9.15. | W92: DESCLASSIFICADO COM BASE NO ITEM 7.10 | X92: =AVERAGE(U92,U93) -> 32 | Y92: DESCLASSIFICADO
A93: GRUPOS, COLETIVOS, CREW | B93: on-2016735039 | C93: Pelotas | D93: RS | E93: SUL | F93: Avaliador 2 | G93: 10 | H93: 0 | I93: 8 | J93: 8 | K93: 0 | L93: 5 | M93: 0 | N93: 0 | U93: 31 | V93: LINGUAGEM: DANÇAS , não apresentou material de comprovação | X93: =X92 -> 32
A94: GRUPOS, COLETIVOS, CREW | B94: =HYPERLINK("https://mapas.cultura.gov.br/inscricao/1651290974","on-1651290974") -> on-1651290974 | C94: Nova Santa Rita | D94: RS | E94: SUL | F94: Avaliador 1 | G94: 15 | H94: 0 | I94: 8 | J94: 0 | K94: 0 | L94: 5 | M94: 0 | N94: 0 | O94: 0 | P94: 0 | Q94: 3 | R94: 0 | S94: 0 | T94: 0 | U94: 31 | V94: A ação tem como expressão cultural (Beatboxing, Freestyle, Breaking, Danças, Disc Jockey (DJ), Graffiti, Rap). A candidatura não apresentou a Carta de Autorização do Grupo/Coletivo/Crew (Anexo 3) apenas e RG e CPF do proponente. Não atendeu aos itens 6.1.2; Item 7.7 c) e por fim o item 7.13. Documentos ausentes, incompletos ou ilegíveis serão desconsiderados e a candidatura será desclassificada na Etapa de Seleção. Além disso a ação está desclassificada conforme item 9.15. | W94: DESCLASSIFICADO COM BASE NO ITEM 7.10 | X94: =AVERAGE(U94,U95) -> 31 | Y94: DESCLASSIFICADO
A95: GRUPOS, COLETIVOS, CREW | B95: on-1651290974 | C95: Nova Santa Rita | D95: RS | E95: SUL | F95: Avaliador 2 | G95: 5 | H95: 4 | I95: 4 | J95: 3 | K95: 3 | L95: 3 | M95: 3 | N95: 3 | S95: 3 | U95: 31 | V95: Proponente LGBT - fFALTA COMPROVAÇÃO PRA AVALIAÇÃO DE MÉRITO CULTURAL | X95: =X94 -> 31
A96: GRUPOS, COLETIVOS, CREW | B96: =HYPERLINK("https://mapas.cultura.gov.br/inscricao/659087807","on-659087807") -> on-659087807 | C96: Porto Alegre | D96: RS | E96: SUL | F96: Avaliador 1 | G96: 5 | H96: 4 | I96: 4 | J96: 3 | K96: 3 | L96: 3 | M96: 5 | N96: 3 | O96: 0 | P96: 0 | Q96: 3 | R96: 0 | S96: 0 | T96: 0 | U96: 33 | V96: A ação tem como expressão cultural (Beatboxing, Disc Jockey (DJ), Graffiti, Mestre de Cerimônia (MC), Slam, Outros, Rap, Freestyle). A proposta atende aos critérios estabelecidos em edital, porém diante da documentação apresentada não se visualizou atendimento ao critério 8 do edital. | W96: DESCLASSIFICADO COM BASE NO ITEM 7.7 | X96: =AVERAGE(U96,U97) -> 30.5 | Y96: DESCLASSIFICADO
A97: GRUPOS, COLETIVOS, CREW | B97: on-659087807 | C97: Porto Alegre | D97: RS | E97: SUL | F97: Avaliador 2 | G97: 5 | H97: 4 | I97: 4 | J97: 3 | K97: 3 | L97: 3 | M97: 3 | N97: 3 | S97: 0 | U97: 28 | V97: Faltou comprovação na aréa do Hip Hop | X97: =X96 -> 30.5
A98: GRUPOS, COLETIVOS, CREW | B98: =HYPERLINK("https://mapas.cultura.gov.br/inscricao/25748708","on-25748708") -> on-25748708 | C98: Passo Fundo | D98: RS | E98: SUL | F98: Avaliador 1 | G98: 5 | H98: 8 | I98: 8 | J98: 5 | K98: 0 | L98: 5 | M98: 5 | N98: 0 | O98: 0 | P98: 0 | Q98: 0 | R98: 0 | S98: 0 | T98: 0 | U98: =SUM(G98:T98) -> 36 | V98: A proposta atende a alguns critérios estabelecidos em edital, porém não e visualizou atendimento aos critérios 5 e 8. A ação recai na desclassificação, conforme item 9.15. | W98: DESCLASSIFICADO COM BASE NO ITEM 7.7 | X98: =AVERAGE(U98,U99) -> 29.5 | Y98: DESCLASSIFICADO
A99: GRUPOS, COLETIVOS, CREW | B99: on-25748708 | C99: Passo Fundo | D99: RS | E99: SUL | F99: Avaliador 2 | G99: 0 | H99: 4 | I99: 4 | J99: 3 | K99: 3 | L99: 3 | M99: 3 | N99: 3 | O99: 0 | P99: 0 | Q99: 0 | R99: 0 | S99: 0 | T99: 0 | U99: 23 | X99: =X98 -> 29.5
A100: GRUPOS, COLETIVOS, CREW | B100: =HYPERLINK("https://mapas.cultura.gov.br/inscricao/985631509","on-985631509") -> on-985631509 | C100: Paraíso do Norte | D100: PR | E100: SUL | F100: Avaliador 1 | G100: 0 | H100: 0 | I100: 0 | J100: 0 | K100: 0 | L100: 0 | M100: 0 | N100: 0 | O100: 0 | P100: 0 | Q100: 0 | R100: 0 | S100: 0 | T100: 0 | U100: 0 | V100: A iniciativa cultural apresentada trata-se de uma ação ainda a ser realizada, desta forma não atende ao item 2 do edital que tem por objeto. Este edital visa reconhecer e premiar 325 (trezentas e vinte e cinco) iniciativas culturais já realizadas para a promoção continuada da Cultura Hip-Hop ao longo de 40 anos no Brasil e 50 anos no mundo, que visem à criação e/ou produção e/ou circulação de obras, atividades, produtos e ações, tais como: projetos de composição, arranjos, produção de beats, shows, vídeos, discos, arquivos audiovisuais, sítios de internet, revistas, batalhas, rodas culturais, cyphers, jams, espetáculos, slam, beatbox, pesquisas, mapeamentos, fotografias, seminários, ciclos de debates, palestras, workshops, oficinas e cursos livres, que possam contribuir com o desenvolvimento sociocultural do segmento. 2.1. Desta forma a iniciativa apresentada não atende ao Edital de Premiação - Construção Nacional da Cultura HIP-HOP 2023. | W100: DESCLASSIFICADO COM BASE NO ITEM 7.7 | X100: =AVERAGE(U100,U101) -> 0 | Y100: DESCLASSIFICADO
A101: GRUPOS, COLETIVOS, CREW | B101: =HYPERLINK("https://mapas.cultura.gov.br/inscricao/985631509","on-985631509") -> on-985631509 | C101: Paraíso do Norte | D101: PR | E101: SUL | F101: Avaliador 2 | G101: 0 | H101: 0 | I101: 0 | J101: 0 | K101: 0 | L101: 0 | M101: 0 | N101: 0 | O101: 0 | P101: 0 | Q101: 0 | R101: 0 | T101: 0 | U101: 0 | V101: Proponente adicionou o portfólio pessoal e não da crew | X101: =X100 -> 0
A102: GRUPOS, COLETIVOS, CREW | B102: =HYPERLINK("https://mapas.cultura.gov.br/inscricao/91999239","on-91999239") -> on-91999239 | C102: Curitiba | D102: PR | E102: SUL | F102: Avaliador 1 | U102: 0 | V102: A proposta atende aos critérios estabelecidos em edital | W102: DESCLASSIFICADA COM BASE NO ITEM 6.1 | X102: =AVERAGE(U102,U103) -> 0 | Y102: DESCLASSIFICADO
A103: GRUPOS, COLETIVOS, CREW | B103: =HYPERLINK("https://mapas.cultura.gov.br/inscricao/91999239","on-91999239") -> on-91999239 | C103: Curitiba | D103: PR | E103: SUL | F103: Avaliador 2 | U103: 0 | V103: GT CN PARANÁ | X103: =X102 -> 0

Sheet INSTITUIÇÕES SEM FINS LUCRATIVO
A1: CATEGORIA | B1: INSCRIÇÃO | C1: NOME | D1: CIDADE | E1: UF | F1: REGIÃO | G1: AVALIADOR | H1: CRITÉRIOS DE AVALIAÇÃO E SELEÇÃO 1 | I1: CRITÉRIOS DE AVALIAÇÃO E SELEÇÃO 2 | J1: CRITÉRIOS DE AVALIAÇÃO E SELEÇÃO 3 | K1: CRITÉRIOS DE AVALIAÇÃO E SELEÇÃO 4 | L1: CRITÉRIOS DE AVALIAÇÃO E SELEÇÃO 5 | M1: CRITÉRIOS DE AVALIAÇÃO E SELEÇÃO 6 | N1: CRITÉRIOS DE AVALIAÇÃO E SELEÇÃO 7 | O1: CRITÉRIOS DE AVALIAÇÃO E SELEÇÃO 8 | P1: PONTUAÇÃO EXTRA - Pessoa com deficiência | Q1: PONTUAÇÃO EXTRA - Mulher | R1: PONTUAÇÃO EXTRA - Pessoa negra | S1: PONTUAÇÃO EXTRA -Indígena, matriz africana, de terreiro ou de povos ou de comunidades tradicionais | T1: PONTUAÇÃO EXTRA LGBTQIA+ | U1: PONTUAÇÃO EXTRA Idosa com 60 anos ou mais? | V1: NOTA POR AVALIADOR | W1: OBSERVAÇÃO | X1: OBSERVAÇÃO | Y1: NOTA PRELIMINAR | Z1: STATUS
A2: INSTITUIÇÕES SEM FINS LUCRATIVO | B2: =HYPERLINK("https://mapas.cultura.gov.br/inscricao/1477808108","on-1477808108") -> on-1477808108 | C2: AH2T - ASSOCIAÇÃO DE HIP HOP E FÓRUM DE DANÇA | D2: Toledo | E2: PR | F2: SUL | G2: Avaliador 1 | H2: 20 | I2: 15 | J2: 15 | K2: 10 | L2: 10 | M2: 10 | N2: 10 | O2: 3 | P2: 0 | Q2: 3 | R2: 3 | S2: 0 | T2: 0 | U2: 0 | V2: =SUM(H2:U2) -> 99 | W2: Breaking, Danças, Freestyle, Cypher, Disc Jockey (DJ), Outros, Mestre de Cerimônia (MC) | Y2: =AVERAGE(V2,V3) -> 100 | Z2: PRÉ-SELECIONADO
A3: INSTITUIÇÕES SEM FINS LUCRATIVO | B3: on-1477808108 | D3: Toledo | E3: PR | F3: SUL | G3: Avaliador 2 | H3: 20 | I3: 15 | J3: 15 | K3: 5 | L3: 10 | M3: 10 | N3: 10 | O3: 10 | P3: 0 | Q3: 3 | R3: 3 | S3: 0 | T3: 0 | U3: 0 | V3: 101 | W3: A INSTITUIÇÃO TRABALHA COM VARIAS LINGUAGENS DA CULTURA HIP-HOP | Y3: =Y2 -> 100
A4: INSTITUIÇÕES SEM FINS LUCRATIVO | B4: =HYPERLINK("https://mapas.cultura.gov.br/inscricao/1069540100","on-1069540100") -> on-1069540100 | C4: Alvo Associação Cultural | D4: Porto Alegre | E4: RS | F4: SUL | G4: Avaliador 1 | H4: 20 | I4: 15 | J4: 15 | K4: 8 | L4: 10 | M4: 10 | N4: 8 | O4: 8 | P4: 0 | Q4: 0 | R4: 0 | S4: 0 | T4: 0 | U4: 0 | V4: 94 | Y4: =AVERAGE(V4,V5) -> 96 | Z4: PRÉ-SELECIONADO
A5: INSTITUIÇÕES SEM FINS LUCRATIVO | B5: =HYPERLINK("https://mapas.cultura.gov.br/inscricao/1069540100","on-1069540100") -> on-1069540100 | D5: Porto Alegre | E5: RS | F5: SUL | G5: Avaliador 2 | H5: 20 | I5: 15 | J5: 15 | K5: 10 | L5: 8 | M5: 10 | N5: 10 | O5: 10 | P5: 0 | Q5: 0 | R5: 0 | S5: 0 | T5: 0 | U5: 0 | V5: 98 | Y5: =Y4 -> 96
A6: INSTITUIÇÕES SEM FINS LUCRATIVO | B6: =HYPERLINK("https://mapas.cultura.gov.br/inscricao/1976872459","on-1976872459") -> on-1976872459 | C6: Sociedade União da Vila dos Eucaliptos | D6: Porto Alegre | E6: RS | F6: SUL | G6: Avaliador 1 | H6: 20 | I6: 15 | J6: 15 | K6: 8 | L6: 10 | M6: 8 | N6: 10 | O6: 10 | P6: 0 | Q6: 0 | R6: 0 | S6: 0 | T6: 0 | U6: 3 | V6: 99 | Y6: =AVERAGE(V6,V7) -> 90 | Z6: PRÉ-SELECIONADO
A7: INSTITUIÇÕES SEM FINS LUCRATIVO | B7: =HYPERLINK("https://mapas.cultura.gov.br/inscricao/1976872459","on-1976872459") -> on-1976872459 | D7: Porto Alegre | E7: RS | F7: SUL | G7: Avaliador 2 | H7: 10 | I7: 12 | J7: 12 | K7: 8 | L7: 10 | M7: 8 | N7: 10 | O7: 8 | P7: 0 | Q7: 0 | R7: 0 | S7: 0 | T7: 0 | U7: 3 | V7: 81 | Y7: =Y6 -> 90
A8: INSTITUIÇÕES SEM FINS LUCRATIVO | B8: =HYPERLINK("https://mapas.cultura.gov.br/inscricao/1641138240","on-1641138240") -> on-1641138240 | C8: Associação Cultural de Hip Hop de Laguna | D8: Laguna | E8: SC | F8: SUL | G8: Avaliador 1 | H8: 20 | I8: 15 | J8: 12 | K8: 8 | L8: 8 | M8: 10 | N8: 10 | O8: 3 | P8: 0 | Q8: 0 | R8: 3 | S8: 0 | T8: 0 | U8: 0 | V8: 89 | Y8: =AVERAGE(V8,V9) -> 89 | Z8: PRÉ-SELECIONADO
A9: INSTITUIÇÕES SEM FINS LUCRATIVO | B9: =HYPERLINK("https://mapas.cultura.gov.br/inscricao/1641138240","on-1641138240") -> on-1641138240 | D9: Laguna | E9: SC | F9: SUL | G9: Avaliador 2 | H9: 20 | I9: 15 | J9: 12 | K9: 8 | L9: 8 | M9: 10 | N9: 10 | O9: 3 | P9: 0 | Q9: 0 | R9: 3 | S9: 0 | T9: 0 | U9: 0 | V9: 89 | Y9: =Y8 -> 89
A10: INSTITUIÇÕES SEM FINS LUCRATIVO | B10: =HYPERLINK("https://mapas.cultura.gov.br/inscricao/1627635170","on-1627635170") -> on-1627635170 | C10: Associação dos Rimadores Contraste Social | D10: Curitiba | E10: PR | F10: SUL | G10: Avaliador 1 | H10: 20 | I10: 15 | J10: 15 | K10: 10 | L10: 5 | M10: 10 | N10: 10 | O10: 8 | P10: 0 | Q10: 0 | R10: 3 | S10: 0 | T10: 0 | U10: 0 | V10: 96 | W10: Jam, Beatboxing, Breaking, Danças, Freestyle, Rap, Disc Jockey (DJ), Graffiti, Mestre de Cerimônia (MC), Slam | Y10: =AVERAGE(V10,V11) -> 88.5 | Z10: PRÉ-SELECIONADO
A11: INSTITUIÇÕES SEM FINS LUCRATIVO | B11: on-1627635170 | D11: Curitiba | E11: PR | F11: SUL | G11: Avaliador 2 | H11: 20 | I11: 12 | J11: 15 | K11: 5 | L11: 5 | M11: 10 | N11: 8 | O11: 3 | P11: 0 | Q11: 0 | R11: 3 | S11: 0 | T11: 0 | U11: 0 | V11: 81 | W11: A INSTITUIÇÃO TRABALHA COM VARIAS LINGUAGENS DA CULTURA HIP-HOP | Y11: =Y10 -> 88.5
A12: INSTITUIÇÕES SEM FINS LUCRATIVO | B12: =HYPERLINK("https://mapas.cultura.gov.br/inscricao/463460731","on-463460731") -> on-463460731 | C12: Associação de Dança de Garopaba - ADAG | D12: Garopaba | E12: SC | F12: SUL | G12: Avaliador 1 | H12: 20 | I12: 12 | J12: 12 | K12: 8 | L12: 8 | M12: 10 | N12: 8 | O12: 8 | P12: 0 | Q12: 3 | R12: 0 | S12: 0 | T12: 0 | U12: 0 | V12: 89 | Y12: =AVERAGE(V12,V13) -> 87.5 | Z12: PRÉ-SELECIONADO
A13: INSTITUIÇÕES SEM FINS LUCRATIVO | B13: =HYPERLINK("https://mapas.cultura.gov.br/inscricao/463460731","on-463460731") -> on-463460731 | D13: Garopaba | E13: SC | F13: SUL | G13: Avaliador 2 | H13: 20 | I13: 12 | J13: 12 | K13: 8 | L13: 8 | M13: 10 | N13: 8 | O13: 5 | P13: 0 | Q13: 3 | R13: 0 | S13: 0 | T13: 0 | U13: 0 | V13: 86 | Y13: =Y12 -> 87.5
A14: INSTITUIÇÕES SEM FINS LUCRATIVO | B14: =HYPERLINK("https://mapas.cultura.gov.br/inscricao/764210235","on-764210235") -> on-764210235 | C14: Fluência Casa Hip Hop | D14: Caxias do Sul | E14: RS | F14: SUL | G14: Avaliador 1 | H14: 20 | I14: 12 | J14: 12 | K14: 8 | L14: 10 | M14: 10 | N14: 10 | O14: 8 | P14: 0 | Q14: 0 | R14: 0 | S14: 0 | T14: 0 | U14: 0 | V14: 90 | Y14: =AVERAGE(V14,V15) -> 87.5 | Z14: PRÉ-SELECIONADO
A15: INSTITUIÇÕES SEM FINS LUCRATIVO | B15: =HYPERLINK("https://mapas.cultura.gov.br/inscricao/764210235","on-764210235") -> on-764210235 | D15: Caxias do Sul | E15: RS | F15: SUL | G15: Avaliador 2 | H15: 15 | I15: 12 | J15: 12 | K15: 10 | L15: 10 | M15: 8 | N15: 10 | O15: 8 | P15: 0 | Q15: 0 | R15: 0 | S15: 0 | T15: 0 | U15: 0 | V15: 85 | Y15: =Y14 -> 87.5
A16: INSTITUIÇÕES SEM FINS LUCRATIVO | B16: =HYPERLINK("https://mapas.cultura.gov.br/inscricao/203279355","on-203279355") -> on-203279355 | C16: Instituto Cultural Cohab É Só Rap (ICRAP) | D16: Porto Alegre | E16: RS | F16: SUL | G16: Avaliador 1 | H16: 20 | I16: 15 | J16: 12 | K16: 3 | L16: 5 | M16: 8 | N16: 8 | O16: 8 | P16: 0 | Q16: 0 | R16: 0 | S16: 3 | T16: 0 | U16: 0 | V16: 82 | Y16: =AVERAGE(V16,V17) -> 87 | Z16: CLASSIFICADO
A17: INSTITUIÇÕES SEM FINS LUCRATIVO | B17: =HYPERLINK("https://mapas.cultura.gov.br/inscricao/203279355","on-203279355") -> on-203279355 | D17: Porto Alegre | E17: RS | F17: SUL | G17: Avaliador 2 | H17: 15 | I17: 15 | J17: 15 | K17: 8 | L17: 10 | M17: 10 | N17: 8 | O17: 8 | P17: 0 | Q17: 0 | R17: 0 | S17: 3 | T17: 0 | U17: 0 | V17: 92 | Y17: =Y16 -> 87
A18: INSTITUIÇÕES SEM FINS LUCRATIVO | B18: =HYPERLINK("https://mapas.cultura.gov.br/inscricao/1552729457","on-1552729457") -> on-1552729457 | C18: Núcleo Periférico | D18: Curitiba | E18: PR | F18: SUL | G18: Avaliador 1 | H18: 20 | I18: 15 | J18: 15 | K18: 8 | L18: 10 | M18: 8 | N18: 5 | O18: 5 | P18: 0 | Q18: 0 | R18: 3 | S18: 0 | T18: 0 | U18: 0 | V18: 89 | W18: Beatboxing, Disc Jockey (DJ), Graffiti, Mestre de Cerimônia (MC), Breaking, Freestyle, Rap | Y18: =AVERAGE(V18,V19) -> 86 | Z18: CLASSIFICADO
A19: INSTITUIÇÕES SEM FINS LUCRATIVO | B19: on-1552729457 | D19: Curitiba | E19: PR | F19: SUL | G19: Avaliador 2 | H19: 20 | I19: 12 | J19: 12 | K19: 8 | L19: 10 | M19: 8 | N19: 5 | O19: 5 | P19: 0 | Q19: 0 | R19: 3 | S19: 0 | T19: 0 | U19: 0 | V19: 83 | W19: A INSTITUIÇÃO TRABALHA COM VARIAS LINGUAGENS DA CULTURA HIP-HOP | Y19: =Y18 -> 86
A20: INSTITUIÇÕES SEM FINS LUCRATIVO | B20: =HYPERLINK("https://mapas.cultura.gov.br/inscricao/1158331546","on-1158331546") -> on-1158331546 | C20: instituto parrhesia erga omnes | D20: Porto Alegre | E20: RS | F20: SUL | G20: Avaliador 1 | H20: 20 | I20: 15 | J20: 12 | K20: 8 | L20: 8 | M20: 10 | N20: 8 | O20: 8 | P20: 0 | Q20: 3 | R20: 3 | S20: 0 | T20: 3 | U20: 0 | V20: 98 | W20: Trata-se da mesma candidatura de nº 1177128288. | Y20: =AVERAGE(V20,V21) -> 86 | Z20: CLASSIFICADO
A21: INSTITUIÇÕES SEM FINS LUCRATIVO | B21: =HYPERLINK("https://mapas.cultura.gov.br/inscricao/1158331546","on-1158331546") -> on-1158331546 | D21: Porto Alegre | E21: RS | F21: SUL | G21: Avaliador 2 | H21: 15 | I21: 8 | J21: 8 | K21: 8 | L21: 8 | M21: 8 | N21: 5 | O21: 5 | P21: 0 | Q21: 3 | R21: 3 | S21: 0 | T21: 3 | U21: 0 | V21: 74 | W21: Atestado e indicativo etario não corresponde a proponente | Y21: =Y20 -> 86
A22: INSTITUIÇÕES SEM FINS LUCRATIVO | B22: =HYPERLINK("https://mapas.cultura.gov.br/inscricao/273711337","on-273711337") -> on-273711337 | C22: INSTITUIÇÃO ESPIRITA CASA DA FRATERNIDADE | D22: Araranguá | E22: SC | F22: SUL | G22: Avaliador 1 | H22: 20 | I22: 15 | J22: 12 | K22: 5 | L22: 10 | M22: 10 | N22: 5 | O22: 8 | P22: 0 | Q22: 3 | R22: 0 | S22: 0 | T22: 0 | U22: 0 | V22: 88 | Y22: =AVERAGE(V22,V23) -> 84.5 | Z22: CLASSIFICADO
A23: INSTITUIÇÕES SEM FINS LUCRATIVO | B23: =HYPERLINK("https://mapas.cultura.gov.br/inscricao/273711337","on-273711337") -> on-273711337 | D23: Araranguá | E23: SC | F23: SUL | G23: Avaliador 2 | H23: 15 | I23: 12 | J23: 12 | K23: 5 | L23: 8 | M23: 10 | N23: 8 | O23: 8 | P23: 0 | Q23: 3 | R23: 0 | S23: 0 | T23: 0 | U23: 0 | V23: 81 | Y23: =Y22 -> 84.5
A24: INSTITUIÇÕES SEM FINS LUCRATIVO | B24: =HYPERLINK("https://mapas.cultura.gov.br/inscricao/1448052949","on-1448052949") -> on-1448052949 | C24: Abrigo Coletivo de Educação e Assistência Social | D24: Porto Alegre | E24: RS | F24: SUL | G24: Avaliador 1 | H24: 15 | I24: 15 | J24: 15 | K24: 10 | L24: 10 | M24: 10 | N24: 5 | O24: 3 | P24: 0 | Q24: 0 | R24: 0 | S24: 0 | T24: 3 | U24: 0 | V24: 86 | Y24: =AVERAGE(V24,V25) -> 82 | Z24: CLASSIFICADO
A25: INSTITUIÇÕES SEM FINS LUCRATIVO | B25: =HYPERLINK("https://mapas.cultura.gov.br/inscricao/1448052949","on-1448052949") -> on-1448052949 | D25: Porto Alegre | E25: RS | F25: SUL | G25: Avaliador 2 | H25: 15 | I25: 15 | J25: 8 | K25: 8 | L25: 8 | M25: 8 | N25: 8 | O25: 5 | P25: 0 | Q25: 0 | R25: 0 | S25: 0 | T25: 3 | U25: 0 | V25: 78 | Y25: =Y24 -> 82
A26: INSTITUIÇÕES SEM FINS LUCRATIVO | B26: =HYPERLINK("https://mapas.cultura.gov.br/inscricao/2098851824","on-2098851824") -> on-2098851824 | C26: Associação Dança Criciúma | D26: Criciúma | E26: SC | F26: SUL | G26: Avaliador 1 | H26: 20 | I26: 15 | J26: 15 | K26: 3 | L26: 10 | M26: 10 | N26: 10 | O26: 8 | P26: 0 | Q26: 0 | R26: 0 | S26: 0 | T26: 0 | U26: 0 | V26: 91 | W26: Laudo médico de deficiência auditiva apresentado possui somente assinatura de fonoaudióloga. | Y26: =AVERAGE(V26,V27) -> 81 | Z26: CLASSIFICADO
A27: INSTITUIÇÕES SEM FINS LUCRATIVO | B27: =HYPERLINK("https://mapas.cultura.gov.br/inscricao/2098851824","on-2098851824") -> on-2098851824 | D27: Criciúma | E27: SC | F27: SUL | G27: Avaliador 2 | H27: 10 | I27: 12 | J27: 12 | K27: 5 | L27: 8 | M27: 8 | N27: 8 | O27: 8 | P27: 0 | Q27: 0 | R27: 0 | S27: 0 | T27: 0 | U27: 0 | V27: 71 | Y27: =Y26 -> 81
A28: INSTITUIÇÕES SEM FINS LUCRATIVO | B28: =HYPERLINK("https://mapas.cultura.gov.br/inscricao/520927192","on-520927192") -> on-520927192 | C28: INSTITUTO CULTURAL FILHOS DE ARUANDA | D28: Rio Grande | E28: RS | F28: SUL | G28: Avaliador 1 | H28: 20 | I28: 8 | J28: 8 | K28: 5 | L28: 5 | M28: 5 | N28: 5 | O28: 10 | P28: 0 | Q28: 3 | R28: 3 | S28: 3 | T28: 0 | U28: 3 | V28: 78 | Y28: =AVERAGE(V28,V29) -> 79.5 | Z28: CLASSIFICADO
A29: INSTITUIÇÕES SEM FINS LUCRATIVO | B29: =HYPERLINK("https://mapas.cultura.gov.br/inscricao/520927192","on-520927192") -> on-520927192 | D29: Rio Grande | E29: RS | F29: SUL | G29: Avaliador 2 | H29: 5 | I29: 12 | J29: 15 | K29: 8 | L29: 8 | M29: 8 | N29: 5 | O29: 8 | P29: 0 | Q29: 3 | R29: 3 | S29: 3 | T29: 0 | U29: 3 | V29: 81 | W29: Candidatura indica deficiencia, mas não anexou o laudo | Y29: =Y28 -> 79.5
A30: INSTITUIÇÕES SEM FINS LUCRATIVO | B30: =HYPERLINK("https://mapas.cultura.gov.br/inscricao/1915067763","on-1915067763") -> on-1915067763 | C30: Associação Cultural Sétimo Setor | D30: Canoas | E30: RS | F30: SUL | G30: Avaliador 1 | H30: 20 | I30: 15 | J30: 8 | K30: 5 | L30: 5 | M30: 5 | N30: 8 | O30: 3 | P30: 0 | Q30: 0 | R30: 0 | S30: 0 | T30: 0 | U30: 0 | V30: 69 | Y30: =AVERAGE(V30,V31) -> 71 | Z30: CLASSIFICADO
A31: INSTITUIÇÕES SEM FINS LUCRATIVO | B31: =HYPERLINK("https://mapas.cultura.gov.br/inscricao/1915067763","on-1915067763") -> on-1915067763 | D31: Canoas | E31: RS | F31: SUL | G31: Avaliador 2 | H31: 15 | I31: 12 | J31: 12 | K31: 8 | L31: 8 | M31: 8 | N31: 5 | O31: 5 | P31: 0 | Q31: 0 | R31: 0 | S31: 0 | T31: 0 | U31: 0 | V31: 73 | W31: Elementos selecionados não descritos nas respostas | Y31: =Y30 -> 71
A32: INSTITUIÇÕES SEM FINS LUCRATIVO | B32: =HYPERLINK("https://mapas.cultura.gov.br/inscricao/816640584","on-816640584") -> on-816640584 | C32: Associação Aprendizes por Vida Breve, Hip Hop e Poesia (ONG Vida Breve) | D32: Taquara | E32: RS | F32: SUL | G32: Avaliador 1 | H32: 15 | I32: 15 | J32: 15 | K32: 8 | L32: 5 | M32: 10 | N32: 5 | O32: 0 | P32: 0 | Q32: 0 | R32: 0 | S32: 0 | T32: 0 | U32: 0 | V32: 73 | Y32: =AVERAGE(V32,V33) -> 67.5 | Z32: CLASSIFICADO
A33: INSTITUIÇÕES SEM FINS LUCRATIVO | B33: =HYPERLINK("https://mapas.cultura.gov.br/inscricao/816640584","on-816640584") -> on-816640584 | D33: Taquara | E33: RS | F33: SUL | G33: Avaliador 2 | H33: 10 | I33: 8 | J33: 8 | K33: 10 | L33: 8 | M33: 8 | N33: 10 | O33: 0 | P33: 0 | Q33: 0 | R33: 0 | S33: 0 | T33: 0 | U33: 0 | V33: 62 | Y33: =Y32 -> 67.5
A34: INSTITUIÇÕES SEM FINS LUCRATIVO | B34: =HYPERLINK("https://mapas.cultura.gov.br/inscricao/958843697","on-958843697") -> on-958843697 | C34: Instituto Trocando Idéia de Tecnologia Social Integrada | D34: Porto Alegre | E34: RS | F34: SUL | G34: Avaliador 1 | H34: 20 | I34: 15 | J34: 15 | K34: 8 | L34: 5 | M34: 3 | N34: 3 | O34: 0 | P34: 0 | Q34: 3 | R34: 0 | S34: 0 | T34: 0 | U34: 0 | V34: 72 | Y34: =AVERAGE(V34,V35) -> 64 | Z34: CLASSIFICADO
A35: INSTITUIÇÕES SEM FINS LUCRATIVO | B35: =HYPERLINK("https://mapas.cultura.gov.br/inscricao/958843697","on-958843697") -> on-958843697 | D35: Porto Alegre | E35: RS | F35: SUL | G35: Avaliador 2 | H35: 15 | I35: 15 | J35: 15 | K35: 8 | L35: 0 | M35: 0 | N35: 0 | O35: 0 | P35: 0 | Q35: 3 | R35: 0 | S35: 0 | T35: 0 | U35: 0 | V35: 56 | W35: Respostas com caracteres intelegiveis | Y35: =Y34 -> 64
A36: INSTITUIÇÕES SEM FINS LUCRATIVO | B36: =HYPERLINK("https://mapas.cultura.gov.br/inscricao/864846447","on-864846447") -> on-864846447 | C36: AFASO | D36: Porto Alegre | E36: RS | F36: SUL | G36: Avaliador 1 | H36: 20 | I36: 8 | J36: 4 | K36: 5 | L36: 8 | M36: 8 | N36: 5 | O36: 0 | P36: 0 | Q36: 0 | R36: 3 | S36: 0 | T36: 0 | U36: 0 | V36: 61 | W36: A documentação anexada está incompleta. De acordo com o Item 7.13 do Edital de Premiação, a candidatura está desclassificada. | X36: DESCLASSIFICADA COM BASE NO ITEM 7.7 | Y36: =AVERAGE(V36,V37) -> 52.5 | Z36: DESCLASSIFICADO
A37: INSTITUIÇÕES SEM FINS LUCRATIVO | B37: =HYPERLINK("https://mapas.cultura.gov.br/inscricao/864846447","on-864846447") -> on-864846447 | D37: Porto Alegre | E37: RS | F37: SUL | G37: Avaliador 2 | H37: 10 | I37: 8 | J37: 8 | K37: 3 | L37: 3 | M37: 3 | N37: 3 | O37: 3 | P37: 0 | Q37: 0 | R37: 3 | S37: 0 | T37: 0 | U37: 0 | V37: 44 | W37: Não comprovacao do minimo de 2 anos entre outras incosistencias | Y37: =Y36 -> 52.5
A38: INSTITUIÇÕES SEM FINS LUCRATIVO | B38: POSTAL 5 | C38: Associação Cultural Recreativa e Esportiva BGU-FC | D38: Rio Grande | E38: RS | F38: SUL | G38: Avaliador 1 | H38: 10 | I38: 4 | J38: 4 | K38: 0 | L38: 3 | M38: 8 | N38: 3 | O38: 3 | P38: 0 | Q38: 0 | R38: 3 | S38: 0 | U38: 0 | V38: 38 | W38: A Associação Cultural Recreativa e Esportiva BGU-FC preencheu o Formulário de Inscrição relativo a Instituições Sem Fins Lucrativos e, no entanto, encaminhou carta de autorização do grupo ao invés de estatuto social e ata da diretoria. Embora afirme ter encaminhado fotos, vídeos e cartaz como materiais comprobatórios, apenas o cartaz foi localizado no volume postado para a inscrição. Pesquisando o nome do grupo informado na Carta de Autorização, Soul Original Rap, foi localizado perfil no instagram (https://www.instagram.com/souloriginalrap/) e Youtube (https://www.youtube.com/@SoulOriginalRap). As respostas lacônicas com poucas informações sobre a iniciativa nâo permitiram uma avaliação mais acurada, de modo a que foram atribuídas notas baixas aos quesitos. INICIATIVA DESCLASSIFICADA COM BASE NO ITEM 6.13 DO EDITAL | X38: DESCLASSIFICADO COM BASE NO ITEM 7.10 | Y38: =AVERAGE(V38,V39) -> 39 | Z38: DESCLASSIFICADO
A39: INSTITUIÇÕES SEM FINS LUCRATIVO | B39: POSTAL 5 | D39: Rio Grande | E39: RS | F39: SUL | G39: Avaliador 2 | H39: 10 | I39: 4 | J39: 4 | K39: 0 | L39: 3 | M39: 8 | N39: 3 | O39: 5 | P39: 0 | Q39: 0 | R39: 3 | S39: 0 | T39: 0 | U39: 0 | V39: 40 | W39: Desclassificado: 6.13 | Y39: =Y38 -> 39
A40: INSTITUIÇÕES SEM FINS LUCRATIVO | B40: =HYPERLINK("https://mapas.cultura.gov.br/inscricao/889169030","on-889169030") -> on-889169030 | C40: Associação Dojo | D40: Campo Mourão | E40: PR | F40: SUL | G40: Avaliador 1 | H40: 5 | I40: 4 | J40: 0 | K40: 0 | L40: 3 | M40: 0 | N40: 0 | O40: 0 | P40: 0 | Q40: 0 | R40: 3 | S40: 0 | T40: 0 | U40: 0 | V40: 15 | W40: NÃO SE APLICA | X40: DESCLASSIFICADA COM BASE NO ITEM 7.7 | Y40: =AVERAGE(V40,V41) -> 11.5 | Z40: DESCLASSIFICADO
A41: INSTITUIÇÕES SEM FINS LUCRATIVO | B41: on-889169030 | D41: Campo Mourão | E41: PR | F41: SUL | G41: Avaliador 2 | H41: 5 | I41: 0 | J41: 0 | K41: 0 | L41: 0 | M41: 0 | N41: 0 | O41: 0 | P41: 0 | Q41: 0 | R41: 3 | S41: 0 | T41: 0 | U41: 0 | V41: 8 | W41: NÃO SE APLICA AO EDITAL PROPOSTO / NÃO TEM NENHUMA COMPROVAÇÃO COM AÇÕES NA CULTURA HIP-HOP | Y41: =Y40 -> 11.5
A42: INSTITUIÇÕES SEM FINS LUCRATIVO | B42: =HYPERLINK("https://mapas.cultura.gov.br/inscricao/72593096","on-72593096") -> on-72593096 | C42: Instituto cultural becos e vielas | D42: porto alegre | E42: RS | F42: SUL | G42: Avaliador 1 | R42: 3 | T42: 3 | V42: 6 | W42: A documentação anexada está incompleta. De acordo com o Item 7.13 do Edital de Premiação, a candidatura está desclassificada. | X42: DESCLASSIFICADA COM BASE NO ITEM 7.7 | Y42: =AVERAGE(V42,V43) -> 6 | Z42: DESCLASSIFICADO
A43: INSTITUIÇÕES SEM FINS LUCRATIVO | B43: =HYPERLINK("https://mapas.cultura.gov.br/inscricao/72593096","on-72593096") -> on-72593096 | D43: porto alegre | E43: RS | F43: SUL | G43: Avaliador 2 | H43: 0 | I43: 0 | J43: 0 | K43: 0 | L43: 0 | M43: 0 | N43: 0 | O43: 0 | P43: 0 | Q43: 0 | R43: 3 | S43: 0 | T43: 3 | U43: 0 | V43: 6 | W43: Proposta com documentacao incompleta | Y43: =Y42 -> 6
A44: INSTITUIÇÕES SEM FINS LUCRATIVO | B44: =HYPERLINK("https://mapas.cultura.gov.br/inscricao/1177128288","on-1177128288") -> on-1177128288 | C44: INSTITUTO PARRHESIA ERGA OMNES | D44: Porto Alegre | E44: RS | F44: SUL | G44: Avaliador 1 | V44: 0 | W44: Laudo médico de deficiência física apresentado não pertence ao responsável pela candidatura. | X44: DESCLASSIFICADA COM BASE NO ITEM 7.5 | Y44: =AVERAGE(V44,V45) -> 0 | Z44: DESCLASSIFICADO
A45: INSTITUIÇÕES SEM FINS LUCRATIVO | B45: =HYPERLINK("https://mapas.cultura.gov.br/inscricao/1177128288","on-1177128288") -> on-1177128288 | D45: Porto Alegre | E45: RS | F45: SUL | G45: Avaliador 2 | H45: 0 | I45: 0 | J45: 0 | K45: 0 | L45: 0 | M45: 0 | N45: 0 | O45: 0 | P45: 0 | Q45: 0 | R45: 0 | S45: 0 | T45: 0 | U45: 0 | V45: 0 | W45: Proposta cancelada por em duplicidade, valendo a ultima versao | Y45: =Y44 -> 0
A46: INSTITUIÇÕES SEM FINS LUCRATIVO | B46: =HYPERLINK("https://mapas.cultura.gov.br/inscricao/1569500266","on-1569500266") -> on-1569500266 | C46: ALEGRIA E SIMPATIA ARTES, EMOCAO | D46: Gravataí | E46: RS | F46: SUL | G46: Avaliador 1 | V46: 0 | W46: A documentação anexada está incompleta. De acordo com o Item 7.13 do Edital de Premiação, a candidatura está desclassificada. | X46: DESCLASSIFICADA COM BASE NO ITEM 7.7 | Y46: =AVERAGE(V46,V47) -> 0 | Z46: DESCLASSIFICADO
A47: INSTITUIÇÕES SEM FINS LUCRATIVO | B47: =HYPERLINK("https://mapas.cultura.gov.br/inscricao/1569500266","on-1569500266") -> on-1569500266 | D47: Gravataí | E47: RS | F47: SUL | G47: Avaliador 2 | H47: 0 | I47: 0 | J47: 0 | K47: 0 | L47: 0 | M47: 0 | N47: 0 | O47: 0 | P47: 0 | Q47: 0 | R47: 0 | S47: 0 | T47: 0 | U47: 0 | V47: =SUM(H47:U47) -> 0 | W47: Empresa com fins lucrativos | Y47: =Y46 -> 0
H155: 0 | I155: 0 | K155: 0 | P155: 0
H156: 5 | I156: 4 | K156: 3 | P156: 3
H157: 10 | I157: 8 | K157: 5
H158: 15 | I158: 12 | K158: 8
H159: 20 | I159: 15 | K159: 10
